Workbook

Sheet GENERALIDADES
E1: CÁLCULO DE HUELLA DE CARBONO - RAMA JUDICIAL
A4: SECCIONAL | H4: NIT
A5: DIRECCIÓN | H5: CÓDIGO CIIU
A6: AÑO BASE | H6: TELÉFONO
A8: Describa cuales son los límites organizacionales que incluirán el cálculo de las emisiones de Gases Efecto Invernadero (GEI):
A10: A continuación se presentan los resultados de la cuantificación de las emisiones por cada uno de los alcances, para los años reportados por la organización.
D13: CUANTIFICACIÓN ANUAL TONELADAS DE CO2
D14: AÑO | E14: =+'ALCANCE 1'!A4 -> 2017 | F14: =+'ALCANCE 1'!A19 -> 2018 | G14: =+'ALCANCE 1'!A33 -> 2019 | H14: =+'ALCANCE 1'!A47 -> 2020 | I14: =+'ALCANCE 1'!A61 -> 2021
D15: ALCANCE 1 | E15: =+'ALCANCE 1'!W17+'ALCANCE 1'!W93 -> 0 | F15: =+'ALCANCE 1'!W31+'ALCANCE 1'!W112 -> 0 | G15: =+'ALCANCE 1'!W45+'ALCANCE 1'!W131 -> 0 | H15: =+'ALCANCE 1'!W59+'ALCANCE 1'!W150 -> 0 | I15: =+'ALCANCE 1'!W73+'ALCANCE 1'!W169 -> 0
D16: ALCANCE 2 | E16: =+'ALCANCE 2'!T21 -> 0 | F16: =+'ALCANCE 2'!T23 -> 0 | G16: =+'ALCANCE 2'!T25 -> 0 | H16: =+'ALCANCE 2'!T27 -> 0.021 | I16: =+'ALCANCE 2'!T29 -> 0.07553
D17: ALCANCE 3 | E17: =+'ALCANCE 3'!$V$19+'ALCANCE 3'!$V$102+'ALCANCE 3'!$V$158+'ALCANCE 3'!$V$217 -> 62.45976233 | F17: =+'ALCANCE 3'!$V$37+'ALCANCE 3'!$V$113+'ALCANCE 3'!$V$170+'ALCANCE 3'!$V$228 -> 183.2082677 | G17: =+'ALCANCE 3'!$V$55+'ALCANCE 3'!$V$124+'ALCANCE 3'!$V$182+'ALCANCE 3'!$V$239 -> 1.153913718 | H17: =+'ALCANCE 3'!$V$73+'ALCANCE 3'!$V$135+'ALCANCE 3'!$V$194+'ALCANCE 3'!$V$250 -> 1.266745 | I17: =+'ALCANCE 3'!$V$91+'ALCANCE 3'!$V$146+'ALCANCE 3'!$V$206+'ALCANCE 3'!$V$261 -> 0.986099936
D18: EVS | E18: =+EVS!AB1553 -> 46.2530598
D19: TOTAL | E19: =SUM(E15:E17) -> 62.45976233 | F19: =SUM(F15:F17) -> 183.2082677 | G19: =SUM(G15:G17) -> 1.153913718 | H19: =SUM(H15:H17) -> 1.287745 | I19: =SUM(I15:I17) -> 1.061629936
D37: CUANTIFICACIÓN ANUAL POR PILARES DE EVS
D38: AÑO | E38: =+EVS!A2 -> 2016
D39: VIVIENDA | E39: =+EVS!I1553+EVS!O1553+EVS!Q1553 -> 1059.4934
D40: TRANSPORTE | E40: =+EVS!T1553 -> 192.52425
D41: ALIMENTACIÓN | E41: =+EVS!V1553+EVS!X1553 -> 2089.404
A43: CÓDIGO F-EVSG-31 | D43: ELABORÓ LÍDER DEL PROCESO | G43: REVISÓ CENDOJ – SIGCMA | K43: APROBÓ COMITÉ NACIONAL DEL SIGCMA
A44: VERSIÓN 01 | D44: FECHA 15/12/2019 | G44: FECHA 02/02/2020 | K44: FECHA 18/02/2020

Sheet ALCANCE 1
G1: CÁLCULO DE HUELLA DE CARBONO - RAMA JUDICIAL
A3: FUENTES FIJAS
A4: 2017 | B4: TIPO DE COMBUSTIBLE / REFRIGERANTE / AISLANTE/ EXTINTOR | C4: NOMBRE | D4: FUENTE DE EMISIÓN | E4: UNIDAD | F4: CARACTERÍSTICA | G4: CONSUMO | T4: No. DE DATOS | U4: FACTOR DE EMISIÓN | V4: UNIDADES | W4: HUELLA DE CARBONO (TON CO2)
G5: ENE | H5: FEB | I5: MAR | J5: ABR | K5: MAY | L5: JUN | M5: JUL | N5: AGO | O5: SEP | P5: OCT | Q5: NOV | R5: DIC | S5: TOTAL
B6: Escoja la opción que corresponda | C6: Escoja la opción que corresponda | D6: Escriba el nombre de la fuente de emisión | E6: NO APLICA | F6: NO APLICA | G6: Digite los consumos y costos mensuales correspondientes de acuerdo al combustible escogido | T6: NO APLICA | U6: NO APLICA | V6: NO APLICA | W6: NO APLICA
B7: EXTINTOR | C7: Extintores R-123 / HCFC-123 | E7: =IFERROR(VLOOKUP(C7,'[1]FACTORES DE EMISIÓN'!$I$3:$L$80,4,0),0) -> kg | F7: Consumo | S7: =SUM(G7:R7) -> 0 | T7: =COUNT(G7:R7) -> 0 | U7: =IFERROR(VLOOKUP(C7,'[1]FACTORES DE EMISIÓN'!$I$3:$L$80,2,0),0) -> 79 | V7: =IFERROR(VLOOKUP(C7,'[1]FACTORES DE EMISIÓN'!$I$3:$L$80,3,0),0) -> kgCO2eq /kg | W7: =IFERROR((S7*U7)/1000,0) -> 0
F8: Costo/mes | S8: 0
B9: LIQUIDO | C9: Gasolina E10 (Mezcla Comercial) | D9: Planta eléctrica sede X | E9: =IFERROR(VLOOKUP(C9,'[1]FACTORES DE EMISIÓN'!$I$3:$L$80,4,0),0) -> gal | F9: Consumo | S9: 0 | T9: =COUNT(G9:R9) -> 0 | U9: =IFERROR(VLOOKUP(C9,'[1]FACTORES DE EMISIÓN'!$I$3:$L$80,2,0),0) -> 7.6200412 | V9: =IFERROR(VLOOKUP(C9,'[1]FACTORES DE EMISIÓN'!$I$3:$L$80,3,0),0) -> kgCO2eq/gal | W9: =IFERROR((S9*U9)/1000,0) -> 0
F10: Costo/mes | S10: 0
B11: GAS | C11: Gas natural Genérico | D11: Antorcha Palacio de Justicia | E11: =IFERROR(VLOOKUP(C11,'[1]FACTORES DE EMISIÓN'!$I$3:$L$80,4,0),0) -> m3 | F11: Consumo | S11: 0 | T11: =COUNT(G11:R11) -> 0 | U11: =IFERROR(VLOOKUP(C11,'[1]FACTORES DE EMISIÓN'!$I$3:$L$80,2,0),0) -> 1.9819536 | V11: =IFERROR(VLOOKUP(C11,'[1]FACTORES DE EMISIÓN'!$I$3:$L$80,3,0),0) -> kgCO2eq /m3 | W11: =IFERROR((S11*U11)/1000,0) -> 0
F12: Costo/mes | S12: 0
B13: REFRIGERANTE | C13: HFC-23 / R-23 | E13: =IFERROR(VLOOKUP(C13,'[1]FACTORES DE EMISIÓN'!$I$3:$L$80,4,0),0) -> kg | F13: Consumo | N13: , | S13: 0 | T13: =COUNT(G13:R13) -> 0 | U13: =IFERROR(VLOOKUP(C13,'[1]FACTORES DE EMISIÓN'!$I$3:$L$80,2,0),0) -> 12400 | V13: =IFERROR(VLOOKUP(C13,'[1]FACTORES DE EMISIÓN'!$I$3:$L$80,3,0),0) -> kgCO2eq /kg | W13: =IFERROR((S13*U13)/1000,0) -> 0
F14: Costo/mes | S14: 0
B15: EXTINTOR | C15: Extintores CO2 | E15: =IFERROR(VLOOKUP(C15,'[1]FACTORES DE EMISIÓN'!$I$3:$L$80,4,0),0) -> kg | F15: Consumo | S15: 0 | T15: =COUNT(G15:R15) -> 0 | U15: =IFERROR(VLOOKUP(C15,'[1]FACTORES DE EMISIÓN'!$I$3:$L$80,2,0),0) -> 1 | V15: =IFERROR(VLOOKUP(C15,'[1]FACTORES DE EMISIÓN'!$I$3:$L$80,3,0),0) -> kgCO2eq /kg | W15: =IFERROR((S15*U15)/1000,0) -> 0
F16: Costo/mes | S16: 0
B17: TOTAL EMISIONES FUENTES FIJAS | W17: =SUM(W7:W16) -> 0
A19: 2018 | B19: TIPO DE COMBUSTIBLE / REFRIGERANTE / AISLANTE/ EXTINTOR | C19: NOMBRE | D19: FUENTE DE EMISIÓN | E19: UNIDAD | F19: CARACTERÍSTICA | G19: CONSUMO | T19: No. DE DATOS | U19: FACTOR DE EMISIÓN | V19: UNIDADES | W19: HUELLA DE CARBONO (TON CO2)
G20: ENE | H20: FEB | I20: MAR | J20: ABR | K20: MAY | L20: JUN | M20: JUL | N20: AGO | O20: SEP | P20: OCT | Q20: NOV | R20: DIC | S20: TOTAL
B21: GAS | C21: Gas natural Genérico | E21: =IFERROR(VLOOKUP(C21,'[1]FACTORES DE EMISIÓN'!$I$3:$L$80,4,0),0) -> m3 | F21: Consumo | S21: =SUM(G21:R21) -> 0 | T21: =COUNT(G21:R21) -> 0 | U21: =IFERROR(VLOOKUP(C21,'[1]FACTORES DE EMISIÓN'!$I$3:$L$80,2,0),0) -> 1.9819536 | V21: =IFERROR(VLOOKUP(C21,'[1]FACTORES DE EMISIÓN'!$I$3:$L$80,3,0),0) -> kgCO2eq /m3 | W21: =IFERROR((S21*U21)/1000,0) -> 0
F22: Costo/mes | S22: 0
B23: SOLIDO | C23: Biogás Genérico | E23: =IFERROR(VLOOKUP(C23,'[1]FACTORES DE EMISIÓN'!$I$3:$L$80,4,0),0) -> m3 | F23: Consumo | S23: 0 | T23: =COUNT(G23:R23) -> 0 | U23: =IFERROR(VLOOKUP(C23,'[1]FACTORES DE EMISIÓN'!$I$3:$L$80,2,0),0) -> 1.857199 | V23: =IFERROR(VLOOKUP(C23,'[1]FACTORES DE EMISIÓN'!$I$3:$L$80,3,0),0) -> kgCO2eq/m3 | W23: =IFERROR((S23*U23)/1000,0) -> 0
F24: Costo/mes | S24: 0
B25: REFRIGERANTE | C25: HFC-23 / R-23 | E25: =IFERROR(VLOOKUP(C25,'[1]FACTORES DE EMISIÓN'!$I$3:$L$80,4,0),0) -> kg | F25: Consumo | S25: 0 | T25: =COUNT(G25:R25) -> 0 | U25: =IFERROR(VLOOKUP(C25,'[1]FACTORES DE EMISIÓN'!$I$3:$L$80,2,0),0) -> 12400 | V25: =IFERROR(VLOOKUP(C25,'[1]FACTORES DE EMISIÓN'!$I$3:$L$80,3,0),0) -> kgCO2eq /kg | W25: =IFERROR((S25*U25)/1000,0) -> 0
F26: Costo/mes | S26: 0
B27: AISLANTE | C27: SF6 | E27: =IFERROR(VLOOKUP(C27,'[1]FACTORES DE EMISIÓN'!$I$3:$L$80,4,0),0) -> kg | F27: Consumo | N27: , | S27: 0 | T27: =COUNT(G27:R27) -> 0 | U27: =IFERROR(VLOOKUP(C27,'[1]FACTORES DE EMISIÓN'!$I$3:$L$80,2,0),0) -> 23500 | V27: =IFERROR(VLOOKUP(C27,'[1]FACTORES DE EMISIÓN'!$I$3:$L$80,3,0),0) -> kgCO2eq /kg | W27: =IFERROR((S27*U27)/1000,0) -> 0
F28: Costo/mes | S28: 0
B29: EXTINTOR | C29: Extintores R-123 / HCFC-123 | E29: =IFERROR(VLOOKUP(C29,'[1]FACTORES DE EMISIÓN'!$I$3:$L$80,4,0),0) -> kg | F29: Consumo | S29: 0 | T29: =COUNT(G29:R29) -> 0 | U29: =IFERROR(VLOOKUP(C29,'[1]FACTORES DE EMISIÓN'!$I$3:$L$80,2,0),0) -> 79 | V29: =IFERROR(VLOOKUP(C29,'[1]FACTORES DE EMISIÓN'!$I$3:$L$80,3,0),0) -> kgCO2eq /kg | W29: =IFERROR((S29*U29)/1000,0) -> 0
F30: Costo/mes | S30: 0
B31: TOTAL EMISIONES FUENTES FIJAS | W31: =SUM(W21:W30) -> 0
A33: 2019 | B33: TIPO DE COMBUSTIBLE / REFRIGERANTE / AISLANTE/ EXTINTOR | C33: NOMBRE | D33: FUENTE DE EMISIÓN | E33: UNIDAD | F33: CARACTERÍSTICA | G33: CONSUMO | T33: No. DE DATOS | U33: FACTOR DE EMISIÓN | V33: UNIDADES | W33: HUELLA DE CARBONO (TON CO2)
G34: ENE | H34: FEB | I34: MAR | J34: ABR | K34: MAY | L34: JUN | M34: JUL | N34: AGO | O34: SEP | P34: OCT | Q34: NOV | R34: DIC | S34: TOTAL
B35: SOLIDO | C35: Gas natural Genérico | E35: =IFERROR(VLOOKUP(C35,'[1]FACTORES DE EMISIÓN'!$I$3:$L$80,4,0),0) -> m3 | F35: Consumo | S35: =SUM(G35:R35) -> 0 | T35: =COUNT(G35:R35) -> 0 | U35: =IFERROR(VLOOKUP(C35,'[1]FACTORES DE EMISIÓN'!$I$3:$L$80,2,0),0) -> 1.9819536 | V35: =IFERROR(VLOOKUP(C35,'[1]FACTORES DE EMISIÓN'!$I$3:$L$80,3,0),0) -> kgCO2eq /m3 | W35: =IFERROR((S35*U35)/1000,0) -> 0
F36: Costo/mes | S36: 0
B37: GAS | C37: Gas Natural Usme | E37: =IFERROR(VLOOKUP(C37,'[1]FACTORES DE EMISIÓN'!$I$3:$L$80,4,0),0) -> m3 | F37: Consumo | S37: 0 | T37: =COUNT(G37:R37) -> 0 | U37: =IFERROR(VLOOKUP(C37,'[1]FACTORES DE EMISIÓN'!$I$3:$L$80,2,0),0) -> 2.1030249 | V37: =IFERROR(VLOOKUP(C37,'[1]FACTORES DE EMISIÓN'!$I$3:$L$80,3,0),0) -> kgCO2eq/m3 | W37: =IFERROR((S37*U37)/1000,0) -> 0
F38: Costo/mes | S38: 0
B39: REFRIGERANTE | C39: HFC-23 / R-23 | E39: =IFERROR(VLOOKUP(C39,'[1]FACTORES DE EMISIÓN'!$I$3:$L$80,4,0),0) -> kg | F39: Consumo | S39: 0 | T39: =COUNT(G39:R39) -> 0 | U39: =IFERROR(VLOOKUP(C39,'[1]FACTORES DE EMISIÓN'!$I$3:$L$80,2,0),0) -> 12400 | V39: =IFERROR(VLOOKUP(C39,'[1]FACTORES DE EMISIÓN'!$I$3:$L$80,3,0),0) -> kgCO2eq /kg | W39: =IFERROR((S39*U39)/1000,0) -> 0
F40: Costo/mes | S40: 0
B41: AISLANTE | C41: SF6 | E41: =IFERROR(VLOOKUP(C41,'[1]FACTORES DE EMISIÓN'!$I$3:$L$80,4,0),0) -> kg | F41: Consumo | N41: , | S41: 0 | T41: =COUNT(G41:R41) -> 0 | U41: =IFERROR(VLOOKUP(C41,'[1]FACTORES DE EMISIÓN'!$I$3:$L$80,2,0),0) -> 23500 | V41: =IFERROR(VLOOKUP(C41,'[1]FACTORES DE EMISIÓN'!$I$3:$L$80,3,0),0) -> kgCO2eq /kg | W41: =IFERROR((S41*U41)/1000,0) -> 0
F42: Costo/mes | S42: 0
B43: EXTINTOR | C43: Extintores R-123 / HCFC-123 | E43: =IFERROR(VLOOKUP(C43,'[1]FACTORES DE EMISIÓN'!$I$3:$L$80,4,0),0) -> kg | F43: Consumo | S43: 0 | T43: =COUNT(G43:R43) -> 0 | U43: =IFERROR(VLOOKUP(C43,'[1]FACTORES DE EMISIÓN'!$I$3:$L$80,2,0),0) -> 79 | V43: =IFERROR(VLOOKUP(C43,'[1]FACTORES DE EMISIÓN'!$I$3:$L$80,3,0),0) -> kgCO2eq /kg | W43: =IFERROR((S43*U43)/1000,0) -> 0
F44: Costo/mes | S44: 0
B45: TOTAL EMISIONES FUENTES FIJAS | W45: =SUM(W35:W44) -> 0
A47: 2020 | B47: TIPO DE COMBUSTIBLE / REFRIGERANTE / AISLANTE/ EXTINTOR | C47: NOMBRE | D47: FUENTE DE EMISIÓN | E47: UNIDAD | F47: CARACTERÍSTICA | G47: CONSUMO | T47: No. DE DATOS | U47: FACTOR DE EMISIÓN | V47: UNIDADES | W47: HUELLA DE CARBONO (TON CO2)
G48: ENE | H48: FEB | I48: MAR | J48: ABR | K48: MAY | L48: JUN | M48: JUL | N48: AGO | O48: SEP | P48: OCT | Q48: NOV | R48: DIC | S48: TOTAL
B49: SOLIDO | C49: Gas natural Genérico | E49: =IFERROR(VLOOKUP(C49,'[1]FACTORES DE EMISIÓN'!$I$3:$L$80,4,0),0) -> m3 | F49: Consumo | S49: =SUM(G49:R49) -> 0 | T49: =COUNT(G49:R49) -> 0 | U49: =IFERROR(VLOOKUP(C49,'[1]FACTORES DE EMISIÓN'!$I$3:$L$80,2,0),0) -> 1.9819536 | V49: =IFERROR(VLOOKUP(C49,'[1]FACTORES DE EMISIÓN'!$I$3:$L$80,3,0),0) -> kgCO2eq /m3 | W49: =IFERROR((S49*U49)/1000,0) -> 0
F50: Costo/mes | S50: 0
B51: GAS | C51: Gas Natural Usme | E51: =IFERROR(VLOOKUP(C51,'[1]FACTORES DE EMISIÓN'!$I$3:$L$80,4,0),0) -> m3 | F51: Consumo | S51: 0 | T51: =COUNT(G51:R51) -> 0 | U51: =IFERROR(VLOOKUP(C51,'[1]FACTORES DE EMISIÓN'!$I$3:$L$80,2,0),0) -> 2.1030249 | V51: =IFERROR(VLOOKUP(C51,'[1]FACTORES DE EMISIÓN'!$I$3:$L$80,3,0),0) -> kgCO2eq/m3 | W51: =IFERROR((S51*U51)/1000,0) -> 0
F52: Costo/mes | S52: 0
B53: REFRIGERANTE | C53: HFC-23 / R-23 | E53: =IFERROR(VLOOKUP(C53,'[1]FACTORES DE EMISIÓN'!$I$3:$L$80,4,0),0) -> kg | F53: Consumo | S53: 0 | T53: =COUNT(G53:R53) -> 0 | U53: =IFERROR(VLOOKUP(C53,'[1]FACTORES DE EMISIÓN'!$I$3:$L$80,2,0),0) -> 12400 | V53: =IFERROR(VLOOKUP(C53,'[1]FACTORES DE EMISIÓN'!$I$3:$L$80,3,0),0) -> kgCO2eq /kg | W53: =IFERROR((S53*U53)/1000,0) -> 0
F54: Costo/mes | S54: 0
B55: AISLANTE | C55: SF6 | E55: =IFERROR(VLOOKUP(C55,'[1]FACTORES DE EMISIÓN'!$I$3:$L$80,4,0),0) -> kg | F55: Consumo | N55: , | S55: 0 | T55: =COUNT(G55:R55) -> 0 | U55: =IFERROR(VLOOKUP(C55,'[1]FACTORES DE EMISIÓN'!$I$3:$L$80,2,0),0) -> 23500 | V55: =IFERROR(VLOOKUP(C55,'[1]FACTORES DE EMISIÓN'!$I$3:$L$80,3,0),0) -> kgCO2eq /kg | W55: =IFERROR((S55*U55)/1000,0) -> 0
F56: Costo/mes | S56: 0
B57: EXTINTOR | C57: Extintores R-123 / HCFC-123 | E57: =IFERROR(VLOOKUP(C57,'[1]FACTORES DE EMISIÓN'!$I$3:$L$80,4,0),0) -> kg | F57: Consumo | S57: 0 | T57: =COUNT(G57:R57) -> 0 | U57: =IFERROR(VLOOKUP(C57,'[1]FACTORES DE EMISIÓN'!$I$3:$L$80,2,0),0) -> 79 | V57: =IFERROR(VLOOKUP(C57,'[1]FACTORES DE EMISIÓN'!$I$3:$L$80,3,0),0) -> kgCO2eq /kg | W57: =IFERROR((S57*U57)/1000,0) -> 0
F58: Costo/mes | S58: 0
B59: TOTAL EMISIONES FUENTES FIJAS | W59: =SUM(W49:W58) -> 0
A61: 2021 | B61: TIPO DE COMBUSTIBLE / REFRIGERANTE / AISLANTE/ EXTINTOR | C61: NOMBRE | D61: FUENTE DE EMISIÓN | E61: UNIDAD | F61: CARACTERÍSTICA | G61: CONSUMO | T61: No. DE DATOS | U61: FACTOR DE EMISIÓN | V61: UNIDADES | W61: HUELLA DE CARBONO (TON CO2)
G62: ENE | H62: FEB | I62: MAR | J62: ABR | K62: MAY | L62: JUN | M62: JUL | N62: AGO | O62: SEP | P62: OCT | Q62: NOV | R62: DIC | S62: TOTAL
B63: SOLIDO | C63: Carbón genérico | E63: =IFERROR(VLOOKUP(C63,'[1]FACTORES DE EMISIÓN'!$I$3:$L$80,4,0),0) -> kg | F63: Consumo | S63: =SUM(G63:R63) -> 0 | T63: =COUNT(G63:R63) -> 0 | U63: =IFERROR(VLOOKUP(C63,'[1]FACTORES DE EMISIÓN'!$I$3:$L$80,2,0),0) -> 2547.050492 | V63: =IFERROR(VLOOKUP(C63,'[1]FACTORES DE EMISIÓN'!$I$3:$L$80,3,0),0) -> kgCO2eq/kg | W63: =IFERROR((S63*U63)/1000,0) -> 0
F64: Costo/mes | S64: 0
B65: GAS | C65: Biogás Genérico | E65: =IFERROR(VLOOKUP(C65,'[1]FACTORES DE EMISIÓN'!$I$3:$L$80,4,0),0) -> m3 | F65: Consumo | S65: 0 | T65: =COUNT(G65:R65) -> 0 | U65: =IFERROR(VLOOKUP(C65,'[1]FACTORES DE EMISIÓN'!$I$3:$L$80,2,0),0) -> 1.857199 | V65: =IFERROR(VLOOKUP(C65,'[1]FACTORES DE EMISIÓN'!$I$3:$L$80,3,0),0) -> kgCO2eq/m3 | W65: =IFERROR((S65*U65)/1000,0) -> 0
F66: Costo/mes | S66: 0
B67: REFRIGERANTE | C67: HFC-23 / R-23 | E67: =IFERROR(VLOOKUP(C67,'[1]FACTORES DE EMISIÓN'!$I$3:$L$80,4,0),0) -> kg | F67: Consumo | S67: 0 | T67: =COUNT(G67:R67) -> 0 | U67: =IFERROR(VLOOKUP(C67,'[1]FACTORES DE EMISIÓN'!$I$3:$L$80,2,0),0) -> 12400 | V67: =IFERROR(VLOOKUP(C67,'[1]FACTORES DE EMISIÓN'!$I$3:$L$80,3,0),0) -> kgCO2eq /kg | W67: =IFERROR((S67*U67)/1000,0) -> 0
F68: Costo/mes | S68: 0
B69: AISLANTE | C69: SF6 | E69: =IFERROR(VLOOKUP(C69,'[1]FACTORES DE EMISIÓN'!$I$3:$L$80,4,0),0) -> kg | F69: Consumo | N69: , | S69: 0 | T69: =COUNT(G69:R69) -> 0 | U69: =IFERROR(VLOOKUP(C69,'[1]FACTORES DE EMISIÓN'!$I$3:$L$80,2,0),0) -> 23500 | V69: =IFERROR(VLOOKUP(C69,'[1]FACTORES DE EMISIÓN'!$I$3:$L$80,3,0),0) -> kgCO2eq /kg | W69: =IFERROR((S69*U69)/1000,0) -> 0
F70: Costo/mes | S70: 0
B71: EXTINTOR | C71: Extintores R-123 / HCFC-123 | E71: =IFERROR(VLOOKUP(C71,'[1]FACTORES DE EMISIÓN'!$I$3:$L$80,4,0),0) -> kg | F71: Consumo | S71: 0 | T71: =COUNT(G71:R71) -> 0 | U71: =IFERROR(VLOOKUP(C71,'[1]FACTORES DE EMISIÓN'!$I$3:$L$80,2,0),0) -> 79 | V71: =IFERROR(VLOOKUP(C71,'[1]FACTORES DE EMISIÓN'!$I$3:$L$80,3,0),0) -> kgCO2eq /kg | W71: =IFERROR((S71*U71)/1000,0) -> 0
F72: Costo/mes | S72: 0
B73: TOTAL EMISIONES FUENTES FIJAS | W73: =SUM(W63:W72) -> 0
A75: FUENTES MÓVILES
A76: 2017 | B76: TIPO DE COMBUSTIBLE / REFRIGERANTE / AISLANTE/ EXTINTOR | C76: NOMBRE | D76: FUENTE DE EMISIÓN | E76: UNIDAD | F76: CARACTERÍSTICA | G76: CONSUMO | T76: No. DE DATOS | U76: FACTOR DE EMISIÓN | V76: UNIDADES | W76: HUELLA DE CARBONO (TON CO2)
G77: ENE | H77: FEB | I77: MAR | J77: ABR | K77: MAY | L77: JUN | M77: JUL | N77: AGO | O77: SEP | P77: OCT | Q77: NOV | R77: DIC | S77: TOTAL
B78: REFRIGERANTE | C78: Isobutano / R-600A | E78: =IFERROR(VLOOKUP(C78,'[1]FACTORES DE EMISIÓN'!$N$3:$Q$46,4,0),0) -> kg | F78: Consumo | S78: =SUM(G78:R78) -> 0 | T78: =COUNT(G78:R78) -> 0 | U78: =IFERROR(VLOOKUP(C78,'[1]FACTORES DE EMISIÓN'!$N$3:$Q$46,2,0),0) -> 1 | V78: =IFERROR(VLOOKUP(C78,'[1]FACTORES DE EMISIÓN'!$N$3:$Q$46,3,0),0) -> kgCO2eq/kg | W78: =IFERROR((S78*U78)/1000,0) -> 0
F79: km/mes | S79: =SUM(G79:R79) -> 0
F80: Costo/mes | S80: =SUM(G80:R80) -> 0
B81: GAS | C81: Biogás Genérico | E81: =IFERROR(VLOOKUP(C81,'[1]FACTORES DE EMISIÓN'!$I$3:$L$80,4,0),0) -> m3 | F81: Consumo | S81: 0 | T81: =COUNT(G81:R81) -> 0 | U81: =IFERROR(VLOOKUP(C81,'[1]FACTORES DE EMISIÓN'!$I$3:$L$80,2,0),0) -> 1.857199 | V81: =IFERROR(VLOOKUP(C81,'[1]FACTORES DE EMISIÓN'!$I$3:$L$80,3,0),0) -> kgCO2eq/m3 | W81: =IFERROR((S81*U81)/1000,0) -> 0
F82: km/mes | S82: 0
F83: Costo/mes | S83: 0
B84: SOLIDO | C84: Carbón Guajira Cesar | E84: =IFERROR(VLOOKUP(C84,'[1]FACTORES DE EMISIÓN'!$I$3:$L$80,4,0),0) -> kg | F84: Consumo | S84: 0 | T84: =COUNT(G84:R84) -> 0 | U84: =IFERROR(VLOOKUP(C84,'[1]FACTORES DE EMISIÓN'!$I$3:$L$80,2,0),0) -> 2172.082805 | V84: =IFERROR(VLOOKUP(C84,'[1]FACTORES DE EMISIÓN'!$I$3:$L$80,3,0),0) -> kgCO2eq/kg | W84: =IFERROR((S84*U84)/1000,0) -> 0
F85: km/mes | S85: 0
F86: Costo/mes | S86: 0
B87: GAS | C87: Gas natural Genérico | E87: =IFERROR(VLOOKUP(C87,'[1]FACTORES DE EMISIÓN'!$I$3:$L$80,4,0),0) -> m3 | F87: Consumo | N87: , | S87: 0 | T87: =COUNT(G87:R87) -> 0 | U87: =IFERROR(VLOOKUP(C87,'[1]FACTORES DE EMISIÓN'!$I$3:$L$80,2,0),0) -> 1.9819536 | V87: =IFERROR(VLOOKUP(C87,'[1]FACTORES DE EMISIÓN'!$I$3:$L$80,3,0),0) -> kgCO2eq /m3 | W87: =IFERROR((S87*U87)/1000,0) -> 0
F88: km/mes | S88: 0
F89: Costo/mes | S89: 0
E90: =IFERROR(VLOOKUP(C90,'[1]FACTORES DE EMISIÓN'!$I$3:$L$80,4,0),0) -> 0 | F90: Consumo | S90: 0 | T90: =COUNT(G90:R90) -> 0 | U90: =IFERROR(VLOOKUP(C90,'[1]FACTORES DE EMISIÓN'!$I$3:$L$80,2,0),0) -> 0 | V90: =IFERROR(VLOOKUP(C90,'[1]FACTORES DE EMISIÓN'!$I$3:$L$80,3,0),0) -> 0 | W90: =IFERROR((S90*U90)/1000,0) -> 0
F91: km/mes | S91: 0
F92: Costo/mes | S92: 0
B93: TOTAL EMISIONES FUENTES MÓVILES | W93: =SUM(W78:W92) -> 0
A95: 2018 | B95: TIPO DE COMBUSTIBLE / REFRIGERANTE / AISLANTE/ EXTINTOR | C95: NOMBRE | D95: FUENTE DE EMISIÓN | E95: UNIDAD | F95: CARACTERÍSTICA | G95: CONSUMO | T95: No. DE DATOS | U95: FACTOR DE EMISIÓN | V95: UNIDADES | W95: HUELLA DE CARBONO (TON CO2)
G96: ENE | H96: FEB | I96: MAR | J96: ABR | K96: MAY | L96: JUN | M96: JUL | N96: AGO | O96: SEP | P96: OCT | Q96: NOV | R96: DIC | S96: TOTAL
B97: REFRIGERANTE | C97: Propano Alta Calidad / R-290 | E97: =IFERROR(VLOOKUP(C97,'[1]FACTORES DE EMISIÓN'!$N$3:$Q$46,4,0),0) -> kg | F97: Consumo | S97: =SUM(G97:R97) -> 0 | T97: =COUNT(G97:R97) -> 0 | U97: =IFERROR(VLOOKUP(C97,'[1]FACTORES DE EMISIÓN'!$N$3:$Q$46,2,0),0) -> 3 | V97: =IFERROR(VLOOKUP(C97,'[1]FACTORES DE EMISIÓN'!$N$3:$Q$46,3,0),0) -> kgCO2eq/kg | W97: =IFERROR((S97*U97)/1000,0) -> 0
F98: km/mes | S98: 0
F99: Costo/mes | S99: 0
B100: REFRIGERANTE | C100: Propano Alta Calidad / R-290 | E100: =IFERROR(VLOOKUP(C100,'[1]FACTORES DE EMISIÓN'!$N$3:$Q$46,4,0),0) -> kg | F100: Consumo | S100: 0 | T100: =COUNT(G100:R100) -> 0 | U100: =IFERROR(VLOOKUP(C100,'[1]FACTORES DE EMISIÓN'!$N$3:$Q$46,2,0),0) -> 3 | V100: =IFERROR(VLOOKUP(C100,'[1]FACTORES DE EMISIÓN'!$N$3:$Q$46,3,0),0) -> kgCO2eq/kg | W100: =IFERROR((S100*U100)/1000,0) -> 0
F101: km/mes | S101: 0
F102: Costo/mes | S102: 0
B103: REFRIGERANTE | C103: Propano Alta Calidad / R-290 | E103: =IFERROR(VLOOKUP(C103,'[1]FACTORES DE EMISIÓN'!$N$3:$Q$46,4,0),0) -> kg | F103: Consumo | S103: 0 | T103: =COUNT(G103:R103) -> 0 | U103: =IFERROR(VLOOKUP(C103,'[1]FACTORES DE EMISIÓN'!$N$3:$Q$46,2,0),0) -> 3 | V103: =IFERROR(VLOOKUP(C103,'[1]FACTORES DE EMISIÓN'!$N$3:$Q$46,3,0),0) -> kgCO2eq/kg | W103: =IFERROR((S103*U103)/1000,0) -> 0
F104: km/mes | S104: 0
F105: Costo/mes | S105: 0
B106: SOLIDO | C106: Carbón Guajira Cesar | E106: =IFERROR(VLOOKUP(C106,'[1]FACTORES DE EMISIÓN'!$I$3:$L$80,4,0),0) -> kg | F106: Consumo | N106: , | S106: 0 | T106: =COUNT(G106:R106) -> 0 | U106: =IFERROR(VLOOKUP(C106,'[1]FACTORES DE EMISIÓN'!$I$3:$L$80,2,0),0) -> 2172.082805 | V106: =IFERROR(VLOOKUP(C106,'[1]FACTORES DE EMISIÓN'!$I$3:$L$80,3,0),0) -> kgCO2eq/kg | W106: =IFERROR((S106*U106)/1000,0) -> 0
F107: km/mes | S107: 0
F108: Costo/mes | S108: 0
B109: LIQUIDO | C109: Combustóleo | E109: =IFERROR(VLOOKUP(C109,'[1]FACTORES DE EMISIÓN'!$I$3:$L$80,4,0),0) -> gal | F109: Consumo | S109: 0 | T109: =COUNT(G109:R109) -> 0 | U109: =IFERROR(VLOOKUP(C109,'[1]FACTORES DE EMISIÓN'!$I$3:$L$80,2,0),0) -> 11.6270356 | V109: =IFERROR(VLOOKUP(C109,'[1]FACTORES DE EMISIÓN'!$I$3:$L$80,3,0),0) -> kgCO2eq/gal | W109: =IFERROR((S109*U109)/1000,0) -> 0
F110: km/mes | S110: 0
F111: Costo/mes | S111: 0
B112: TOTAL EMISIONES FUENTES MÓVILES | W112: =SUM(W97:W111) -> 0
A114: 2019 | B114: TIPO DE COMBUSTIBLE / REFRIGERANTE / AISLANTE/ EXTINTOR | C114: NOMBRE | D114: FUENTE DE EMISIÓN | E114: UNIDAD | F114: CARACTERÍSTICA | G114: CONSUMO | T114: No. DE DATOS | U114: FACTOR DE EMISIÓN | V114: UNIDADES | W114: HUELLA DE CARBONO (TON CO2)
G115: ENE | H115: FEB | I115: MAR | J115: ABR | K115: MAY | L115: JUN | M115: JUL | N115: AGO | O115: SEP | P115: OCT | Q115: NOV | R115: DIC | S115: TOTAL
B116: GAS | C116: Biogás Genérico | E116: =IFERROR(VLOOKUP(C116,'[1]FACTORES DE EMISIÓN'!$I$3:$L$80,4,0),0) -> m3 | F116: Consumo | S116: =SUM(G116:R116) -> 0 | T116: =COUNT(G116:R116) -> 0 | U116: =IFERROR(VLOOKUP(C116,'[1]FACTORES DE EMISIÓN'!$I$3:$L$80,2,0),0) -> 1.857199 | V116: =IFERROR(VLOOKUP(C116,'[1]FACTORES DE EMISIÓN'!$I$3:$L$80,3,0),0) -> kgCO2eq/m3 | W116: =IFERROR((S116*U116)/1000,0) -> 0
F117: km/mes | S117: 0
F118: Costo/mes | S118: 0
B119: SOLIDO | C119: Madera Acacia | E119: =IFERROR(VLOOKUP(C119,'[1]FACTORES DE EMISIÓN'!$I$3:$L$80,4,0),0) -> kg | F119: Consumo | S119: 0 | T119: =COUNT(G119:R119) -> 0 | U119: =IFERROR(VLOOKUP(C119,'[1]FACTORES DE EMISIÓN'!$I$3:$L$80,2,0),0) -> 35.5186 | V119: =IFERROR(VLOOKUP(C119,'[1]FACTORES DE EMISIÓN'!$I$3:$L$80,3,0),0) -> kgCO2eq/kg | W119: =IFERROR((S119*U119)/1000,0) -> 0
F120: km/mes | S120: 0
F121: Costo/mes | S121: 0
B122: REFRIGERANTE | C122: Halon 1301 / CBrF3 | E122: =IFERROR(VLOOKUP(C122,'[1]FACTORES DE EMISIÓN'!$I$3:$L$80,4,0),0) -> kg | F122: Consumo | S122: 0 | T122: =COUNT(G122:R122) -> 0 | U122: =IFERROR(VLOOKUP(C122,'[1]FACTORES DE EMISIÓN'!$I$3:$L$80,2,0),0) -> 6290 | V122: =IFERROR(VLOOKUP(C122,'[1]FACTORES DE EMISIÓN'!$I$3:$L$80,3,0),0) -> kgCO2eq /kg | W122: =IFERROR((S122*U122)/1000,0) -> 0
F123: km/mes | S123: 0
F124: Costo/mes | S124: 0
B125: LIQUIDOS | C125: Jet A1 | E125: =IFERROR(VLOOKUP(C125,'[1]FACTORES DE EMISIÓN'!$I$3:$L$80,4,0),0) -> gal | F125: Consumo | N125: , | S125: 0 | T125: =COUNT(G125:R125) -> 0 | U125: =IFERROR(VLOOKUP(C125,'[1]FACTORES DE EMISIÓN'!$I$3:$L$80,2,0),0) -> 9.8422979 | V125: =IFERROR(VLOOKUP(C125,'[1]FACTORES DE EMISIÓN'!$I$3:$L$80,3,0),0) -> kgCO2eq/gal | W125: =IFERROR((S125*U125)/1000,0) -> 0
F126: km/mes | S126: 0
F127: Costo/mes | S127: 0
B128: GAS | C128: Biogás Genérico | E128: =IFERROR(VLOOKUP(C128,'[1]FACTORES DE EMISIÓN'!$I$3:$L$80,4,0),0) -> m3 | F128: Consumo | S128: 0 | T128: =COUNT(G128:R128) -> 0 | U128: =IFERROR(VLOOKUP(C128,'[1]FACTORES DE EMISIÓN'!$I$3:$L$80,2,0),0) -> 1.857199 | V128: =IFERROR(VLOOKUP(C128,'[1]FACTORES DE EMISIÓN'!$I$3:$L$80,3,0),0) -> kgCO2eq/m3 | W128: =IFERROR((S128*U128)/1000,0) -> 0
F129: km/mes | S129: 0
F130: Costo/mes | S130: 0
B131: TOTAL EMISIONES FUENTES MÓVILES | W131: =SUM(W116:W130) -> 0
A133: 2020 | B133: TIPO DE COMBUSTIBLE / REFRIGERANTE / AISLANTE/ EXTINTOR | C133: NOMBRE | D133: FUENTE DE EMISIÓN | E133: UNIDAD | F133: CARACTERÍSTICA | G133: CONSUMO | T133: No. DE DATOS | U133: FACTOR DE EMISIÓN | V133: UNIDADES | W133: HUELLA DE CARBONO (TON CO2)
G134: ENE | H134: FEB | I134: MAR | J134: ABR | K134: MAY | L134: JUN | M134: JUL | N134: AGO | O134: SEP | P134: OCT | Q134: NOV | R134: DIC | S134: TOTAL
B135: GAS | C135: Biogás Genérico | E135: =IFERROR(VLOOKUP(C135,'[1]FACTORES DE EMISIÓN'!$I$3:$L$80,4,0),0) -> m3 | F135: Consumo | S135: =SUM(G135:R135) -> 0 | T135: =COUNT(G135:R135) -> 0 | U135: =IFERROR(VLOOKUP(C135,'[1]FACTORES DE EMISIÓN'!$I$3:$L$80,2,0),0) -> 1.857199 | V135: =IFERROR(VLOOKUP(C135,'[1]FACTORES DE EMISIÓN'!$I$3:$L$80,3,0),0) -> kgCO2eq/m3 | W135: =IFERROR((S135*U135)/1000,0) -> 0
F136: km/mes | S136: 0
F137: Costo/mes | S137: 0
B138: LIQUIDO | C138: Combustóleo | E138: =IFERROR(VLOOKUP(C138,'[1]FACTORES DE EMISIÓN'!$I$3:$L$80,4,0),0) -> gal | F138: Consumo | S138: 0 | T138: =COUNT(G138:R138) -> 0 | U138: =IFERROR(VLOOKUP(C138,'[1]FACTORES DE EMISIÓN'!$I$3:$L$80,2,0),0) -> 11.6270356 | V138: =IFERROR(VLOOKUP(C138,'[1]FACTORES DE EMISIÓN'!$I$3:$L$80,3,0),0) -> kgCO2eq/gal | W138: =IFERROR((S138*U138)/1000,0) -> 0
F139: km/mes | S139: 0
F140: Costo/mes | S140: 0
B141: REFRIGERANTE | C141: Isobutano / R-600A | E141: =IFERROR(VLOOKUP(C141,'[1]FACTORES DE EMISIÓN'!$I$3:$L$80,4,0),0) -> kg | F141: Consumo | S141: 0 | T141: =COUNT(G141:R141) -> 0 | U141: =IFERROR(VLOOKUP(C141,'[1]FACTORES DE EMISIÓN'!$I$3:$L$80,2,0),0) -> 1 | V141: =IFERROR(VLOOKUP(C141,'[1]FACTORES DE EMISIÓN'!$I$3:$L$80,3,0),0) -> kgCO2eq /kg | W141: =IFERROR((S141*U141)/1000,0) -> 0
F142: km/mes | S142: 0
F143: Costo/mes | S143: 0
B144: SOLIDO | C144: Carbón Guajira | E144: =IFERROR(VLOOKUP(C144,'[1]FACTORES DE EMISIÓN'!$I$3:$L$80,4,0),0) -> kg | F144: Consumo | N144: , | S144: 0 | T144: =COUNT(G144:R144) -> 0 | U144: =IFERROR(VLOOKUP(C144,'[1]FACTORES DE EMISIÓN'!$I$3:$L$80,2,0),0) -> 2907.001378 | V144: =IFERROR(VLOOKUP(C144,'[1]FACTORES DE EMISIÓN'!$I$3:$L$80,3,0),0) -> kgCO2eq/kg | W144: =IFERROR((S144*U144)/1000,0) -> 0
F145: km/mes | S145: 0
F146: Costo/mes | S146: 0
B147: LIQUIDOS | E147: =IFERROR(VLOOKUP(C147,'[1]FACTORES DE EMISIÓN'!$I$3:$L$80,4,0),0) -> 0 | F147: Consumo | S147: 0 | T147: =COUNT(G147:R147) -> 0 | U147: =IFERROR(VLOOKUP(C147,'[1]FACTORES DE EMISIÓN'!$I$3:$L$80,2,0),0) -> 0 | V147: =IFERROR(VLOOKUP(C147,'[1]FACTORES DE EMISIÓN'!$I$3:$L$80,3,0),0) -> 0 | W147: =IFERROR((S147*U147)/1000,0) -> 0
F148: km/mes | S148: 0
F149: Costo/mes | S149: 0
B150: TOTAL EMISIONES FUENTES MÓVILES | W150: =SUM(W135:W149) -> 0
A152: 2021 | B152: TIPO DE COMBUSTIBLE / REFRIGERANTE / AISLANTE/ EXTINTOR | C152: NOMBRE | D152: FUENTE DE EMISIÓN | E152: UNIDAD | F152: CARACTERÍSTICA | G152: CONSUMO | T152: No. DE DATOS | U152: FACTOR DE EMISIÓN | V152: UNIDADES | W152: HUELLA DE CARBONO (TON CO2)
G153: ENE | H153: FEB | I153: MAR | J153: ABR | K153: MAY | L153: JUN | M153: JUL | N153: AGO | O153: SEP | P153: OCT | Q153: NOV | R153: DIC | S153: TOTAL
B154: GAS | C154: Biogás Genérico | E154: =IFERROR(VLOOKUP(C154,'[1]FACTORES DE EMISIÓN'!$I$3:$L$80,4,0),0) -> m3 | F154: Consumo | S154: =SUM(G154:R154) -> 0 | T154: =COUNT(G154:R154) -> 0 | U154: =IFERROR(VLOOKUP(C154,'[1]FACTORES DE EMISIÓN'!$I$3:$L$80,2,0),0) -> 1.857199 | V154: =IFERROR(VLOOKUP(C154,'[1]FACTORES DE EMISIÓN'!$I$3:$L$80,3,0),0) -> kgCO2eq/m3 | W154: =IFERROR((S154*U154)/1000,0) -> 0
F155: km/mes | S155: 0
F156: Costo/mes | S156: 0
B157: LIQUIDO | C157: Jet A1 | E157: =IFERROR(VLOOKUP(C157,'[1]FACTORES DE EMISIÓN'!$I$3:$L$80,4,0),0) -> gal | F157: Consumo | S157: 0 | T157: =COUNT(G157:R157) -> 0 | U157: =IFERROR(VLOOKUP(C157,'[1]FACTORES DE EMISIÓN'!$I$3:$L$80,2,0),0) -> 9.8422979 | V157: =IFERROR(VLOOKUP(C157,'[1]FACTORES DE EMISIÓN'!$I$3:$L$80,3,0),0) -> kgCO2eq/gal | W157: =IFERROR((S157*U157)/1000,0) -> 0
F158: km/mes | S158: 0
F159: Costo/mes | S159: 0
B160: GAS | C160: Gas Natural Guajira | E160: =IFERROR(VLOOKUP(C160,'[1]FACTORES DE EMISIÓN'!$I$3:$L$80,4,0),0) -> m3 | F160: Consumo | S160: 0 | T160: =COUNT(G160:R160) -> 0 | U160: =IFERROR(VLOOKUP(C160,'[1]FACTORES DE EMISIÓN'!$I$3:$L$80,2,0),0) -> 1.8408125 | V160: =IFERROR(VLOOKUP(C160,'[1]FACTORES DE EMISIÓN'!$I$3:$L$80,3,0),0) -> kgCO2eq /m3 | W160: =IFERROR((S160*U160)/1000,0) -> 0
F161: km/mes | S161: 0
F162: Costo/mes | S162: 0
B163: GAS | C163: Gas natural Genérico | E163: =IFERROR(VLOOKUP(C163,'[1]FACTORES DE EMISIÓN'!$I$3:$L$80,4,0),0) -> m3 | F163: Consumo | N163: , | S163: 0 | T163: =COUNT(G163:R163) -> 0 | U163: =IFERROR(VLOOKUP(C163,'[1]FACTORES DE EMISIÓN'!$I$3:$L$80,2,0),0) -> 1.9819536 | V163: =IFERROR(VLOOKUP(C163,'[1]FACTORES DE EMISIÓN'!$I$3:$L$80,3,0),0) -> kgCO2eq /m3 | W163: =IFERROR((S163*U163)/1000,0) -> 0
F164: km/mes | S164: 0
F165: Costo/mes | S165: 0
B166: SOLIDO | C166: Carbón Cundinamarca | E166: =IFERROR(VLOOKUP(C166,'[1]FACTORES DE EMISIÓN'!$I$3:$L$80,4,0),0) -> kg | F166: Consumo | S166: 0 | T166: =COUNT(G166:R166) -> 0 | U166: =IFERROR(VLOOKUP(C166,'[1]FACTORES DE EMISIÓN'!$I$3:$L$80,2,0),0) -> 2226.86992 | V166: =IFERROR(VLOOKUP(C166,'[1]FACTORES DE EMISIÓN'!$I$3:$L$80,3,0),0) -> kgCO2eq/kg | W166: =IFERROR((S166*U166)/1000,0) -> 0
F167: km/mes | S167: 0
F168: Costo/mes | S168: 0
B169: TOTAL EMISIONES FUENTES MÓVILES | W169: =SUM(W154:W168) -> 0

Sheet ALCANCE 2
F1: CÁLCULO DE HUELLA DE CARBONO - RAMA JUDICIAL
B5: UNIDADES DE PRODUCCIÓN
B7: UNIDAD DE PRODUCCIÓN A (Ej: ton, kg, personas, etc): | I7: Indique el nombre de la unidad de producción
B8: AÑO (Escoja los años a calcular) | D8: CANTIDAD MENSUAL
D9: Enero | E9: Febrero | F9: Marzo | G9: Abril | H9: Mayo | I9: Junio | J9: Julio | K9: Agosto | L9: Septiembre | M9: Octubre | N9: Noviembre | O9: Diciembre | P9: Total
B10: =B21 -> 2017 | P10: =D10+E10+F10+G10+H10+I10+J10+K10+L10+M10+N10+O10 -> 0
B11: =B23 -> 2018 | P11: =D11+E11+F11+G11+H11+I11+J11+K11+L11+M11+N11+O11 -> 0
B12: =B25 -> 2019 | P12: =D12+E12+F12+G12+H12+I12+J12+K12+L12+M12+N12+O12 -> 0
B13: =B27 -> 2020 | P13: =D13+E13+F13+G13+H13+I13+J13+K13+L13+M13+N13+O13 -> 0
B14: =B29 -> 2021 | P14: =D14+E14+F14+G14+H14+I14+J14+K14+L14+M14+N14+O14 -> 0
B16: ENERGÍA ELÉCTRICA ADQUIRIDA
B18: AÑO | C18: CARACTERÍSTICA | D18: ELECTRICIDAD ADQUIRIDA (kWh)
D19: Enero | E19: Febrero | F19: Marzo | G19: Abril | H19: Mayo | I19: Junio | J19: Julio | K19: Agosto | L19: Septiembre | M19: Octubre | N19: Noviembre | O19: Diciembre | P19: Total (kWh) | Q19: No. DE DATOS | R19: FACTOR DE EMISIÓN | S19: UNIDADES FACTOR EMISIÓN | T19: HUELLA DE CARBONO (TON CO2)
B21: 2017 | C21: Consumo (KWh) | P21: =SUM(D21:O21) -> 0 | Q21: =COUNT(D21:O21) -> 0 | R21: 0.21 | S21: Kg CO2/kWh | T21: =(P21*R21)/1000 -> 0
C22: Costo total mes (Ver factura) | P22: 0
B23: 2018 | C23: Consumo (KWh) | P23: 0 | Q23: =COUNT(D23:O23) -> 0 | R23: 0.21 | S23: Kg CO2/kWh | T23: =(P23*R23)/1000 -> 0
C24: Costo total mes (Ver factura) | P24: 0
B25: 2019 | C25: Consumo (KWh) | P25: 0 | Q25: =COUNT(D25:O25) -> 0 | R25: 0.21 | S25: Kg CO2/kWh | T25: =(P25*R25)/1000 -> 0
C26: Costo total mes (Ver factura) | P26: 0
B27: 2020 | C27: Consumo (KWh) | O27: 100 | P27: 100 | Q27: =COUNT(D27:O27) -> 1 | R27: 0.21 | S27: Kg CO2/kWh | T27: =(P27*R27)/1000 -> 0.021
C28: Costo total mes (Ver factura) | O28: 20 | P28: 20
B29: 2021 | C29: Consumo (KWh) | D29: 100 | E29: 120 | F29: 200 | G29: 5 | H29: 30 | P29: =SUM(D29:O29) -> 455 | Q29: =COUNT(D29:O29) -> 5 | R29: 0.166 | S29: Kg CO2/kWh | T29: =(P29*R29)/1000 -> 0.07553
C30: Costo total mes (Ver factura) | M30: 5050 | N30: 200 | O30: 300 | P30: =SUM(D30:O30) -> 5550

Sheet ALCANCE 3
F1: CÁLCULO DE HUELLA DE CARBONO - RAMA JUDICIAL
A3: TRANSPORTE URBANO
A4: 2017 | B4: MODO DE TRANSPORTE | D4: CAPACIDAD DE CARGA | E4: UNIDAD | F4: Km recorridos , número de usuarios y huella de carbono por mes | S4: No. DE DATOS | T4: FACTOR DE EMISIÓN | U4: UNIDADES DEL FACTOR | V4: HUELLA DE CARBONO (TON CO2 eq)
F5: ENE | G5: FEB | H5: MAR | I5: ABR | J5: MAY | K5: JUN | L5: JUL | M5: AGO | N5: SEP | O5: OCT | P5: NOV | Q5: DIC | R5: TOTAL
B6: Escoja la opción que corresponda | F6: Digite la cantidad de Km recorridos por mes y el número de usuarios por cada tipo de transporte
B7: Vehículo propio TWC;>1400c.c | D7: =+VLOOKUP(B7,'[1]FACTORES DE EMISIÓN'!$BV$5:$BY$8,4,FALSE) -> 1 | E7: km recorridos | F7: 3500 | G7: 3500 | H7: 3500 | I7: 3500 | J7: 3500 | K7: 3500 | L7: 3500 | M7: 3500 | N7: 3500 | O7: 3500 | P7: 3500 | Q7: 3500 | R7: =SUM(F7:Q7) -> 42000 | S7: =COUNT(F7:Q7) -> 12 | T7: =IFERROR(VLOOKUP(B7,'[1]FACTORES DE EMISIÓN'!$BV$5:$BX$8,3,0),0) -> 218 | U7: g/km | V7: =+((R7*T7)/D7)/1000000 -> 9.156
E8: N° usuarios | F8: 3 | G8: 3 | R8: =SUM(F8:Q8) -> 6 | S8: =COUNT(F8:Q8) -> 2
E9: Huella (g Co2 eq) | F9: =+((F7*$T$7)/D7) -> 763000 | G9: =+((G7*$T$7)/$D$7) -> 763000 | H9: =+((H7*$T$7)/$D$7) -> 763000 | I9: 763000 | J9: 763000 | K9: 763000 | L9: 763000 | M9: 763000 | N9: 763000 | O9: 763000 | P9: 763000 | Q9: 763000 | R9: =SUM(F9:Q9) -> 9156000 | S9: 12
B10: Motocicleta 4 tiempos | D10: =+VLOOKUP(B10,'[1]FACTORES DE EMISIÓN'!$BV$5:$BY$8,4,FALSE) -> 1 | E10: km recorridos | F10: 2552 | G10: 424 | R10: =SUM(F10:Q10) -> 2976 | S10: 2 | T10: =IFERROR(VLOOKUP(B10,'[1]FACTORES DE EMISIÓN'!$BV$5:$BX$8,3,0),0) -> 33.11 | U10: g/km | V10: =+((R10*T10)/D10)/1000000 -> 0.09853536
E11: N° usuarios | F11: 5 | G11: 1 | R11: 6 | S11: 2
E12: Huella (g Co2 eq) | F12: =+((F10*$T$10)/$D$10) -> 84496.72 | G12: =+((G10*$T$10)/$D$10) -> 14038.64 | H12: =+((H10*$T$10)/$D$10) -> 0 | I12: 0 | J12: 0 | K12: 0 | L12: 0 | M12: 0 | N12: 0 | O12: 0 | P12: 0 | Q12: 0 | R12: 98535.36 | S12: 12
B13: Vehículo propio TWC;>1400c.c | D13: =+VLOOKUP(B13,'[1]FACTORES DE EMISIÓN'!$BV$5:$BY$8,4,FALSE) -> 1 | E13: km recorridos | F13: 2304 | G13: 2304 | H13: 2304 | I13: 2304 | J13: 2304 | K13: 2304 | L13: 2304 | M13: 2304 | N13: 2304 | O13: 2304 | P13: 2304 | Q13: 2304 | R13: 27648 | S13: 12 | T13: =IFERROR(VLOOKUP(B13,'[1]FACTORES DE EMISIÓN'!$BV$5:$BX$8,3,0),0) -> 218 | U13: g/km | V13: =+((R13*T13)/D13)/1000000 -> 6.027264
E14: N° usuarios | F14: 3 | G14: 1 | R14: 4 | S14: 2
E15: Huella (g Co2 eq) | F15: =+((F13*$T$13)/$D$13) -> 502272 | G15: =+((G13*$T$13)/$D$13) -> 502272 | H15: 502272 | I15: 502272 | J15: 502272 | K15: 502272 | L15: 502272 | M15: 502272 | N15: 502272 | O15: 502272 | P15: 502272 | Q15: 502272 | R15: =SUM(F15:Q15) -> 6027264 | S15: 12
B16: SITP <6000 c.c. | D16: =+VLOOKUP(B16,'[1]FACTORES DE EMISIÓN'!$BV$5:$BY$8,4,FALSE) -> 40 | E16: km recorridos | F16: 1752 | G16: 1752 | H16: 1752 | I16: 1752 | J16: 1752 | K16: 1752 | L16: 1752 | M16: 1752 | N16: 1752 | O16: 1752 | P16: 1752 | Q16: 1752 | R16: 21024 | S16: 12 | T16: =IFERROR(VLOOKUP(B16,'[1]FACTORES DE EMISIÓN'!$BV$5:$BX$8,3,0),0) -> 787.03 | U16: g/km | V16: =+((R16*T16)/D16)/1000000 -> 0.413662968
E17: N° usuarios | F17: 2 | G17: 8 | R17: 10 | S17: 2
E18: Huella (g Co2 eq) | F18: =+((F16*$T$16)/$D$16) -> 34471.914 | G18: =+((G16*$T$16)/$D$16) -> 34471.914 | H18: 34471.914 | I18: 34471.914 | J18: 34471.914 | K18: 34471.914 | L18: 34471.914 | M18: 34471.914 | N18: 34471.914 | O18: 34471.914 | P18: 34471.914 | Q18: 34471.914 | R18: =SUM(F18:Q18) -> 413662.968 | S18: 12
B19: TOTAL EMISIONES | V19: =+SUM(V7:V17) -> 15.69546233
A21: TRANSPORTE URBANO
A22: 2018 | B22: MODO DE TRANSPORTE | D22: CAPACIDAD DE CARGA | E22: UNIDAD | F22: Km recorridos , número de usuarios y huella de carbono por mes | S22: No. DE DATOS | T22: FACTOR DE EMISIÓN | U22: UNIDADES DEL FACTOR | V22: HUELLA DE CARBONO (TON CO2 eq)
F23: ENE | G23: FEB | H23: MAR | I23: ABR | J23: MAY | K23: JUN | L23: JUL | M23: AGO | N23: SEP | O23: OCT | P23: NOV | Q23: DIC | R23: TOTAL
B24: Escoja la opción que corresponda | F24: Digite la cantidad de Km recorridos por mes y el número de usuarios por cada tipo de transporte
B25: Transmilenio | D25: =+VLOOKUP(B25,'[1]FACTORES DE EMISIÓN'!$BV$5:$BY$8,4,FALSE) -> 140 | E25: km recorridos | F25: 1128 | G25: 1960 | R25: =SUM(F25:Q25) -> 3088 | S25: =COUNT(F25:Q25) -> 2 | T25: =IFERROR(VLOOKUP(B25,'[1]FACTORES DE EMISIÓN'!$BV$5:$BX$8,3,0),0) -> 685.16 | U25: g/km | V25: =+((R25*T25)/D25)/1000000 -> 0.015112672
E26: N° usuarios | F26: 3 | G26: 3 | R26: =SUM(F26:Q26) -> 6 | S26: =COUNT(F26:Q26) -> 2
E27: Huella (g Co2 eq) | F27: =+((F25*$T$25)/$D$25) -> 5520.432 | G27: =+((G25*$T$25)/$D$25) -> 9592.24 | H27: 0 | I27: 0 | J27: 0 | K27: 0 | L27: 0 | M27: 0 | N27: 0 | O27: 0 | P27: 0 | Q27: 0 | R27: =SUM(F27:Q27) -> 15112.672 | S27: 12
B28: Motocicleta 4 tiempos | D28: =+VLOOKUP(B28,'[1]FACTORES DE EMISIÓN'!$BV$5:$BY$8,4,FALSE) -> 1 | E28: km recorridos | F28: 2552 | G28: 424 | R28: =SUM(F28:Q28) -> 2976 | S28: 2 | T28: =IFERROR(VLOOKUP(B28,'[1]FACTORES DE EMISIÓN'!$BV$5:$BX$8,3,0),0) -> 33.11 | U28: g/km | V28: =+((R28*T28)/D28)/1000000 -> 0.09853536
E29: N° usuarios | F29: 5 | G29: 1 | R29: 6 | S29: 2
E30: Huella (g Co2 eq) | F30: =+((F28*$T$28)/$D$28) -> 84496.72 | G30: =+((G28*$T$28)/$D$28) -> 14038.64 | H30: 0 | I30: 0 | J30: 0 | K30: 0 | L30: 0 | M30: 0 | N30: 0 | O30: 0 | P30: 0 | Q30: 0 | R30: 98535.36 | S30: 12
B31: Vehículo propio TWC;>1400c.c | D31: =+VLOOKUP(B31,'[1]FACTORES DE EMISIÓN'!$BV$5:$BY$8,4,FALSE) -> 1 | E31: km recorridos | F31: 2304 | G31: 768 | R31: 3072 | S31: 2 | T31: =IFERROR(VLOOKUP(B31,'[1]FACTORES DE EMISIÓN'!$BV$5:$BX$8,3,0),0) -> 218 | U31: g/km | V31: =+((R31*T31)/D31)/1000000 -> 0.669696
E32: N° usuarios | F32: 3 | G32: 1 | R32: 4 | S32: 2
E33: Huella (g Co2 eq) | F33: =+((F31*$T$31)/$D$31) -> 502272 | G33: =+((G31*$T$31)/$D$31) -> 167424 | H33: 0 | I33: 0 | J33: 0 | K33: 0 | L33: 0 | M33: 0 | N33: 0 | O33: 0 | P33: 0 | Q33: 0 | R33: =SUM(F33:Q33) -> 669696 | S33: 12
B34: SITP <6000 c.c. | D34: =+VLOOKUP(B34,'[1]FACTORES DE EMISIÓN'!$BV$5:$BY$8,4,FALSE) -> 40 | E34: km recorridos | F34: 752 | G34: 1704 | R34: =SUM(F34:Q34) -> 2456 | S34: 2 | T34: =IFERROR(VLOOKUP(B34,'[1]FACTORES DE EMISIÓN'!$BV$5:$BX$8,3,0),0) -> 787.03 | U34: g/km | V34: =+((R34*T34)/D34)/1000000 -> 0.048323642
E35: N° usuarios | F35: 2 | G35: 8 | R35: 10 | S35: 2
E36: Huella (g Co2 eq) | F36: =+((F34*$T$34)/$D$34) -> 14796.164 | G36: =+((G34*$T$34)/$D$34) -> 33527.478 | H36: 0 | I36: 0 | J36: 0 | K36: 0 | L36: 0 | M36: 0 | N36: 0 | O36: 0 | P36: 0 | Q36: 0 | R36: =SUM(F36:Q36) -> 48323.642 | S36: 12
B37: TOTAL EMISIONES | V37: =+SUM(V25:V35) -> 0.831667674
A39: TRANSPORTE URBANO
A40: 2019 | B40: MODO DE TRANSPORTE | D40: CAPACIDAD DE CARGA | E40: UNIDAD | F40: Km recorridos , número de usuarios y huella de carbono por mes | S40: No. DE DATOS | T40: FACTOR DE EMISIÓN | U40: UNIDADES DEL FACTOR | V40: HUELLA DE CARBONO (TON CO2 eq)
F41: ENE | G41: FEB | H41: MAR | I41: ABR | J41: MAY | K41: JUN | L41: JUL | M41: AGO | N41: SEP | O41: OCT | P41: NOV | Q41: DIC | R41: TOTAL
B42: Escoja la opción que corresponda | F42: Digite la cantidad de Km recorridos por mes y el número de usuarios por cada tipo de transporte
B43: SITP <6000 c.c. | D43: =+VLOOKUP(B43,'[1]FACTORES DE EMISIÓN'!$BV$5:$BY$8,4,FALSE) -> 40 | E43: km recorridos | F43: 1128 | G43: 1960 | R43: =SUM(F43:Q43) -> 3088 | S43: =COUNT(F43:Q43) -> 2 | T43: =IFERROR(VLOOKUP(B43,'[1]FACTORES DE EMISIÓN'!$BV$5:$BX$8,3,0),0) -> 787.03 | U43: g/km | V43: =+((R43*T43)/D43)/1000000 -> 0.060758716
E44: N° usuarios | F44: 3 | G44: 3 | R44: =SUM(F44:Q44) -> 6 | S44: =COUNT(F44:Q44) -> 2
E45: Huella (g Co2 eq) | F45: =+((F43*$T$43)/$D$43) -> 22194.246 | G45: =+((G43*$T$43)/$D$43) -> 38564.47 | H45: 0 | I45: 0 | J45: 0 | K45: 0 | L45: 0 | M45: 0 | N45: 0 | O45: 0 | P45: 0 | Q45: 0 | R45: =SUM(F45:Q45) -> 60758.716 | S45: 12
B46: Motocicleta 4 tiempos | D46: =+VLOOKUP(B46,'[1]FACTORES DE EMISIÓN'!$BV$5:$BY$8,4,FALSE) -> 1 | E46: km recorridos | F46: 2552 | G46: 424 | R46: =SUM(F46:Q46) -> 2976 | S46: 2 | T46: =IFERROR(VLOOKUP(B46,'[1]FACTORES DE EMISIÓN'!$BV$5:$BX$8,3,0),0) -> 33.11 | U46: g/km | V46: =+((R46*T46)/D46)/1000000 -> 0.09853536
E47: N° usuarios | F47: 5 | G47: 1 | R47: 6 | S47: 2
E48: Huella (g Co2 eq) | F48: =+((F46*$T$46)/$D$46) -> 84496.72 | G48: =+((G46*$T$46)/$D$46) -> 14038.64 | H48: 0 | I48: 0 | J48: 0 | K48: 0 | L48: 0 | M48: 0 | N48: 0 | O48: 0 | P48: 0 | Q48: 0 | R48: 98535.36 | S48: 12
B49: Vehículo propio TWC;>1400c.c | D49: =+VLOOKUP(B49,'[1]FACTORES DE EMISIÓN'!$BV$5:$BY$8,4,FALSE) -> 1 | E49: km recorridos | F49: 2304 | G49: 768 | R49: 3072 | S49: 2 | T49: =IFERROR(VLOOKUP(B49,'[1]FACTORES DE EMISIÓN'!$BV$5:$BX$8,3,0),0) -> 218 | U49: g/km | V49: =+((R49*T49)/D49)/1000000 -> 0.669696
E50: N° usuarios | F50: 3 | G50: 1 | R50: 4 | S50: 2
E51: Huella (g Co2 eq) | F51: =+((F49*$T$49)/$D$49) -> 502272 | G51: =+((G49*$T$49)/$D$49) -> 167424 | H51: 0 | I51: 0 | J51: 0 | K51: 0 | L51: 0 | M51: 0 | N51: 0 | O51: 0 | P51: 0 | Q51: 0 | R51: =SUM(F51:Q51) -> 669696 | S51: 12
B52: SITP <6000 c.c. | D52: =+VLOOKUP(B52,'[1]FACTORES DE EMISIÓN'!$BV$5:$BY$8,4,FALSE) -> 40 | E52: km recorridos | F52: 752 | G52: 1704 | R52: =SUM(F52:Q52) -> 2456 | S52: 2 | T52: =IFERROR(VLOOKUP(B52,'[1]FACTORES DE EMISIÓN'!$BV$5:$BX$8,3,0),0) -> 787.03 | U52: g/km | V52: =+((R52*T52)/D52)/1000000 -> 0.048323642
E53: N° usuarios | F53: 2 | G53: 8 | R53: 10 | S53: 2
E54: Huella (g Co2 eq) | F54: =+((F52*$T$52)/$D$52) -> 14796.164 | G54: =+((G52*$T$52)/$D$52) -> 33527.478 | H54: 0 | I54: 0 | J54: 0 | K54: 0 | L54: 0 | M54: 0 | N54: 0 | O54: 0 | P54: 0 | Q54: 0 | R54: =SUM(F54:Q54) -> 48323.642 | S54: 12
B55: TOTAL EMISIONES | V55: =+SUM(V43:V53) -> 0.877313718
A57: TRANSPORTE URBANO
A58: 2020 | B58: MODO DE TRANSPORTE | D58: CAPACIDAD DE CARGA | E58: UNIDAD | F58: Km recorridos , número de usuarios y huella de carbono por mes | S58: No. DE DATOS | T58: FACTOR DE EMISIÓN | U58: UNIDADES DEL FACTOR | V58: HUELLA DE CARBONO (TON CO2 eq)
F59: ENE | G59: FEB | H59: MAR | I59: ABR | J59: MAY | K59: JUN | L59: JUL | M59: AGO | N59: SEP | O59: OCT | P59: NOV | Q59: DIC | R59: TOTAL
B60: Escoja la opción que corresponda | F60: Digite la cantidad de Km recorridos por mes y el número de usuarios por cada tipo de transporte
B61: Motocicleta 4 tiempos | D61: =+VLOOKUP(B61,'[1]FACTORES DE EMISIÓN'!$BV$5:$BY$8,4,FALSE) -> 1 | E61: km recorridos | F61: 600 | G61: 0 | R61: =SUM(F61:Q61) -> 600 | S61: =COUNT(F61:Q61) -> 2 | T61: =IFERROR(VLOOKUP(B61,'[1]FACTORES DE EMISIÓN'!$BV$5:$BX$8,3,0),0) -> 33.11 | U61: g/km | V61: =+((R61*T61)/D61)/1000000 -> 0.019866
E62: N° usuarios | F62: 3 | G62: 0 | R62: =SUM(F62:Q62) -> 3 | S62: =COUNT(F62:Q62) -> 2
E63: Huella (g Co2 eq) | F63: =+((F61*$T$61)/$D$61) -> 19866 | G63: =+((G61*$T$61)/$D$61) -> 0 | H63: 0 | I63: 0 | J63: 0 | K63: 0 | L63: 0 | M63: 0 | N63: 0 | O63: 0 | P63: 0 | Q63: 0 | R63: =SUM(F63:Q63) -> 19866 | S63: 12
B64: Transmilenio | D64: =+VLOOKUP(B64,'[1]FACTORES DE EMISIÓN'!$BV$5:$BY$8,4,FALSE) -> 140 | E64: km recorridos | F64: 2000 | G64: 2000 | R64: =SUM(F64:Q64) -> 4000 | S64: 2 | T64: =IFERROR(VLOOKUP(B64,'[1]FACTORES DE EMISIÓN'!$BV$5:$BX$8,3,0),0) -> 685.16 | U64: g/km | V64: =+((R64*T64)/D64)/1000000 -> 0.019576
E65: N° usuarios | F65: 5 | G65: 1 | R65: 6 | S65: 2
E66: Huella (g Co2 eq) | F66: =+((F64*$T$64)/$D$64) -> 9788 | G66: =+((G64*$T$64)/$D$64) -> 9788 | H66: 0 | I66: 0 | J66: 0 | K66: 0 | L66: 0 | M66: 0 | N66: 0 | O66: 0 | P66: 0 | Q66: 0 | R66: 19576 | S66: 12
B67: SITP <6000 c.c. | D67: =+VLOOKUP(B67,'[1]FACTORES DE EMISIÓN'!$BV$5:$BY$8,4,FALSE) -> 40 | E67: km recorridos | F67: 2000 | G67: 2000 | R67: 4000 | S67: 2 | T67: =IFERROR(VLOOKUP(B67,'[1]FACTORES DE EMISIÓN'!$BV$5:$BX$8,3,0),0) -> 787.03 | U67: g/km | V67: =+((R67*T67)/D67)/1000000 -> 0.078703
E68: N° usuarios | F68: 3 | G68: 1 | R68: 4 | S68: 2
E69: Huella (g Co2 eq) | F69: =+((F67*$T$67)/$D$67) -> 39351.5 | G69: =+((G67*$T$67)/$D$67) -> 39351.5 | H69: 0 | I69: 0 | J69: 0 | K69: 0 | L69: 0 | M69: 0 | N69: 0 | O69: 0 | P69: 0 | Q69: 0 | R69: =SUM(F69:Q69) -> 78703 | S69: 12
B70: Vehículo propio TWC;>1400c.c | D70: =+VLOOKUP(B70,'[1]FACTORES DE EMISIÓN'!$BV$5:$BY$8,4,FALSE) -> 1 | E70: km recorridos | F70: 2000 | G70: 2000 | R70: =SUM(F70:Q70) -> 4000 | S70: 2 | T70: =IFERROR(VLOOKUP(B70,'[1]FACTORES DE EMISIÓN'!$BV$5:$BX$8,3,0),0) -> 218 | U70: g/km | V70: =+((R70*T70)/D70)/1000000 -> 0.872
E71: N° usuarios | F71: 2 | G71: 8 | R71: 10 | S71: 2
E72: Huella (g Co2 eq) | F72: =+((F70*$T$70)/$D$70) -> 436000 | G72: =+((G70*$T$70)/$D$70) -> 436000 | H72: 0 | I72: 0 | J72: 0 | K72: 0 | L72: 0 | M72: 0 | N72: 0 | O72: 0 | P72: 0 | Q72: 0 | R72: =SUM(F72:Q72) -> 872000 | S72: 12
B73: TOTAL EMISIONES | V73: =+SUM(V61:V71) -> 0.990145
A75: TRANSPORTE URBANO
A76: 2021 | B76: MODO DE TRANSPORTE | D76: CAPACIDAD DE CARGA | E76: UNIDAD | F76: Km recorridos , número de usuarios y huella de carbono por mes | S76: No. DE DATOS | T76: FACTOR DE EMISIÓN | U76: UNIDADES DEL FACTOR | V76: HUELLA DE CARBONO (TON CO2 eq)
F77: ENE | G77: FEB | H77: MAR | I77: ABR | J77: MAY | K77: JUN | L77: JUL | M77: AGO | N77: SEP | O77: OCT | P77: NOV | Q77: DIC | R77: TOTAL
B78: Escoja la opción que corresponda | F78: Digite la cantidad de Km recorridos por mes y el número de usuarios por cada tipo de transporte
B79: Transmilenio | D79: =+VLOOKUP(B79,'[1]FACTORES DE EMISIÓN'!$BV$5:$BY$8,4,FALSE) -> 140 | E79: km recorridos | F79: 1128 | G79: 1960 | R79: =SUM(F79:Q79) -> 3088 | S79: =COUNT(F79:Q79) -> 2 | T79: =IFERROR(VLOOKUP(B79,'[1]FACTORES DE EMISIÓN'!$BV$5:$BX$8,3,0),0) -> 685.16 | U79: g/km | V79: =+((R79*T79)/D79)/1000000 -> 0.015112672
E80: N° usuarios | F80: 3 | G80: 3 | R80: =SUM(F80:Q80) -> 6 | S80: =COUNT(F80:Q80) -> 2
E81: Huella (g Co2 eq) | F81: =+((F79*$T$79)/$D$79) -> 5520.432 | G81: =+((G79*$T$79)/$D$79) -> 9592.24 | H81: 0 | I81: 0 | J81: 0 | K81: 0 | L81: 0 | M81: 0 | N81: 0 | O81: 0 | P81: 0 | Q81: 0 | R81: =SUM(F81:Q81) -> 15112.672 | S81: 12
B82: Motocicleta 4 tiempos | D82: =+VLOOKUP(B82,'[1]FACTORES DE EMISIÓN'!$BV$5:$BY$8,4,FALSE) -> 1 | E82: km recorridos | F82: 2552 | G82: 424 | R82: =SUM(F82:Q82) -> 2976 | S82: 2 | T82: =IFERROR(VLOOKUP(B82,'[1]FACTORES DE EMISIÓN'!$BV$5:$BX$8,3,0),0) -> 33.11 | U82: g/km | V82: =+((R82*T82)/D82)/1000000 -> 0.09853536
E83: N° usuarios | F83: 5 | G83: 1 | R83: 6 | S83: 2
E84: Huella (g Co2 eq) | F84: =+((F82*$T$82)/$D$82) -> 84496.72 | G84: =+((G82*$T$82)/$D$82) -> 14038.64 | H84: 0 | I84: 0 | J84: 0 | K84: 0 | L84: 0 | M84: 0 | N84: 0 | O84: 0 | P84: 0 | Q84: 0 | R84: 98535.36 | S84: 12
B85: SITP <6000 c.c. | D85: =+VLOOKUP(B85,'[1]FACTORES DE EMISIÓN'!$BV$5:$BY$8,4,FALSE) -> 40 | E85: km recorridos | F85: 2304 | G85: 768 | R85: 3072 | S85: 2 | T85: =IFERROR(VLOOKUP(B85,'[1]FACTORES DE EMISIÓN'!$BV$5:$BX$8,3,0),0) -> 787.03 | U85: g/km | V85: =+((R85*T85)/D85)/1000000 -> 0.060443904
E86: N° usuarios | F86: 3 | G86: 1 | R86: 4 | S86: 2
E87: Huella (g Co2 eq) | F87: =+((F85*$T$85)/$D$85) -> 45332.928 | G87: =+((G85*$T$85)/$D$85) -> 15110.976 | H87: 0 | I87: 0 | J87: 0 | K87: 0 | L87: 0 | M87: 0 | N87: 0 | O87: 0 | P87: 0 | Q87: 0 | R87: =SUM(F87:Q87) -> 60443.904 | S87: 12
B88: Vehículo propio TWC;>1400c.c | D88: =+VLOOKUP(B88,'[1]FACTORES DE EMISIÓN'!$BV$5:$BY$8,4,FALSE) -> 1 | E88: km recorridos | F88: 752 | G88: 1704 | R88: =SUM(F88:Q88) -> 2456 | S88: 2 | T88: =IFERROR(VLOOKUP(B88,'[1]FACTORES DE EMISIÓN'!$BV$5:$BX$8,3,0),0) -> 218 | U88: g/km | V88: =+((R88*T88)/D88)/1000000 -> 0.535408
E89: N° usuarios | F89: 2 | G89: 8 | R89: 10 | S89: 2
E90: Huella (g Co2 eq) | F90: =+((F88*$T$88)/$D$88) -> 163936 | G90: =+((G88*$T$88)/$D$88) -> 371472 | H90: 0 | I90: 0 | J90: 0 | K90: 0 | L90: 0 | M90: 0 | N90: 0 | O90: 0 | P90: 0 | Q90: 0 | R90: =SUM(F90:Q90) -> 535408 | S90: 12
B91: TOTAL EMISIONES | V91: =+SUM(V79:V89) -> 0.709499936
A93: VIAJES AEREOS NACIONALES
A94: 2017 | B94: ORIGEN | C94: DESTINO | D94: DISTANCIA (km) | E94: UNIDAD | F94: NÚMERO DE VIAJES | S94: No. DE DATOS | T94: FACTOR DE EMISIÓN | U94: UNIDADES DEL FACTOR | V94: HUELLA DE CARBONO (TON CO2)
F95: ENE | G95: FEB | H95: MAR | I95: ABR | J95: MAY | K95: JUN | L95: JUL | M95: AGO | N95: SEP | O95: OCT | P95: NOV | Q95: DIC | R95: TOTAL
B96: Escoja la opción que corresponda | F96: Digite la cantidad de viajes por cada trayecto
B97: BOGOTA,COLOMBIA | C97: SAN ANDRÉS ISLAS, COLOMBIA (ADZ) | D97: =IFERROR(VLOOKUP(C97,'[1]FACTORES DE EMISIÓN'!$CI$4:$CJ$42,2,0),0) -> 1207 | E97: N° viajes | F97: 2 | G97: 4 | H97: 10 | I97: 25 | J97: 30 | K97: 48 | L97: 48 | M97: 48 | N97: 48 | O97: 48 | P97: 48 | Q97: 48 | R97: =SUM(F97:Q97) -> 407 | S97: =COUNT(F97:Q97) -> 12 | T97: =IFERROR(VLOOKUP(C97,'[1]FACTORES DE EMISIÓN'!$CI$4:$CK$42,3,0),0) -> 114.9 | U97: kg CO2/trayecto | V97: =IFERROR((R97*T97)/1000,0) -> 46.7643
B98: BOGOTA,COLOMBIA | C98: APARTADO,COLOMBIA (APO) | D98: =IFERROR(VLOOKUP(C98,'[1]FACTORES DE EMISIÓN'!$CI$4:$CJ$42,2,0),0) -> 446 | E98: N° viajes | R98: =SUM(F98:Q98) -> 0 | S98: =COUNT(F98:Q98) -> 0 | T98: =IFERROR(VLOOKUP(C98,'[1]FACTORES DE EMISIÓN'!$CI$4:$CK$42,3,0),0) -> 82.1 | U98: kg CO2/trayecto | V98: =IFERROR((R98*T98)/1000,0) -> 0
B99: BOGOTA,COLOMBIA | C99: ARMENIA,COLOMBIA (AXM) | D99: =IFERROR(VLOOKUP(C99,'[1]FACTORES DE EMISIÓN'!$CI$4:$CJ$42,2,0),0) -> 180 | E99: N° viajes | R99: =SUM(F99:Q99) -> 0 | S99: =COUNT(F99:Q99) -> 0 | T99: =IFERROR(VLOOKUP(C99,'[1]FACTORES DE EMISIÓN'!$CI$4:$CK$42,3,0),0) -> 28.7 | U99: kg CO2/trayecto | V99: =IFERROR((R99*T99)/1000,0) -> 0
B100: BOGOTA,COLOMBIA | C100: BARRANQUILLA.COLOMBIA (BAQ) | D100: =IFERROR(VLOOKUP(C100,'[1]FACTORES DE EMISIÓN'!$CI$4:$CJ$42,2,0),0) -> 690 | E100: N° viajes | M100: , | R100: =SUM(F100:Q100) -> 0 | S100: =COUNT(F100:Q100) -> 0 | T100: =IFERROR(VLOOKUP(C100,'[1]FACTORES DE EMISIÓN'!$CI$4:$CK$42,3,0),0) -> 82.1 | U100: kg CO2/trayecto | V100: =IFERROR((R100*T100)/1000,0) -> 0
B101: BOGOTA,COLOMBIA | C101: CALI,COLOMBIA (CLO) | D101: =IFERROR(VLOOKUP(C101,'[1]FACTORES DE EMISIÓN'!$CI$4:$CJ$42,2,0),0) -> 278 | E101: N° viajes | R101: =SUM(F101:Q101) -> 0 | S101: =COUNT(F101:Q101) -> 0 | T101: =IFERROR(VLOOKUP(C101,'[1]FACTORES DE EMISIÓN'!$CI$4:$CK$42,3,0),0) -> 46.1 | U101: kg CO2/trayecto | V101: =IFERROR((R101*T101)/1000,0) -> 0
B102: TOTAL EMISIONES | V102: =SUM(V97:V101) -> 46.7643
A104: VIAJES AEREOS NACIONALES
A105: 2018 | B105: ORIGEN | C105: DESTINO | D105: DISTANCIA (km) | E105: UNIDAD | F105: NÚMERO DE VIAJES | S105: No. DE DATOS | T105: FACTOR DE EMISIÓN | U105: UNIDADES DEL FACTOR | V105: HUELLA DE CARBONO (TON CO2)
F106: ENE | G106: FEB | H106: MAR | I106: ABR | J106: MAY | K106: JUN | L106: JUL | M106: AGO | N106: SEP | O106: OCT | P106: NOV | Q106: DIC | R106: TOTAL
B107: Escoja la opción que corresponda | F107: Digite la cantidad de viajes por cada trayecto
B108: BOGOTÁ, COLOMBIA (BOG) | C108: CALI,COLOMBIA (CLO) | D108: =IFERROR(VLOOKUP(C108,'[1]FACTORES DE EMISIÓN'!$CI$4:$CJ$42,2,0),0) -> 278 | E108: N° viajes | F108: 2 | G108: 4 | R108: =SUM(F108:Q108) -> 6 | S108: =COUNT(F108:Q108) -> 2 | T108: =IFERROR(VLOOKUP(C108,'[1]FACTORES DE EMISIÓN'!$CI$4:$CK$42,3,0),0) -> 46.1 | U108: kg CO2/trayecto | V108: =IFERROR((R108*T108)/1000,0) -> 0.2766
B109: BOGOTÁ, COLOMBIA (BOG) | C109: CALI,COLOMBIA (CLO) | D109: =IFERROR(VLOOKUP(C109,'[1]FACTORES DE EMISIÓN'!$CI$4:$CJ$42,2,0),0) -> 278 | E109: N° viajes | R109: =SUM(F109:Q109) -> 0 | S109: =COUNT(F109:Q109) -> 0 | T109: =IFERROR(VLOOKUP(C109,'[1]FACTORES DE EMISIÓN'!$CI$4:$CK$42,3,0),0) -> 46.1 | U109: kg CO2/trayecto | V109: =IFERROR((R109*T109)/1000,0) -> 0
B110: BOGOTÁ, COLOMBIA (BOG) | C110: CALI,COLOMBIA (CLO) | D110: =IFERROR(VLOOKUP(C110,'[1]FACTORES DE EMISIÓN'!$CI$4:$CJ$42,2,0),0) -> 278 | E110: N° viajes | R110: =SUM(F110:Q110) -> 0 | S110: =COUNT(F110:Q110) -> 0 | T110: =IFERROR(VLOOKUP(C110,'[1]FACTORES DE EMISIÓN'!$CI$4:$CK$42,3,0),0) -> 46.1 | U110: kg CO2/trayecto | V110: =IFERROR((R110*T110)/1000,0) -> 0
B111: BOGOTÁ, COLOMBIA (BOG) | C111: CALI,COLOMBIA (CLO) | D111: =IFERROR(VLOOKUP(C111,'[1]FACTORES DE EMISIÓN'!$CI$4:$CJ$42,2,0),0) -> 278 | E111: N° viajes | M111: , | R111: =SUM(F111:Q111) -> 0 | S111: =COUNT(F111:Q111) -> 0 | T111: =IFERROR(VLOOKUP(C111,'[1]FACTORES DE EMISIÓN'!$CI$4:$CK$42,3,0),0) -> 46.1 | U111: kg CO2/trayecto | V111: =IFERROR((R111*T111)/1000,0) -> 0
B112: BOGOTÁ, COLOMBIA (BOG) | C112: CALI,COLOMBIA (CLO) | D112: =IFERROR(VLOOKUP(C112,'[1]FACTORES DE EMISIÓN'!$CI$4:$CJ$42,2,0),0) -> 278 | E112: N° viajes | R112: =SUM(F112:Q112) -> 0 | S112: =COUNT(F112:Q112) -> 0 | T112: =IFERROR(VLOOKUP(C112,'[1]FACTORES DE EMISIÓN'!$CI$4:$CK$42,3,0),0) -> 46.1 | U112: kg CO2/trayecto | V112: =IFERROR((R112*T112)/1000,0) -> 0
B113: TOTAL EMISIONES | V113: =SUM(V108:V112) -> 0.2766
A115: VIAJES AEREOS NACIONALES
A116: 2019 | B116: ORIGEN | C116: DESTINO | D116: DISTANCIA (km) | E116: UNIDAD | F116: NÚMERO DE VIAJES | S116: No. DE DATOS | T116: FACTOR DE EMISIÓN | U116: UNIDADES DEL FACTOR | V116: HUELLA DE CARBONO (TON CO2)
F117: ENE | G117: FEB | H117: MAR | I117: ABR | J117: MAY | K117: JUN | L117: JUL | M117: AGO | N117: SEP | O117: OCT | P117: NOV | Q117: DIC | R117: TOTAL
B118: Escoja la opción que corresponda | F118: Digite la cantidad de viajes por cada trayecto
B119: BOGOTÁ, COLOMBIA (BOG) | C119: CALI,COLOMBIA (CLO) | D119: =IFERROR(VLOOKUP(C119,'[1]FACTORES DE EMISIÓN'!$CI$4:$CJ$42,2,0),0) -> 278 | E119: N° viajes | F119: 2 | G119: 4 | R119: =SUM(F119:Q119) -> 6 | S119: =COUNT(F119:Q119) -> 2 | T119: =IFERROR(VLOOKUP(C119,'[1]FACTORES DE EMISIÓN'!$CI$4:$CK$42,3,0),0) -> 46.1 | U119: kg CO2/trayecto | V119: =IFERROR((R119*T119)/1000,0) -> 0.2766
B120: BOGOTÁ, COLOMBIA (BOG) | C120: CALI,COLOMBIA (CLO) | D120: =IFERROR(VLOOKUP(C120,'[1]FACTORES DE EMISIÓN'!$CI$4:$CJ$42,2,0),0) -> 278 | E120: N° viajes | R120: =SUM(F120:Q120) -> 0 | S120: =COUNT(F120:Q120) -> 0 | T120: =IFERROR(VLOOKUP(C120,'[1]FACTORES DE EMISIÓN'!$CI$4:$CK$42,3,0),0) -> 46.1 | U120: kg CO2/trayecto | V120: =IFERROR((R120*T120)/1000,0) -> 0
B121: BOGOTÁ, COLOMBIA (BOG) | C121: CALI,COLOMBIA (CLO) | D121: =IFERROR(VLOOKUP(C121,'[1]FACTORES DE EMISIÓN'!$CI$4:$CJ$42,2,0),0) -> 278 | E121: N° viajes | R121: =SUM(F121:Q121) -> 0 | S121: =COUNT(F121:Q121) -> 0 | T121: =IFERROR(VLOOKUP(C121,'[1]FACTORES DE EMISIÓN'!$CI$4:$CK$42,3,0),0) -> 46.1 | U121: kg CO2/trayecto | V121: =IFERROR((R121*T121)/1000,0) -> 0
B122: BOGOTÁ, COLOMBIA (BOG) | C122: CALI,COLOMBIA (CLO) | D122: =IFERROR(VLOOKUP(C122,'[1]FACTORES DE EMISIÓN'!$CI$4:$CJ$42,2,0),0) -> 278 | E122: N° viajes | M122: , | R122: =SUM(F122:Q122) -> 0 | S122: =COUNT(F122:Q122) -> 0 | T122: =IFERROR(VLOOKUP(C122,'[1]FACTORES DE EMISIÓN'!$CI$4:$CK$42,3,0),0) -> 46.1 | U122: kg CO2/trayecto | V122: =IFERROR((R122*T122)/1000,0) -> 0
B123: BOGOTÁ, COLOMBIA (BOG) | C123: CALI,COLOMBIA (CLO) | D123: =IFERROR(VLOOKUP(C123,'[1]FACTORES DE EMISIÓN'!$CI$4:$CJ$42,2,0),0) -> 278 | E123: N° viajes | R123: =SUM(F123:Q123) -> 0 | S123: =COUNT(F123:Q123) -> 0 | T123: =IFERROR(VLOOKUP(C123,'[1]FACTORES DE EMISIÓN'!$CI$4:$CK$42,3,0),0) -> 46.1 | U123: kg CO2/trayecto | V123: =IFERROR((R123*T123)/1000,0) -> 0
B124: TOTAL EMISIONES | V124: =SUM(V119:V123) -> 0.2766
A126: VIAJES AEREOS NACIONALES
A127: 2020 | B127: ORIGEN | C127: DESTINO | D127: DISTANCIA (km) | E127: UNIDAD | F127: NÚMERO DE VIAJES | S127: No. DE DATOS | T127: FACTOR DE EMISIÓN | U127: UNIDADES DEL FACTOR | V127: HUELLA DE CARBONO (TON CO2)
F128: ENE | G128: FEB | H128: MAR | I128: ABR | J128: MAY | K128: JUN | L128: JUL | M128: AGO | N128: SEP | O128: OCT | P128: NOV | Q128: DIC | R128: TOTAL
B129: Escoja la opción que corresponda | F129: Digite la cantidad de viajes por cada trayecto
B130: BOGOTÁ, COLOMBIA (BOG) | C130: CALI,COLOMBIA (CLO) | D130: =IFERROR(VLOOKUP(C130,'[1]FACTORES DE EMISIÓN'!$CI$4:$CJ$42,2,0),0) -> 278 | E130: N° viajes | F130: 2 | G130: 4 | R130: =SUM(F130:Q130) -> 6 | S130: =COUNT(F130:Q130) -> 2 | T130: =IFERROR(VLOOKUP(C130,'[1]FACTORES DE EMISIÓN'!$CI$4:$CK$42,3,0),0) -> 46.1 | U130: kg CO2/trayecto | V130: =IFERROR((R130*T130)/1000,0) -> 0.2766
B131: BOGOTÁ, COLOMBIA (BOG) | C131: CALI,COLOMBIA (CLO) | D131: =IFERROR(VLOOKUP(C131,'[1]FACTORES DE EMISIÓN'!$CI$4:$CJ$42,2,0),0) -> 278 | E131: N° viajes | R131: =SUM(F131:Q131) -> 0 | S131: =COUNT(F131:Q131) -> 0 | T131: =IFERROR(VLOOKUP(C131,'[1]FACTORES DE EMISIÓN'!$CI$4:$CK$42,3,0),0) -> 46.1 | U131: kg CO2/trayecto | V131: =IFERROR((R131*T131)/1000,0) -> 0
B132: BOGOTÁ, COLOMBIA (BOG) | C132: CALI,COLOMBIA (CLO) | D132: =IFERROR(VLOOKUP(C132,'[1]FACTORES DE EMISIÓN'!$CI$4:$CJ$42,2,0),0) -> 278 | E132: N° viajes | R132: =SUM(F132:Q132) -> 0 | S132: =COUNT(F132:Q132) -> 0 | T132: =IFERROR(VLOOKUP(C132,'[1]FACTORES DE EMISIÓN'!$CI$4:$CK$42,3,0),0) -> 46.1 | U132: kg CO2/trayecto | V132: =IFERROR((R132*T132)/1000,0) -> 0
B133: BOGOTÁ, COLOMBIA (BOG) | C133: CALI,COLOMBIA (CLO) | D133: =IFERROR(VLOOKUP(C133,'[1]FACTORES DE EMISIÓN'!$CI$4:$CJ$42,2,0),0) -> 278 | E133: N° viajes | M133: , | R133: =SUM(F133:Q133) -> 0 | S133: =COUNT(F133:Q133) -> 0 | T133: =IFERROR(VLOOKUP(C133,'[1]FACTORES DE EMISIÓN'!$CI$4:$CK$42,3,0),0) -> 46.1 | U133: kg CO2/trayecto | V133: =IFERROR((R133*T133)/1000,0) -> 0
B134: BOGOTÁ, COLOMBIA (BOG) | C134: CALI,COLOMBIA (CLO) | D134: =IFERROR(VLOOKUP(C134,'[1]FACTORES DE EMISIÓN'!$CI$4:$CJ$42,2,0),0) -> 278 | E134: N° viajes | R134: =SUM(F134:Q134) -> 0 | S134: =COUNT(F134:Q134) -> 0 | T134: =IFERROR(VLOOKUP(C134,'[1]FACTORES DE EMISIÓN'!$CI$4:$CK$42,3,0),0) -> 46.1 | U134: kg CO2/trayecto | V134: =IFERROR((R134*T134)/1000,0) -> 0
B135: TOTAL EMISIONES | V135: =SUM(V130:V134) -> 0.2766
A137: VIAJES AEREOS NACIONALES
A138: 2021 | B138: ORIGEN | C138: DESTINO | D138: DISTANCIA (km) | E138: UNIDAD | F138: NÚMERO DE VIAJES | S138: No. DE DATOS | T138: FACTOR DE EMISIÓN | U138: UNIDADES DEL FACTOR | V138: HUELLA DE CARBONO (TON CO2)
F139: ENE | G139: FEB | H139: MAR | I139: ABR | J139: MAY | K139: JUN | L139: JUL | M139: AGO | N139: SEP | O139: OCT | P139: NOV | Q139: DIC | R139: TOTAL
B140: Escoja la opción que corresponda | F140: Digite la cantidad de viajes por cada trayecto
B141: BOGOTÁ, COLOMBIA (BOG) | C141: CALI,COLOMBIA (CLO) | D141: =IFERROR(VLOOKUP(C141,'[1]FACTORES DE EMISIÓN'!$CI$4:$CJ$42,2,0),0) -> 278 | E141: N° viajes | F141: 2 | G141: 4 | R141: =SUM(F141:Q141) -> 6 | S141: =COUNT(F141:Q141) -> 2 | T141: =IFERROR(VLOOKUP(C141,'[1]FACTORES DE EMISIÓN'!$CI$4:$CK$42,3,0),0) -> 46.1 | U141: kg CO2/trayecto | V141: =IFERROR((R141*T141)/1000,0) -> 0.2766
B142: BOGOTÁ, COLOMBIA (BOG) | C142: CALI,COLOMBIA (CLO) | D142: =IFERROR(VLOOKUP(C142,'[1]FACTORES DE EMISIÓN'!$CI$4:$CJ$42,2,0),0) -> 278 | E142: N° viajes | R142: =SUM(F142:Q142) -> 0 | S142: =COUNT(F142:Q142) -> 0 | T142: =IFERROR(VLOOKUP(C142,'[1]FACTORES DE EMISIÓN'!$CI$4:$CK$42,3,0),0) -> 46.1 | U142: kg CO2/trayecto | V142: =IFERROR((R142*T142)/1000,0) -> 0
B143: BOGOTÁ, COLOMBIA (BOG) | C143: CALI,COLOMBIA (CLO) | D143: =IFERROR(VLOOKUP(C143,'[1]FACTORES DE EMISIÓN'!$CI$4:$CJ$42,2,0),0) -> 278 | E143: N° viajes | R143: =SUM(F143:Q143) -> 0 | S143: =COUNT(F143:Q143) -> 0 | T143: =IFERROR(VLOOKUP(C143,'[1]FACTORES DE EMISIÓN'!$CI$4:$CK$42,3,0),0) -> 46.1 | U143: kg CO2/trayecto | V143: =IFERROR((R143*T143)/1000,0) -> 0
B144: BOGOTÁ, COLOMBIA (BOG) | C144: CALI,COLOMBIA (CLO) | D144: =IFERROR(VLOOKUP(C144,'[1]FACTORES DE EMISIÓN'!$CI$4:$CJ$42,2,0),0) -> 278 | E144: N° viajes | M144: , | R144: =SUM(F144:Q144) -> 0 | S144: =COUNT(F144:Q144) -> 0 | T144: =IFERROR(VLOOKUP(C144,'[1]FACTORES DE EMISIÓN'!$CI$4:$CK$42,3,0),0) -> 46.1 | U144: kg CO2/trayecto | V144: =IFERROR((R144*T144)/1000,0) -> 0
B145: BOGOTÁ, COLOMBIA (BOG) | C145: CALI,COLOMBIA (CLO) | D145: =IFERROR(VLOOKUP(C145,'[1]FACTORES DE EMISIÓN'!$CI$4:$CJ$42,2,0),0) -> 278 | E145: N° viajes | R145: =SUM(F145:Q145) -> 0 | S145: =COUNT(F145:Q145) -> 0 | T145: =IFERROR(VLOOKUP(C145,'[1]FACTORES DE EMISIÓN'!$CI$4:$CK$42,3,0),0) -> 46.1 | U145: kg CO2/trayecto | V145: =IFERROR((R145*T145)/1000,0) -> 0
B146: TOTAL EMISIONES | V146: =SUM(V141:V145) -> 0.2766
A149: VIAJES AÉREOS INTERNACIONALES
A150: 2017 | B150: ORIGEN | C150: DESTINO | D150: DISTANCIA (km) | E150: UNIDAD | F150: NÚMERO DE VIAJES | S150: No. DE DATOS | T150: FACTOR DE EMISIÓN | U150: UNIDADES DEL FACTOR | V150: HUELLA DE CARBONO (TON CO2)
F151: ENE | G151: FEB | H151: MAR | I151: ABR | J151: MAY | K151: JUN | L151: JUL | M151: AGO | N151: SEP | O151: OCT | P151: NOV | Q151: DIC | R151: TOTAL
C152: Escoja la opción que corresponda | F152: Digite la cantidad de viajes por cada trayecto
B153: BOGOTÁ, COLOMBIA (BOG) | C153: BOSTON,MA,UNST (BOS) | D153: =IFERROR(VLOOKUP(C153,'[1]FACTORES DE EMISIÓN'!$CN$4:$CO$47,2,0),0) -> 4196 | E153: N° viajes | R153: =SUM(F153:Q153) -> 0 | S153: =COUNT(F153:Q153) -> 0 | T153: =IFERROR(VLOOKUP(C153,'[1]FACTORES DE EMISIÓN'!$CN$4:$CP$47,3,0),0) -> 303.5 | U153: kg CO2/trayecto | V153: =IFERROR((R153*T153)/1000,0) -> 0
B154: BOGOTÁ, COLOMBIA (BOG) | C154: BOSTON,MA,UNST (BOS) | D154: =IFERROR(VLOOKUP(C154,'[1]FACTORES DE EMISIÓN'!$CN$4:$CO$47,2,0),0) -> 4196 | E154: N° viajes | R154: =SUM(F154:Q154) -> 0 | S154: =COUNT(F154:Q154) -> 0 | T154: =IFERROR(VLOOKUP(C154,'[1]FACTORES DE EMISIÓN'!$CN$4:$CP$47,3,0),0) -> 303.5 | U154: kg CO2/trayecto | V154: =IFERROR((R154*T154)/1000,0) -> 0
B155: BOGOTÁ, COLOMBIA (BOG) | C155: BOSTON,MA,UNST (BOS) | D155: =IFERROR(VLOOKUP(C155,'[1]FACTORES DE EMISIÓN'!$CN$4:$CO$47,2,0),0) -> 4196 | E155: N° viajes | R155: =SUM(F155:Q155) -> 0 | S155: =COUNT(F155:Q155) -> 0 | T155: =IFERROR(VLOOKUP(C155,'[1]FACTORES DE EMISIÓN'!$CN$4:$CP$47,3,0),0) -> 303.5 | U155: kg CO2/trayecto | V155: =IFERROR((R155*T155)/1000,0) -> 0
B156: BOGOTÁ, COLOMBIA (BOG) | C156: BOSTON,MA,UNST (BOS) | D156: =IFERROR(VLOOKUP(C156,'[1]FACTORES DE EMISIÓN'!$CN$4:$CO$47,2,0),0) -> 4196 | E156: N° viajes | M156: , | R156: =SUM(F156:Q156) -> 0 | S156: =COUNT(F156:Q156) -> 0 | T156: =IFERROR(VLOOKUP(C156,'[1]FACTORES DE EMISIÓN'!$CN$4:$CP$47,3,0),0) -> 303.5 | U156: kg CO2/trayecto | V156: =IFERROR((R156*T156)/1000,0) -> 0
B157: BOGOTÁ, COLOMBIA (BOG) | C157: BOSTON,MA,UNST (BOS) | D157: =IFERROR(VLOOKUP(C157,'[1]FACTORES DE EMISIÓN'!$CN$4:$CO$47,2,0),0) -> 4196 | E157: N° viajes | R157: =SUM(F157:Q157) -> 0 | S157: =COUNT(F157:Q157) -> 0 | T157: =IFERROR(VLOOKUP(C157,'[1]FACTORES DE EMISIÓN'!$CN$4:$CP$47,3,0),0) -> 303.5 | U157: kg CO2/trayecto | V157: =IFERROR((R157*T157)/1000,0) -> 0
B158: TOTAL EMISIONES | V158: =SUM(V153:V157) -> 0
A161: VIAJES AÉREOS INTERNACIONALES
A162: 2018 | B162: ORIGEN | C162: DESTINO | D162: DISTANCIA (km) | E162: UNIDAD | F162: NÚMERO DE VIAJES | S162: No. DE DATOS | T162: FACTOR DE EMISIÓN | U162: UNIDADES DEL FACTOR | V162: HUELLA DE CARBONO (TON CO2)
F163: ENE | G163: FEB | H163: MAR | I163: ABR | J163: MAY | K163: JUN | L163: JUL | M163: AGO | N163: SEP | O163: OCT | P163: NOV | Q163: DIC | R163: TOTAL
C164: Escoja la opción que corresponda | F164: Digite la cantidad de viajes por cada trayecto
B165: BOGOTÁ, COLOMBIA (BOG) | C165: BOSTON,MA,UNST (BOS) | D165: =IFERROR(VLOOKUP(C165,'[1]FACTORES DE EMISIÓN'!$CN$4:$CO$47,2,0),0) -> 4196 | E165: N° viajes | F165: 50 | G165: 50 | H165: 50 | I165: 50 | J165: 50 | K165: 50 | L165: 50 | M165: 50 | N165: 50 | O165: 50 | P165: 50 | Q165: 50 | R165: =SUM(F165:Q165) -> 600 | S165: =COUNT(F165:Q165) -> 12 | T165: =IFERROR(VLOOKUP(C165,'[1]FACTORES DE EMISIÓN'!$CN$4:$CP$47,3,0),0) -> 303.5 | U165: kg CO2/trayecto | V165: =IFERROR((R165*T165)/1000,0) -> 182.1
B166: BOGOTÁ, COLOMBIA (BOG) | C166: BOSTON,MA,UNST (BOS) | D166: =IFERROR(VLOOKUP(C166,'[1]FACTORES DE EMISIÓN'!$CN$4:$CO$47,2,0),0) -> 4196 | E166: N° viajes | R166: =SUM(F166:Q166) -> 0 | S166: =COUNT(F166:Q166) -> 0 | T166: =IFERROR(VLOOKUP(C166,'[1]FACTORES DE EMISIÓN'!$CN$4:$CP$47,3,0),0) -> 303.5 | U166: kg CO2/trayecto | V166: =IFERROR((R166*T166)/1000,0) -> 0
B167: BOGOTÁ, COLOMBIA (BOG) | C167: BOSTON,MA,UNST (BOS) | D167: =IFERROR(VLOOKUP(C167,'[1]FACTORES DE EMISIÓN'!$CN$4:$CO$47,2,0),0) -> 4196 | E167: N° viajes | R167: =SUM(F167:Q167) -> 0 | S167: =COUNT(F167:Q167) -> 0 | T167: =IFERROR(VLOOKUP(C167,'[1]FACTORES DE EMISIÓN'!$CN$4:$CP$47,3,0),0) -> 303.5 | U167: kg CO2/trayecto | V167: =IFERROR((R167*T167)/1000,0) -> 0
B168: BOGOTÁ, COLOMBIA (BOG) | C168: BOSTON,MA,UNST (BOS) | D168: =IFERROR(VLOOKUP(C168,'[1]FACTORES DE EMISIÓN'!$CN$4:$CO$47,2,0),0) -> 4196 | E168: N° viajes | M168: , | R168: =SUM(F168:Q168) -> 0 | S168: =COUNT(F168:Q168) -> 0 | T168: =IFERROR(VLOOKUP(C168,'[1]FACTORES DE EMISIÓN'!$CN$4:$CP$47,3,0),0) -> 303.5 | U168: kg CO2/trayecto | V168: =IFERROR((R168*T168)/1000,0) -> 0
B169: BOGOTÁ, COLOMBIA (BOG) | C169: BOSTON,MA,UNST (BOS) | D169: =IFERROR(VLOOKUP(C169,'[1]FACTORES DE EMISIÓN'!$CN$4:$CO$47,2,0),0) -> 4196 | E169: N° viajes | R169: =SUM(F169:Q169) -> 0 | S169: =COUNT(F169:Q169) -> 0 | T169: =IFERROR(VLOOKUP(C169,'[1]FACTORES DE EMISIÓN'!$CN$4:$CP$47,3,0),0) -> 303.5 | U169: kg CO2/trayecto | V169: =IFERROR((R169*T169)/1000,0) -> 0
B170: TOTAL EMISIONES | V170: =SUM(V165:V169) -> 182.1
A173: VIAJES AÉREOS INTERNACIONALES
A174: 2019 | B174: ORIGEN | C174: DESTINO | D174: DISTANCIA (km) | E174: UNIDAD | F174: NÚMERO DE VIAJES | S174: No. DE DATOS | T174: FACTOR DE EMISIÓN | U174: UNIDADES DEL FACTOR | V174: HUELLA DE CARBONO (TON CO2)
F175: ENE | G175: FEB | H175: MAR | I175: ABR | J175: MAY | K175: JUN | L175: JUL | M175: AGO | N175: SEP | O175: OCT | P175: NOV | Q175: DIC | R175: TOTAL
C176: Escoja la opción que corresponda | F176: Digite la cantidad de viajes por cada trayecto
B177: BOGOTÁ, COLOMBIA (BOG) | C177: BOSTON,MA,UNST (BOS) | D177: =IFERROR(VLOOKUP(C177,'[1]FACTORES DE EMISIÓN'!$CN$4:$CO$47,2,0),0) -> 4196 | E177: N° viajes | R177: =SUM(F177:Q177) -> 0 | S177: =COUNT(F177:Q177) -> 0 | T177: =IFERROR(VLOOKUP(C177,'[1]FACTORES DE EMISIÓN'!$CN$4:$CP$47,3,0),0) -> 303.5 | U177: kg CO2/trayecto | V177: =IFERROR((R177*T177)/1000,0) -> 0
B178: BOGOTÁ, COLOMBIA (BOG) | C178: BOSTON,MA,UNST (BOS) | D178: =IFERROR(VLOOKUP(C178,'[1]FACTORES DE EMISIÓN'!$CN$4:$CO$47,2,0),0) -> 4196 | E178: N° viajes | R178: =SUM(F178:Q178) -> 0 | S178: =COUNT(F178:Q178) -> 0 | T178: =IFERROR(VLOOKUP(C178,'[1]FACTORES DE EMISIÓN'!$CN$4:$CP$47,3,0),0) -> 303.5 | U178: kg CO2/trayecto | V178: =IFERROR((R178*T178)/1000,0) -> 0
B179: BOGOTÁ, COLOMBIA (BOG) | C179: BOSTON,MA,UNST (BOS) | D179: =IFERROR(VLOOKUP(C179,'[1]FACTORES DE EMISIÓN'!$CN$4:$CO$47,2,0),0) -> 4196 | E179: N° viajes | R179: =SUM(F179:Q179) -> 0 | S179: =COUNT(F179:Q179) -> 0 | T179: =IFERROR(VLOOKUP(C179,'[1]FACTORES DE EMISIÓN'!$CN$4:$CP$47,3,0),0) -> 303.5 | U179: kg CO2/trayecto | V179: =IFERROR((R179*T179)/1000,0) -> 0
B180: BOGOTÁ, COLOMBIA (BOG) | C180: BOSTON,MA,UNST (BOS) | D180: =IFERROR(VLOOKUP(C180,'[1]FACTORES DE EMISIÓN'!$CN$4:$CO$47,2,0),0) -> 4196 | E180: N° viajes | M180: , | R180: =SUM(F180:Q180) -> 0 | S180: =COUNT(F180:Q180) -> 0 | T180: =IFERROR(VLOOKUP(C180,'[1]FACTORES DE EMISIÓN'!$CN$4:$CP$47,3,0),0) -> 303.5 | U180: kg CO2/trayecto | V180: =IFERROR((R180*T180)/1000,0) -> 0
B181: BOGOTÁ, COLOMBIA (BOG) | C181: BOSTON,MA,UNST (BOS) | D181: =IFERROR(VLOOKUP(C181,'[1]FACTORES DE EMISIÓN'!$CN$4:$CO$47,2,0),0) -> 4196 | E181: N° viajes | R181: =SUM(F181:Q181) -> 0 | S181: =COUNT(F181:Q181) -> 0 | T181: =IFERROR(VLOOKUP(C181,'[1]FACTORES DE EMISIÓN'!$CN$4:$CP$47,3,0),0) -> 303.5 | U181: kg CO2/trayecto | V181: =IFERROR((R181*T181)/1000,0) -> 0
B182: TOTAL EMISIONES | V182: =SUM(V177:V181) -> 0
A185: VIAJES AÉREOS INTERNACIONALES
A186: 2020 | B186: ORIGEN | C186: DESTINO | D186: DISTANCIA (km) | E186: UNIDAD | F186: NÚMERO DE VIAJES | S186: No. DE DATOS | T186: FACTOR DE EMISIÓN | U186: UNIDADES DEL FACTOR | V186: HUELLA DE CARBONO (TON CO2)
F187: ENE | G187: FEB | H187: MAR | I187: ABR | J187: MAY | K187: JUN | L187: JUL | M187: AGO | N187: SEP | O187: OCT | P187: NOV | Q187: DIC | R187: TOTAL
C188: Escoja la opción que corresponda | F188: Digite la cantidad de viajes por cada trayecto
B189: BOGOTÁ, COLOMBIA (BOG) | C189: BOSTON,MA,UNST (BOS) | D189: =IFERROR(VLOOKUP(C189,'[1]FACTORES DE EMISIÓN'!$CN$4:$CO$47,2,0),0) -> 4196 | E189: N° viajes | R189: =SUM(F189:Q189) -> 0 | S189: =COUNT(F189:Q189) -> 0 | T189: =IFERROR(VLOOKUP(C189,'[1]FACTORES DE EMISIÓN'!$CN$4:$CP$47,3,0),0) -> 303.5 | U189: kg CO2/trayecto | V189: =IFERROR((R189*T189)/1000,0) -> 0
B190: BOGOTÁ, COLOMBIA (BOG) | C190: BOSTON,MA,UNST (BOS) | D190: =IFERROR(VLOOKUP(C190,'[1]FACTORES DE EMISIÓN'!$CN$4:$CO$47,2,0),0) -> 4196 | E190: N° viajes | R190: =SUM(F190:Q190) -> 0 | S190: =COUNT(F190:Q190) -> 0 | T190: =IFERROR(VLOOKUP(C190,'[1]FACTORES DE EMISIÓN'!$CN$4:$CP$47,3,0),0) -> 303.5 | U190: kg CO2/trayecto | V190: =IFERROR((R190*T190)/1000,0) -> 0
B191: BOGOTÁ, COLOMBIA (BOG) | C191: BOSTON,MA,UNST (BOS) | D191: =IFERROR(VLOOKUP(C191,'[1]FACTORES DE EMISIÓN'!$CN$4:$CO$47,2,0),0) -> 4196 | E191: N° viajes | R191: =SUM(F191:Q191) -> 0 | S191: =COUNT(F191:Q191) -> 0 | T191: =IFERROR(VLOOKUP(C191,'[1]FACTORES DE EMISIÓN'!$CN$4:$CP$47,3,0),0) -> 303.5 | U191: kg CO2/trayecto | V191: =IFERROR((R191*T191)/1000,0) -> 0
B192: BOGOTÁ, COLOMBIA (BOG) | C192: BOSTON,MA,UNST (BOS) | D192: =IFERROR(VLOOKUP(C192,'[1]FACTORES DE EMISIÓN'!$CN$4:$CO$47,2,0),0) -> 4196 | E192: N° viajes | M192: , | R192: =SUM(F192:Q192) -> 0 | S192: =COUNT(F192:Q192) -> 0 | T192: =IFERROR(VLOOKUP(C192,'[1]FACTORES DE EMISIÓN'!$CN$4:$CP$47,3,0),0) -> 303.5 | U192: kg CO2/trayecto | V192: =IFERROR((R192*T192)/1000,0) -> 0
B193: BOGOTÁ, COLOMBIA (BOG) | C193: BOSTON,MA,UNST (BOS) | D193: =IFERROR(VLOOKUP(C193,'[1]FACTORES DE EMISIÓN'!$CN$4:$CO$47,2,0),0) -> 4196 | E193: N° viajes | R193: =SUM(F193:Q193) -> 0 | S193: =COUNT(F193:Q193) -> 0 | T193: =IFERROR(VLOOKUP(C193,'[1]FACTORES DE EMISIÓN'!$CN$4:$CP$47,3,0),0) -> 303.5 | U193: kg CO2/trayecto | V193: =IFERROR((R193*T193)/1000,0) -> 0
B194: TOTAL EMISIONES | V194: =SUM(V189:V193) -> 0
A197: VIAJES AÉREOS INTERNACIONALES
A198: 2021 | B198: ORIGEN | C198: DESTINO | D198: DISTANCIA (km) | E198: UNIDAD | F198: NÚMERO DE VIAJES | S198: No. DE DATOS | T198: FACTOR DE EMISIÓN | U198: UNIDADES DEL FACTOR | V198: HUELLA DE CARBONO (TON CO2)
F199: ENE | G199: FEB | H199: MAR | I199: ABR | J199: MAY | K199: JUN | L199: JUL | M199: AGO | N199: SEP | O199: OCT | P199: NOV | Q199: DIC | R199: TOTAL
C200: Escoja la opción que corresponda | F200: Digite la cantidad de viajes por cada trayecto
B201: BOGOTÁ, COLOMBIA (BOG) | C201: BOSTON,MA,UNST (BOS) | D201: =IFERROR(VLOOKUP(C201,'[1]FACTORES DE EMISIÓN'!$CN$4:$CO$47,2,0),0) -> 4196 | E201: N° viajes | R201: =SUM(F201:Q201) -> 0 | S201: =COUNT(F201:Q201) -> 0 | T201: =IFERROR(VLOOKUP(C201,'[1]FACTORES DE EMISIÓN'!$CN$4:$CP$47,3,0),0) -> 303.5 | U201: kg CO2/trayecto | V201: =IFERROR((R201*T201)/1000,0) -> 0
B202: BOGOTÁ, COLOMBIA (BOG) | C202: BOSTON,MA,UNST (BOS) | D202: =IFERROR(VLOOKUP(C202,'[1]FACTORES DE EMISIÓN'!$CN$4:$CO$47,2,0),0) -> 4196 | E202: N° viajes | R202: =SUM(F202:Q202) -> 0 | S202: =COUNT(F202:Q202) -> 0 | T202: =IFERROR(VLOOKUP(C202,'[1]FACTORES DE EMISIÓN'!$CN$4:$CP$47,3,0),0) -> 303.5 | U202: kg CO2/trayecto | V202: =IFERROR((R202*T202)/1000,0) -> 0
B203: BOGOTÁ, COLOMBIA (BOG) | C203: BOSTON,MA,UNST (BOS) | D203: =IFERROR(VLOOKUP(C203,'[1]FACTORES DE EMISIÓN'!$CN$4:$CO$47,2,0),0) -> 4196 | E203: N° viajes | R203: =SUM(F203:Q203) -> 0 | S203: =COUNT(F203:Q203) -> 0 | T203: =IFERROR(VLOOKUP(C203,'[1]FACTORES DE EMISIÓN'!$CN$4:$CP$47,3,0),0) -> 303.5 | U203: kg CO2/trayecto | V203: =IFERROR((R203*T203)/1000,0) -> 0
B204: BOGOTÁ, COLOMBIA (BOG) | C204: BOSTON,MA,UNST (BOS) | D204: =IFERROR(VLOOKUP(C204,'[1]FACTORES DE EMISIÓN'!$CN$4:$CO$47,2,0),0) -> 4196 | E204: N° viajes | M204: , | R204: =SUM(F204:Q204) -> 0 | S204: =COUNT(F204:Q204) -> 0 | T204: =IFERROR(VLOOKUP(C204,'[1]FACTORES DE EMISIÓN'!$CN$4:$CP$47,3,0),0) -> 303.5 | U204: kg CO2/trayecto | V204: =IFERROR((R204*T204)/1000,0) -> 0
B205: BOGOTÁ, COLOMBIA (BOG) | C205: BOSTON,MA,UNST (BOS) | D205: =IFERROR(VLOOKUP(C205,'[1]FACTORES DE EMISIÓN'!$CN$4:$CO$47,2,0),0) -> 4196 | E205: N° viajes | R205: =SUM(F205:Q205) -> 0 | S205: =COUNT(F205:Q205) -> 0 | T205: =IFERROR(VLOOKUP(C205,'[1]FACTORES DE EMISIÓN'!$CN$4:$CP$47,3,0),0) -> 303.5 | U205: kg CO2/trayecto | V205: =IFERROR((R205*T205)/1000,0) -> 0
B206: TOTAL EMISIONES | V206: =SUM(V201:V205) -> 0
A208: OTRAS FUENTES DE EMISIÓN
A209: 2017 | B209: FUENTE DE EMISIÓN | D209: UNIDAD EN LA CUAL DEBE INGRESAR LA INFORMACIÓN | F209: CONSUMO DE ACUERDO A LA UNIDAD SOICITADA | S209: No. DE DATOS | T209: FACTOR DE EMISIÓN | U209: UNIDADES DEL FACTOR | V209: HUELLA DE CARBONO (TON CO2)
F210: ENE | G210: FEB | H210: MAR | I210: ABR | J210: MAY | K210: JUN | L210: JUL | M210: AGO | N210: SEP | O210: OCT | P210: NOV | Q210: DIC | R210: TOTAL
B211: Escoja la opción que corresponda | F211: Digite el valor de la unidad asociada a la fuente de emisión elegida
B212: Polietileno de baja densidad | D212: =+VLOOKUP(B21:B212,'[1]FACTORES DE EMISIÓN'!$CA$4:$CE$37,2,FALSE) -> kg | R212: =SUM(F212:Q212) -> 0 | S212: =COUNT(F212:Q212) -> 0 | T212: =+VLOOKUP(B21:B212,'[1]FACTORES DE EMISIÓN'!$CA$4:$CE$37,5,FALSE) -> 2.08 | U212: =+VLOOKUP(B212,'FACTORES DE EMISIÓN '!$CA$4:$CE$37,4,FALSE) -> kgCO2 e/kg | V212: =IFERROR((R212*T212)/1000,0) -> 0
B213: Papel brillante de revista | D213: =+VLOOKUP(B22:B213,'[1]FACTORES DE EMISIÓN'!$CA$4:$CE$37,2,FALSE) -> kg | R213: =SUM(F213:Q213) -> 0 | S213: =COUNT(F213:Q213) -> 0 | T213: =+VLOOKUP(B22:B213,'[1]FACTORES DE EMISIÓN'!$CA$4:$CE$37,5,FALSE) -> 1.39 | U213: =+VLOOKUP(B213,'FACTORES DE EMISIÓN '!$CA$4:$CE$37,4,FALSE) -> kgCO2 e/kg | V213: =IFERROR((R213*T213)/1000,0) -> 0
B214: Papel mate de revista | D214: =+VLOOKUP(B23:B214,'[1]FACTORES DE EMISIÓN'!$CA$4:$CE$37,2,FALSE) -> kg | R214: =SUM(F214:Q214) -> 0 | S214: =COUNT(F214:Q214) -> 0 | T214: =+VLOOKUP(B23:B214,'[1]FACTORES DE EMISIÓN'!$CA$4:$CE$37,5,FALSE) -> 0.83 | U214: =+VLOOKUP(B214,'FACTORES DE EMISIÓN '!$CA$4:$CE$37,4,FALSE) -> kgCO2 e/kg | V214: =IFERROR((R214*T214)/1000,0) -> 0
B215: Polipropileno | D215: =+VLOOKUP(B24:B215,'[1]FACTORES DE EMISIÓN'!$CA$4:$CE$37,2,FALSE) -> kg | M215: , | R215: =SUM(F215:Q215) -> 0 | S215: =COUNT(F215:Q215) -> 0 | T215: =+VLOOKUP(B24:B215,'[1]FACTORES DE EMISIÓN'!$CA$4:$CE$37,5,FALSE) -> 2.89 | U215: =+VLOOKUP(B215,'FACTORES DE EMISIÓN '!$CA$4:$CE$37,4,FALSE) -> kgCO2 e/kg | V215: =IFERROR((R215*T215)/1000,0) -> 0
B216: Residuos solidos pulpa y papel a relleno sanitario anaeróbico | D216: =+VLOOKUP(B25:B216,'[1]FACTORES DE EMISIÓN'!$CA$4:$CE$37,2,FALSE) -> kg húmedo | R216: =SUM(F216:Q216) -> 0 | S216: =COUNT(F216:Q216) -> 0 | T216: =+VLOOKUP(B25:B216,'[1]FACTORES DE EMISIÓN'!$CA$4:$CE$37,5,FALSE) -> 3.733333333 | U216: =+VLOOKUP(B216,'FACTORES DE EMISIÓN '!$CA$4:$CE$37,4,FALSE) -> kgCO2/kg húmedo | V216: =IFERROR((R216*T216)/1000,0) -> 0
B217: TOTAL EMISIONES | V217: =SUM(V212:V216) -> 0
A219: OTRAS FUENTES DE EMISIÓN
A220: 2018 | B220: FUENTE DE EMISIÓN | D220: UNIDAD EN LA CUAL DEBE INGRESAR LA INFORMACIÓN | F220: CONSUMO DE ACUERDO A LA UNIDAD SOICITADA | S220: No. DE DATOS | T220: FACTOR DE EMISIÓN | U220: UNIDADES DEL FACTOR | V220: HUELLA DE CARBONO (TON CO2)
F221: ENE | G221: FEB | H221: MAR | I221: ABR | J221: MAY | K221: JUN | L221: JUL | M221: AGO | N221: SEP | O221: OCT | P221: NOV | Q221: DIC | R221: TOTAL
B222: Escoja la opción que corresponda | F222: Digite el valor de la unidad asociada a la fuente de emisión elegida
... 103 more rows

Sheet EVS (hidden)
A1: AÑO | B1: ¿Organización en la que trabaja? | C1: Nombre completo | D1: Dirección de correo electrónico a la cual remitiremos su resultado: | E1: Localidad | F1: ¿Usa calentador en su baño? | G1: ¿Minutos de su baño diario? | H1: ¿Horas de su baño diario? | I1: Huella de cabono (Kg CO2/mes) | J1: ¿Tipo de bombillos en el hogar? | K1: # Ahorradores | L1: #LED | M1: # Incandescentes | N1: T. solar | O1: Huella de cabono (Kg CO2/mes) | P1: Promedio bolsas de residuos generadas a la semana | Q1: Huella de cabono (Kg CO2/mes) | R1: ¿Cuál modo de transporte utiliza con mayor frecuencia para ir al trabajo o universidad? | S1: Distancia recorrida (km/mes ) | T1: Huella de cabono (Kg CO2/mes) | U1: ¿Con qué frecuencia consume carne de res a la semana? | V1: Huella de cabono (Kg CO2/mes) | W1: ¿Cuantos restos de comida dejo en el plato ? | X1: Huella de cabono (Kg CO2/mes) | Y1: TOTAL HUELLA DE CARBONO(Kg CO2/mes) | Z1: TOTAL HUELLA DE CARBONO(Ton CO2/mes) | AA1: TOTAL HUELLA DE CARBONO(Kg CO2/año) | AB1: TOTAL HUELLA DE CARBONO(Ton CO2/año)
A2: 2016 | B2: VERITEST LTDA | C2: jtrjt | D2: dsfdsf@dfsf.com | E2: Ciudad Bolívar | F2: Calentador a Gas | G2: 20 | H2: =+G2/60 -> 0.3333333333 | I2: =IF(F2="Calentador a Gas",(H2*1.6*1.98*30),IF(F2="Calentador Eléctrico",(H2*1.3*0.199*30),IF(F2="Ducha Eléctrica",(H2*4*0.199*30),IF(F2="Ninguno","0")))) -> 31.68 | J2: Tecnología solar | K2: 8 | L2: 8 | M2: 8 | N2: 8 | O2: =IF(J2="Ahorradores ",(K2*0.02*5*0.199*30),IF(J2="Incandescentes ",(M2*0.1*5*0.199*30),IF(J2="LED",(L2*0.007*5*0.199*30),IF(J2="Tecnología solar ",(N2*0))))) -> 0 | P2: 1.5 | Q2: =P2*9*0.8312 -> 11.2212 | R2: En bicicleta | S2: 600 | T2: =IF(R2="En bicicleta",(0*S2),IF(R2="En carro",(0.218 *S2),IF(R2="En bus o SITP ",((0.78703*S2)/40),IF(R2=" En transmilenio",((0.68516*S2)/140))))) -> 0 | U2: 5 veces por semana | V2: =IF(U2="Nunca",0,IF(U2="3 veces por semana","513",IF(U2="5 veces por semana",855,IF(U2="Todos los días",1197)))) -> 855 | W2: No dejo restos de alimentos | X2: =IF(W2="No dejo restos de alimentos",(0),IF(W2="Un cuarto del plato",(0.25*0.5*0.8312*30),IF(W2="La mitad del plato",(0.5*0.5*0.8312*30),IF(W2="Tres cuartos del plato",(0.75*0.5*0.8312*30))))) -> 0 | Y2: =V2+T2+Q2+O2+I2+X2 -> 897.9012 | Z2: =Y2/1000 -> 0.8979012 | AA2: =Y2*12 -> 10774.8144 | AB2: =Z2*12 -> 10.7748144
A3: 2016 | B3: GASEOSAS COLOMBIANAS S.A.S PLANTA CENTRO | C3: Alejandra Molano | D3: sip@hotmail.com.co | E3: Puente Aranda | F3: Calentador Eléctrico | G3: 20 | H3: =+G3/60 -> 0.3333333333 | I3: =IF(F3="Calentador a Gas",(H3*1.6*1.98*30),IF(F3="Calentador Eléctrico",(H3*1.3*0.199*30),IF(F3="Ducha Eléctrica",(H3*4*0.199*30),IF(F3="Ninguno","0")))) -> 2.587 | J3: Incandescentes | K3: 8 | L3: 8 | M3: 10 | N3: 8 | O3: =IF(J3="Ahorradores ",(K3*0.02*5*0.199*30),IF(J3="Incandescentes ",(M3*0.1*5*0.199*30),IF(J3="LED",(L3*0.007*5*0.199*30),IF(J3="Tecnología solar ",(N3*0))))) -> 29.85 | P3: 5 | Q3: =P3*9*0.8312 -> 37.404 | R3: En transmilenio | S3: 600 | T3: =IF(R3="En bicicleta",(0*S3),IF(R3="En carro",(0.218 *S3),IF(R3="En bus o SITP ",((0.78703*S3)/40),IF(R3=" En transmilenio",((0.68516*S3)/140))))) -> 2.9364 | U3: 3 veces por semana | V3: 513 | W3: Un cuarto del plato | X3: 3.117 | Y3: =V3+T3+Q3+O3+I3+X3 -> 588.8944 | Z3: =Y3/1000 -> 0.5888944 | AA3: =Y3*12 -> 7066.7328 | AB3: =Z3*12 -> 7.0667328
A4: 2016 | B4: AGENCIA DE ADUANAS SIACO S.A.S. NIVEL 1 | C4: David Ramirez | D4: dramirez180929@gmail.com | E4: Suba | F4: Ducha Eléctrica | G4: 20 | H4: 0.3333333333 | I4: 7.96 | J4: LED | K4: 8 | L4: 16 | M4: 8 | N4: 8 | O4: 3.3432 | P4: 5 | Q4: 37.404 | R4: En bus o SITP | S4: 600 | T4: 11.80545 | U4: Nunca | V4: 0 | W4: La mitad del plato | X4: =IF(W4="No dejo restos de alimentos",(0),IF(W4="Un cuarto del plato",(0.25*0.5*0.8312*30),IF(W4="La mitad del plato",(0.5*0.5*0.8312*30),IF(W4="Tres cuartos del plato",(0.75*0.5*0.8312*30))))) -> 6.234 | Y4: 66.74665 | Z4: 0.06674665 | AA4: 800.9598 | AB4: 0.8009598
A5: 2016 | B5: AGENCIA DE ADUANAS SIACO S.A.S. NIVEL 1 | C5: Jaime Andres Castañeda Moyano | D5: jaime.castaneda@repremundo.com | E5: Engativá | F5: Ninguno | G5: 5 | H5: 0.08333333333 | I5: 0 | J5: Ahorradores | K5: 8 | L5: 8 | M5: 8 | N5: 8 | O5: 4.776 | P5: 5 | Q5: 37.404 | R5: En carro | S5: 600 | T5: 130.8 | U5: Todos los días | V5: 1197 | W5: Tres cuartos del plato | X5: =IF(W5="No dejo restos de alimentos",(0),IF(W5="Un cuarto del plato",(0.25*0.5*0.8312*30),IF(W5="La mitad del plato",(0.5*0.5*0.8312*30),IF(W5="Tres cuartos del plato",(0.75*0.5*0.8312*30))))) -> 9.351 | Y5: 1379.331 | Z5: 1.379331 | AA5: 16551.972 | AB5: 16.551972
A6: 2016 | B6: ANÁLISIS FISICOQUÍMICO Y MICROBIOLÓGICO AQM S.A.S. | C6: Eliana Fernández | D6: eliana_0925@hotmail.com | E6: Fontibón | F6: Calentador a Gas | G6: 10 | H6: 0.1666666667 | I6: 15.84 | J6: Tecnología solar | K6: 8 | L6: 8 | M6: 8 | N6: 8 | O6: 0 | P6: 5 | Q6: 37.404 | R6: En transmilenio | S6: 600 | T6: 2.9364 | U6: Nunca | V6: 0 | W6: La mitad del plato | X6: 6.234 | Y6: 62.4144 | Z6: 0.0624144 | AA6: 748.9728 | AB6: 0.7489728
A7: 2016 | B7: DIRECCIÓN DE PROTECCIÓN Y SERVICIOS ESPECIALES | C7: Eliud Castro Martínez | D7: dipro.gambiental@policia.gov.co | E7: Engativá | F7: Calentador a Gas | G7: 5 | H7: 0.08333333333 | I7: 7.92 | J7: Tecnología solar | K7: 8 | L7: 8 | M7: 8 | N7: 8 | O7: 0 | P7: 5 | Q7: 37.404 | R7: En transmilenio | S7: 600 | T7: 2.9364 | U7: Nunca | V7: 0 | W7: No dejo restos de alimentos | X7: 0 | Y7: 48.2604 | Z7: 0.0482604 | AA7: 579.1248 | AB7: 0.5791248
A8: 2016 | B8: TECSER LABORATORIOS S.A. | C8: LEIDY JOHANA RICARDO | D8: aseguramiento@pyvascosmetic.com | E8: Engativá | F8: Calentador a Gas | G8: 10 | H8: 0.1666666667 | I8: 15.84 | J8: Tecnología solar | K8: 8 | L8: 8 | M8: 8 | N8: 8 | O8: 0 | P8: 5 | Q8: 37.404 | R8: En transmilenio | S8: 600 | T8: 2.9364 | U8: Nunca | V8: 0 | W8: Un cuarto del plato | X8: 3.117 | Y8: 59.2974 | Z8: 0.0592974 | AA8: 711.5688 | AB8: 0.7115688
A9: 2016 | B9: GNE SOLUCIONES S.A.S. / EDS BIOMAX PUENTE AEREO/ Y BOSA | C9: ZULMA PATRICIA ROJAS MARTINEZ | D9: edsesperanza@biomax.com | E9: Usme | F9: Calentador a Gas | G9: 10 | H9: 0.1666666667 | I9: 15.84 | J9: Tecnología solar | K9: 8 | L9: 8 | M9: 8 | N9: 8 | O9: 0 | P9: 5 | Q9: 37.404 | R9: En transmilenio | S9: 600 | T9: 2.9364 | U9: Nunca | V9: 0 | W9: Un cuarto del plato | X9: 3.117 | Y9: 59.2974 | Z9: 0.0592974 | AA9: 711.5688 | AB9: 0.7115688
A10: 2016 | B10: GNE SOLUCIONES S.A.S. / EDS BIOMAX PUENTE AEREO/ Y BOSA | C10: Alvaro Rueda Rueda | D10: edsesperanza@biomax.co | E10: Soacha | F10: Calentador a Gas | G10: 10 | H10: 0.1666666667 | I10: 15.84 | J10: Tecnología solar | K10: 8 | L10: 8 | M10: 8 | N10: 8 | O10: 0 | P10: 5 | Q10: 37.404 | R10: En transmilenio | S10: 600 | T10: 2.9364 | U10: Nunca | V10: 0 | W10: La mitad del plato | X10: 6.234 | Y10: 62.4144 | Z10: 0.0624144 | AA10: 748.9728 | AB10: 0.7489728
A11: 2016 | B11: C.I SIGRA S.A | C11: Maria Fernanda | D11: mafe.ricau14@gmail.com | E11: Suba | F11: Calentador a Gas | G11: 8 | H11: 0.1333333333 | I11: 12.672 | J11: Tecnología solar | K11: 8 | L11: 8 | M11: 8 | N11: 8 | O11: 0 | P11: 5 | Q11: 37.404 | R11: En transmilenio | S11: 600 | T11: 2.9364 | U11: Nunca | V11: 0 | W11: No dejo restos de alimentos | X11: 0 | Y11: 53.0124 | Z11: 0.0530124 | AA11: 636.1488 | AB11: 0.6361488
A12: 2016 | B12: TECSER LABORATORIOS S.A. | C12: Daniel Alberto González Cano | D12: desarrollo@pyvascosmetic.com | E12: Antonio Nariño | F12: Calentador a Gas | G12: 5 | H12: 0.08333333333 | I12: 7.92 | J12: Tecnología solar | K12: 8 | L12: 8 | M12: 8 | N12: 8 | O12: 0 | P12: 5 | Q12: 37.404 | R12: En transmilenio | S12: 600 | T12: 2.9364 | U12: Nunca | V12: 0 | W12: No dejo restos de alimentos | X12: 0 | Y12: 48.2604 | Z12: 0.0482604 | AA12: 579.1248 | AB12: 0.5791248
A13: 2016 | B13: TECSER LABORATORIOS S.A. | C13: Laura Camila Castro Celis | D13: saludocupacional@pyvascosmetic.com | E13: Usme | F13: Calentador a Gas | G13: 5 | H13: 0.08333333333 | I13: 7.92 | J13: Tecnología solar | K13: 8 | L13: 8 | M13: 8 | N13: 8 | O13: 0 | P13: 5 | Q13: 37.404 | R13: En transmilenio | S13: 600 | T13: 2.9364 | U13: Nunca | V13: 0 | W13: No dejo restos de alimentos | X13: 0 | Y13: 48.2604 | Z13: 0.0482604 | AA13: 579.1248 | AB13: 0.5791248
A14: 2016 | B14: ASEPSIS PRODUCTS DE COLOMBIA- PROASEPSIS S.A.S | C14: RUTH AMELIA CALDERON HEREDIA | D14: rcalderon@proasepsis.com | E14: San Cristóbal | F14: Calentador a Gas | G14: 15 | H14: 0.25 | I14: 23.76 | J14: Tecnología solar | K14: 8 | L14: 8 | M14: 8 | N14: 8 | O14: 0 | P14: 5 | Q14: 37.404 | R14: En transmilenio | S14: 600 | T14: 2.9364 | U14: Nunca | V14: 0 | W14: No dejo restos de alimentos | X14: 0 | Y14: 64.1004 | Z14: 0.0641004 | AA14: 769.2048 | AB14: 0.7692048
A15: 2016 | B15: ASEPSIS PRODUCTS DE COLOMBIA- PROASEPSIS S.A.S | C15: Eugenio Huertas | D15: j.eugenio335@hotmail.com | E15: San Cristóbal | F15: Calentador a Gas | G15: 6.5 | H15: 0.1083333333 | I15: 10.296 | J15: Tecnología solar | K15: 8 | L15: 8 | M15: 8 | N15: 8 | O15: 0 | P15: 5 | Q15: 37.404 | R15: En transmilenio | S15: 600 | T15: 2.9364 | U15: Nunca | V15: 0 | W15: No dejo restos de alimentos | X15: 0 | Y15: 50.6364 | Z15: 0.0506364 | AA15: 607.6368 | AB15: 0.6076368
A16: 2016 | B16: GNE SOLUCIONES S.A.S. / EDS BIOMAX PUENTE AEREO/ Y BOSA | C16: WILLIAM AYCARDO POVEDA ROJAS | D16: EDSESPERANZA@BIOMAX.CO | E16: Soacha | F16: Calentador a Gas | G16: 15 | H16: 0.25 | I16: 23.76 | J16: Tecnología solar | K16: 8 | L16: 8 | M16: 8 | N16: 8 | O16: 0 | P16: 5 | Q16: 37.404 | R16: En transmilenio | S16: 600 | T16: 2.9364 | U16: Nunca | V16: 0 | W16: No dejo restos de alimentos | X16: 0 | Y16: 64.1004 | Z16: 0.0641004 | AA16: 769.2048 | AB16: 0.7692048
A17: 2016 | B17: GNE SOLUCIONES S.A.S. / EDS BIOMAX PUENTE AEREO/ Y BOSA | C17: leydy tatiana aroca novoa | D17: edsesperanza@biomas.co | E17: Soacha | F17: Calentador a Gas | G17: 15 | H17: 0.25 | I17: 23.76 | J17: Tecnología solar | K17: 8 | L17: 8 | M17: 8 | N17: 8 | O17: 0 | P17: 5 | Q17: 37.404 | R17: En transmilenio | S17: 600 | T17: 2.9364 | U17: Nunca | V17: 0 | W17: No dejo restos de alimentos | X17: 0 | Y17: 64.1004 | Z17: 0.0641004 | AA17: 769.2048 | AB17: 0.7692048
A18: 2016 | B18: GNE SOLUCIONES S.A.S. / EDS BIOMAX PUENTE AEREO/ Y BOSA | C18: ARBEYS QUIROGA DUSSAN | D18: EDSESPERANZA@BIOMAX.CO | E18: Ciudad Bolívar | F18: Calentador a Gas | G18: 15 | H18: 0.25 | I18: 23.76 | J18: Tecnología solar | K18: 8 | L18: 8 | M18: 8 | N18: 8 | O18: 0 | P18: 5 | Q18: 37.404 | R18: En transmilenio | S18: 600 | T18: 2.9364 | U18: Nunca | V18: 0 | W18: No dejo restos de alimentos | X18: 0 | Y18: 64.1004 | Z18: 0.0641004 | AA18: 769.2048 | AB18: 0.7692048
A19: 2016 | B19: ASEPSIS PRODUCTS DE COLOMBIA- PROASEPSIS S.A.S | C19: INGRID ARJONA | D19: iarjona@gmail.com | E19: Fontibón | F19: Calentador a Gas | G19: 8 | H19: 0.1333333333 | I19: 12.672 | J19: Tecnología solar | K19: 8 | L19: 8 | M19: 8 | N19: 8 | O19: 0 | P19: 5 | Q19: 37.404 | R19: En transmilenio | S19: 600 | T19: 2.9364 | U19: Nunca | V19: 0 | W19: No dejo restos de alimentos | X19: 0 | Y19: 53.0124 | Z19: 0.0530124 | AA19: 636.1488 | AB19: 0.6361488
A20: 2016 | B20: GNE SOLUCIONES S.A.S. / EDS BIOMAX PUENTE AEREO/ Y BOSA | C20: mireya garcia torres | D20: edsesperanza@biomax.co | E20: Bosa | F20: Calentador a Gas | G20: 15 | H20: 0.25 | I20: 23.76 | J20: Tecnología solar | K20: 8 | L20: 8 | M20: 8 | N20: 8 | O20: 0 | P20: 5 | Q20: 37.404 | R20: En transmilenio | S20: 600 | T20: 2.9364 | U20: Nunca | V20: 0 | W20: No dejo restos de alimentos | X20: 0 | Y20: 64.1004 | Z20: 0.0641004 | AA20: 769.2048 | AB20: 0.7692048
A21: 2016 | B21: GNE SOLUCIONES S.A.S. / EDS BIOMAX PUENTE AEREO/ Y BOSA | C21: OSMAN CARLOS ALVAREZ GARCIA | D21: EDSESPERANZA@BIOMAX.CO | E21: Soacha | F21: Calentador a Gas | G21: 10 | H21: 0.1666666667 | I21: 15.84 | J21: Tecnología solar | K21: 8 | L21: 8 | M21: 8 | N21: 8 | O21: 0 | P21: 5 | Q21: 37.404 | R21: En transmilenio | S21: 600 | T21: 2.9364 | U21: Nunca | V21: 0 | W21: No dejo restos de alimentos | X21: 0 | Y21: 56.1804 | Z21: 0.0561804 | AA21: 674.1648 | AB21: 0.6741648
F22: Calentador a Gas | I22: 0 | J22: Tecnología solar | O22: 0 | Q22: 0 | R22: En transmilenio | T22: 0 | U22: Nunca | V22: 0 | W22: No dejo restos de alimentos | X22: 0 | Y22: 0 | Z22: 0 | AA22: 0 | AB22: 0
F23: Calentador a Gas | I23: 0 | J23: Tecnología solar | O23: 0 | Q23: 0 | R23: En transmilenio | T23: 0 | U23: Nunca | V23: 0 | W23: No dejo restos de alimentos | X23: 0 | Y23: 0 | Z23: 0 | AA23: 0 | AB23: 0
F24: Calentador a Gas | I24: 0 | J24: Tecnología solar | O24: 0 | Q24: 0 | R24: En transmilenio | T24: 0 | U24: Nunca | V24: 0 | W24: No dejo restos de alimentos | X24: 0 | Y24: 0 | Z24: 0 | AA24: 0 | AB24: 0
F25: Calentador a Gas | I25: 0 | J25: Tecnología solar | O25: 0 | Q25: 0 | R25: En transmilenio | T25: 0 | U25: Nunca | V25: 0 | W25: No dejo restos de alimentos | X25: 0 | Y25: 0 | Z25: 0 | AA25: 0 | AB25: 0
F26: Calentador a Gas | I26: 0 | J26: Tecnología solar | O26: 0 | Q26: 0 | R26: En transmilenio | T26: 0 | U26: Nunca | V26: 0 | W26: No dejo restos de alimentos | X26: 0 | Y26: 0 | Z26: 0 | AA26: 0 | AB26: 0
F27: Calentador a Gas | I27: 0 | J27: Tecnología solar | O27: 0 | Q27: 0 | R27: En transmilenio | T27: 0 | U27: Nunca | V27: 0 | W27: No dejo restos de alimentos | X27: 0 | Y27: 0 | Z27: 0 | AA27: 0 | AB27: 0
F28: Calentador a Gas | I28: 0 | J28: Tecnología solar | O28: 0 | Q28: 0 | R28: En transmilenio | T28: 0 | U28: Nunca | V28: 0 | W28: No dejo restos de alimentos | X28: 0 | Y28: 0 | Z28: 0 | AA28: 0 | AB28: 0
F29: Calentador a Gas | I29: 0 | J29: Tecnología solar | O29: 0 | Q29: 0 | R29: En transmilenio | T29: 0 | U29: Nunca | V29: 0 | W29: No dejo restos de alimentos | X29: 0 | Y29: 0 | Z29: 0 | AA29: 0 | AB29: 0
F30: Calentador a Gas | I30: 0 | J30: Tecnología solar | O30: 0 | Q30: 0 | R30: En transmilenio | T30: 0 | U30: Nunca | V30: 0 | W30: No dejo restos de alimentos | X30: 0 | Y30: 0 | Z30: 0 | AA30: 0 | AB30: 0
F31: Calentador a Gas | I31: 0 | J31: Tecnología solar | O31: 0 | Q31: 0 | R31: En transmilenio | T31: 0 | U31: Nunca | V31: 0 | W31: No dejo restos de alimentos | X31: 0 | Y31: 0 | Z31: 0 | AA31: 0 | AB31: 0
F32: Calentador a Gas | I32: 0 | J32: Tecnología solar | O32: 0 | Q32: 0 | R32: En transmilenio | T32: 0 | U32: Nunca | V32: 0 | W32: No dejo restos de alimentos | X32: 0 | Y32: 0 | Z32: 0 | AA32: 0 | AB32: 0
F33: Calentador a Gas | I33: 0 | J33: Tecnología solar | O33: 0 | Q33: 0 | R33: En transmilenio | T33: 0 | U33: Nunca | V33: 0 | W33: No dejo restos de alimentos | X33: 0 | Y33: 0 | Z33: 0 | AA33: 0 | AB33: 0
F34: Calentador a Gas | I34: 0 | J34: Tecnología solar | O34: 0 | Q34: 0 | R34: En transmilenio | T34: 0 | U34: Nunca | V34: 0 | W34: No dejo restos de alimentos | X34: 0 | Y34: 0 | Z34: 0 | AA34: 0 | AB34: 0
F35: Calentador a Gas | I35: 0 | J35: Tecnología solar | O35: 0 | Q35: 0 | R35: En transmilenio | T35: 0 | U35: Nunca | V35: 0 | W35: No dejo restos de alimentos | X35: 0 | Y35: 0 | Z35: 0 | AA35: 0 | AB35: 0
F36: Calentador a Gas | I36: 0 | J36: Tecnología solar | O36: 0 | Q36: 0 | R36: En transmilenio | T36: 0 | U36: Nunca | V36: 0 | W36: No dejo restos de alimentos | X36: 0 | Y36: 0 | Z36: 0 | AA36: 0 | AB36: 0
F37: Calentador a Gas | I37: 0 | J37: Tecnología solar | O37: 0 | Q37: 0 | R37: En transmilenio | T37: 0 | U37: Nunca | V37: 0 | W37: No dejo restos de alimentos | X37: 0 | Y37: 0 | Z37: 0 | AA37: 0 | AB37: 0
F38: Calentador a Gas | I38: 0 | J38: Tecnología solar | O38: 0 | Q38: 0 | R38: En transmilenio | T38: 0 | U38: Nunca | V38: 0 | W38: No dejo restos de alimentos | X38: 0 | Y38: 0 | Z38: 0 | AA38: 0 | AB38: 0
F39: Calentador a Gas | I39: 0 | J39: Tecnología solar | O39: 0 | Q39: 0 | R39: En transmilenio | T39: 0 | U39: Nunca | V39: 0 | W39: No dejo restos de alimentos | X39: 0 | Y39: 0 | Z39: 0 | AA39: 0 | AB39: 0
F40: Calentador a Gas | I40: 0 | J40: Tecnología solar | O40: 0 | Q40: 0 | R40: En transmilenio | T40: 0 | U40: Nunca | V40: 0 | W40: No dejo restos de alimentos | X40: 0 | Y40: 0 | Z40: 0 | AA40: 0 | AB40: 0
F41: Calentador a Gas | I41: 0 | J41: Tecnología solar | O41: 0 | Q41: 0 | R41: En transmilenio | T41: 0 | U41: Nunca | V41: 0 | W41: No dejo restos de alimentos | X41: 0 | Y41: 0 | Z41: 0 | AA41: 0 | AB41: 0
F42: Calentador a Gas | I42: 0 | J42: Tecnología solar | O42: 0 | Q42: 0 | R42: En transmilenio | T42: 0 | U42: Nunca | V42: 0 | W42: No dejo restos de alimentos | X42: 0 | Y42: 0 | Z42: 0 | AA42: 0 | AB42: 0
F43: Calentador a Gas | I43: 0 | J43: Tecnología solar | O43: 0 | Q43: 0 | R43: En transmilenio | T43: 0 | U43: Nunca | V43: 0 | W43: No dejo restos de alimentos | X43: 0 | Y43: 0 | Z43: 0 | AA43: 0 | AB43: 0
F44: Calentador a Gas | I44: 0 | J44: Tecnología solar | O44: 0 | Q44: 0 | R44: En transmilenio | T44: 0 | U44: Nunca | V44: 0 | W44: No dejo restos de alimentos | X44: 0 | Y44: 0 | Z44: 0 | AA44: 0 | AB44: 0
F45: Calentador a Gas | I45: 0 | J45: Tecnología solar | O45: 0 | Q45: 0 | R45: En transmilenio | T45: 0 | U45: Nunca | V45: 0 | W45: No dejo restos de alimentos | X45: 0 | Y45: 0 | Z45: 0 | AA45: 0 | AB45: 0
F46: Calentador a Gas | I46: 0 | J46: Tecnología solar | O46: 0 | Q46: 0 | R46: En transmilenio | T46: 0 | U46: Nunca | V46: 0 | W46: No dejo restos de alimentos | X46: 0 | Y46: 0 | Z46: 0 | AA46: 0 | AB46: 0
F47: Calentador a Gas | I47: 0 | J47: Tecnología solar | O47: 0 | Q47: 0 | R47: En transmilenio | T47: 0 | U47: Nunca | V47: 0 | W47: No dejo restos de alimentos | X47: 0 | Y47: 0 | Z47: 0 | AA47: 0 | AB47: 0
F48: Calentador a Gas | I48: 0 | J48: Tecnología solar | O48: 0 | Q48: 0 | R48: En transmilenio | T48: 0 | U48: Nunca | V48: 0 | W48: No dejo restos de alimentos | X48: 0 | Y48: 0 | Z48: 0 | AA48: 0 | AB48: 0
F49: Calentador a Gas | I49: 0 | J49: Tecnología solar | O49: 0 | Q49: 0 | R49: En transmilenio | T49: 0 | U49: Nunca | V49: 0 | W49: No dejo restos de alimentos | X49: 0 | Y49: 0 | Z49: 0 | AA49: 0 | AB49: 0
F50: Calentador a Gas | I50: 0 | J50: Tecnología solar | O50: 0 | Q50: 0 | R50: En transmilenio | T50: 0 | U50: Nunca | V50: 0 | W50: No dejo restos de alimentos | X50: 0 | Y50: 0 | Z50: 0 | AA50: 0 | AB50: 0
F51: Calentador a Gas | I51: 0 | J51: Tecnología solar | O51: 0 | Q51: 0 | R51: En transmilenio | T51: 0 | U51: Nunca | V51: 0 | W51: No dejo restos de alimentos | X51: 0 | Y51: 0 | Z51: 0 | AA51: 0 | AB51: 0
F52: Calentador a Gas | I52: 0 | J52: Tecnología solar | O52: 0 | Q52: 0 | R52: En transmilenio | T52: 0 | U52: Nunca | V52: 0 | W52: No dejo restos de alimentos | X52: 0 | Y52: 0 | Z52: 0 | AA52: 0 | AB52: 0
F53: Calentador a Gas | I53: 0 | J53: Tecnología solar | O53: 0 | Q53: 0 | R53: En transmilenio | T53: 0 | U53: Nunca | V53: 0 | W53: No dejo restos de alimentos | X53: 0 | Y53: 0 | Z53: 0 | AA53: 0 | AB53: 0
F54: Calentador a Gas | I54: 0 | J54: Tecnología solar | O54: 0 | Q54: 0 | R54: En transmilenio | T54: 0 | U54: Nunca | V54: 0 | W54: No dejo restos de alimentos | X54: 0 | Y54: 0 | Z54: 0 | AA54: 0 | AB54: 0
F55: Calentador a Gas | I55: 0 | J55: Tecnología solar | O55: 0 | Q55: 0 | R55: En transmilenio | T55: 0 | U55: Nunca | V55: 0 | W55: No dejo restos de alimentos | X55: 0 | Y55: 0 | Z55: 0 | AA55: 0 | AB55: 0
F56: Calentador a Gas | I56: 0 | J56: Tecnología solar | O56: 0 | Q56: 0 | R56: En transmilenio | T56: 0 | U56: Nunca | V56: 0 | W56: No dejo restos de alimentos | X56: 0 | Y56: 0 | Z56: 0 | AA56: 0 | AB56: 0
F57: Calentador a Gas | I57: 0 | J57: Tecnología solar | O57: 0 | Q57: 0 | R57: En transmilenio | T57: 0 | U57: Nunca | V57: 0 | W57: No dejo restos de alimentos | X57: 0 | Y57: 0 | Z57: 0 | AA57: 0 | AB57: 0
F58: Calentador a Gas | I58: 0 | J58: Tecnología solar | O58: 0 | Q58: 0 | R58: En transmilenio | T58: 0 | U58: Nunca | V58: 0 | W58: No dejo restos de alimentos | X58: 0 | Y58: 0 | Z58: 0 | AA58: 0 | AB58: 0
F59: Calentador a Gas | I59: 0 | J59: Tecnología solar | O59: 0 | Q59: 0 | R59: En transmilenio | T59: 0 | U59: Nunca | V59: 0 | W59: No dejo restos de alimentos | X59: 0 | Y59: 0 | Z59: 0 | AA59: 0 | AB59: 0
F60: Calentador a Gas | I60: 0 | J60: Tecnología solar | O60: 0 | Q60: 0 | R60: En transmilenio | T60: 0 | U60: Nunca | V60: 0 | W60: No dejo restos de alimentos | X60: 0 | Y60: 0 | Z60: 0 | AA60: 0 | AB60: 0
F61: Calentador a Gas | I61: 0 | J61: Tecnología solar | O61: 0 | Q61: 0 | R61: En transmilenio | T61: 0 | U61: Nunca | V61: 0 | W61: No dejo restos de alimentos | X61: 0 | Y61: 0 | Z61: 0 | AA61: 0 | AB61: 0
F62: Calentador a Gas | I62: 0 | J62: Tecnología solar | O62: 0 | Q62: 0 | R62: En transmilenio | T62: 0 | U62: Nunca | V62: 0 | W62: No dejo restos de alimentos | X62: 0 | Y62: 0 | Z62: 0 | AA62: 0 | AB62: 0
F63: Calentador a Gas | I63: 0 | J63: Tecnología solar | O63: 0 | Q63: 0 | R63: En transmilenio | T63: 0 | U63: Nunca | V63: 0 | W63: No dejo restos de alimentos | X63: 0 | Y63: 0 | Z63: 0 | AA63: 0 | AB63: 0
F64: Calentador a Gas | I64: 0 | J64: Tecnología solar | O64: 0 | Q64: 0 | R64: En transmilenio | T64: 0 | U64: Nunca | V64: 0 | W64: No dejo restos de alimentos | X64: 0 | Y64: 0 | Z64: 0 | AA64: 0 | AB64: 0
F65: Calentador a Gas | I65: 0 | J65: Tecnología solar | O65: 0 | Q65: 0 | R65: En transmilenio | T65: 0 | U65: Nunca | V65: 0 | W65: No dejo restos de alimentos | X65: 0 | Y65: 0 | Z65: 0 | AA65: 0 | AB65: 0
F66: Calentador a Gas | I66: 0 | J66: Tecnología solar | O66: 0 | Q66: 0 | R66: En transmilenio | T66: 0 | U66: Nunca | V66: =IF(U66="Nunca",0,IF(U66="3 veces por semana","513",IF(U66="5 veces por semana",855,IF(U66="Todos los días",1197)))) -> 0 | W66: No dejo restos de alimentos | X66: 0 | Y66: 0 | Z66: 0 | AA66: 0 | AB66: 0
F67: Calentador a Gas | I67: =IF(F67="Calentador a Gas",(H67*1.6*1.98*30),IF(F67="Calentador Eléctrico",(H67*1.3*0.199*30),IF(F67="Ducha Eléctrica",(H67*4*0.199*30),IF(F67="Ninguno","0")))) -> 0 | J67: Tecnología solar | O67: =IF(J67="Ahorradores ",(K67*0.02*5*0.199*30),IF(J67="Incandescentes ",(M67*0.1*5*0.199*30),IF(J67="LED",(L67*0.007*5*0.199*30),IF(J67="Tecnología solar ",(N67*0))))) -> 0 | Q67: =P67*9*0.8312 -> 0 | R67: En transmilenio | T67: =IF(R67="En bicicleta",(0*S67),IF(R67="En carro",(0.218 *S67),IF(R67="En bus o SITP ",((0.78703*S67)/40),IF(R67=" En transmilenio",((0.68516*S67)/140))))) -> 0 | U67: Nunca | V67: 0 | W67: No dejo restos de alimentos | X67: 0 | Y67: =V67+T67+Q67+O67+I67+X67 -> 0 | Z67: =Y67/1000 -> 0 | AA67: =Y67*12 -> 0 | AB67: 0
F68: Calentador a Gas | I68: 0 | J68: Tecnología solar | O68: 0 | Q68: 0 | R68: En transmilenio | T68: 0 | U68: Nunca | V68: 0 | W68: No dejo restos de alimentos | X68: 0 | Y68: 0 | Z68: 0 | AA68: 0 | AB68: 0
F69: Calentador a Gas | I69: 0 | J69: Tecnología solar | O69: 0 | Q69: 0 | R69: En transmilenio | T69: 0 | U69: Nunca | V69: 0 | W69: No dejo restos de alimentos | X69: =IF(W69="No dejo restos de alimentos",(0),IF(W69="Un cuarto del plato",(0.25*0.5*0.8312*30),IF(W69="La mitad del plato",(0.5*0.5*0.8312*30),IF(W69="Tres cuartos del plato",(0.75*0.5*0.8312*30))))) -> 0 | Y69: 0 | Z69: 0 | AA69: 0 | AB69: 0
F70: Calentador a Gas | I70: 0 | J70: Tecnología solar | O70: 0 | Q70: 0 | R70: En transmilenio | T70: 0 | U70: Nunca | V70: 0 | W70: No dejo restos de alimentos | X70: 0 | Y70: 0 | Z70: 0 | AA70: 0 | AB70: 0
F71: Calentador a Gas | I71: 0 | J71: Tecnología solar | O71: 0 | Q71: 0 | R71: En transmilenio | T71: 0 | U71: Nunca | V71: 0 | W71: No dejo restos de alimentos | X71: 0 | Y71: 0 | Z71: 0 | AA71: 0 | AB71: 0
F72: Calentador a Gas | I72: 0 | J72: Tecnología solar | O72: 0 | Q72: 0 | R72: En transmilenio | T72: 0 | U72: Nunca | V72: 0 | W72: No dejo restos de alimentos | X72: 0 | Y72: 0 | Z72: 0 | AA72: 0 | AB72: 0
F73: Calentador a Gas | I73: 0 | J73: Tecnología solar | O73: 0 | Q73: 0 | R73: En transmilenio | T73: 0 | U73: Nunca | V73: 0 | W73: No dejo restos de alimentos | X73: 0 | Y73: 0 | Z73: 0 | AA73: 0 | AB73: 0
F74: Calentador a Gas | I74: 0 | J74: Tecnología solar | O74: 0 | Q74: 0 | R74: En transmilenio | T74: 0 | U74: Nunca | V74: 0 | W74: No dejo restos de alimentos | X74: 0 | Y74: 0 | Z74: 0 | AA74: 0 | AB74: 0
F75: Calentador a Gas | I75: 0 | J75: Tecnología solar | O75: 0 | Q75: 0 | R75: En transmilenio | T75: 0 | U75: Nunca | V75: 0 | W75: No dejo restos de alimentos | X75: 0 | Y75: 0 | Z75: 0 | AA75: 0 | AB75: 0
F76: Calentador a Gas | I76: 0 | J76: Tecnología solar | O76: 0 | Q76: 0 | R76: En transmilenio | T76: 0 | U76: Nunca | V76: 0 | W76: No dejo restos de alimentos | X76: 0 | Y76: 0 | Z76: 0 | AA76: 0 | AB76: 0
F77: Calentador a Gas | I77: 0 | J77: Tecnología solar | O77: 0 | Q77: 0 | R77: En transmilenio | T77: 0 | U77: Nunca | V77: 0 | W77: No dejo restos de alimentos | X77: 0 | Y77: 0 | Z77: 0 | AA77: 0 | AB77: 0
F78: Calentador a Gas | I78: 0 | J78: Tecnología solar | O78: 0 | Q78: 0 | R78: En transmilenio | T78: 0 | U78: Nunca | V78: 0 | W78: No dejo restos de alimentos | X78: 0 | Y78: 0 | Z78: 0 | AA78: 0 | AB78: 0
F79: Calentador a Gas | I79: 0 | J79: Tecnología solar | O79: 0 | Q79: 0 | R79: En transmilenio | T79: 0 | U79: Nunca | V79: 0 | W79: No dejo restos de alimentos | X79: 0 | Y79: 0 | Z79: 0 | AA79: 0 | AB79: 0
F80: Calentador a Gas | I80: 0 | J80: Tecnología solar | O80: 0 | Q80: 0 | R80: En transmilenio | T80: 0 | U80: Nunca | V80: 0 | W80: No dejo restos de alimentos | X80: 0 | Y80: 0 | Z80: 0 | AA80: 0 | AB80: 0
F81: Calentador a Gas | I81: 0 | J81: Tecnología solar | O81: 0 | Q81: 0 | R81: En transmilenio | T81: 0 | U81: Nunca | V81: 0 | W81: No dejo restos de alimentos | X81: 0 | Y81: 0 | Z81: 0 | AA81: 0 | AB81: 0
F82: Calentador a Gas | I82: 0 | J82: Tecnología solar | O82: 0 | Q82: 0 | R82: En transmilenio | T82: 0 | U82: Nunca | V82: 0 | W82: No dejo restos de alimentos | X82: 0 | Y82: 0 | Z82: 0 | AA82: 0 | AB82: 0
F83: Calentador a Gas | I83: 0 | J83: Tecnología solar | O83: 0 | Q83: 0 | R83: En transmilenio | T83: 0 | U83: Nunca | V83: 0 | W83: No dejo restos de alimentos | X83: 0 | Y83: 0 | Z83: 0 | AA83: 0 | AB83: 0
F84: Calentador a Gas | I84: 0 | J84: Tecnología solar | O84: 0 | Q84: 0 | R84: En transmilenio | T84: 0 | U84: Nunca | V84: 0 | W84: No dejo restos de alimentos | X84: 0 | Y84: 0 | Z84: 0 | AA84: 0 | AB84: 0
F85: Calentador a Gas | I85: 0 | J85: Tecnología solar | O85: 0 | Q85: 0 | R85: En transmilenio | T85: 0 | U85: Nunca | V85: 0 | W85: No dejo restos de alimentos | X85: 0 | Y85: 0 | Z85: 0 | AA85: 0 | AB85: 0
F86: Calentador a Gas | I86: 0 | J86: Tecnología solar | O86: 0 | Q86: 0 | R86: En transmilenio | T86: 0 | U86: Nunca | V86: 0 | W86: No dejo restos de alimentos | X86: 0 | Y86: 0 | Z86: 0 | AA86: 0 | AB86: 0
F87: Calentador a Gas | I87: 0 | J87: Tecnología solar | O87: 0 | Q87: 0 | R87: En transmilenio | T87: 0 | U87: Nunca | V87: 0 | W87: No dejo restos de alimentos | X87: 0 | Y87: 0 | Z87: 0 | AA87: 0 | AB87: 0
F88: Calentador a Gas | I88: 0 | J88: Tecnología solar | O88: 0 | Q88: 0 | R88: En transmilenio | T88: 0 | U88: Nunca | V88: 0 | W88: No dejo restos de alimentos | X88: 0 | Y88: 0 | Z88: 0 | AA88: 0 | AB88: 0
F89: Calentador a Gas | I89: 0 | J89: Tecnología solar | O89: 0 | Q89: 0 | R89: En transmilenio | T89: 0 | U89: Nunca | V89: 0 | W89: No dejo restos de alimentos | X89: 0 | Y89: 0 | Z89: 0 | AA89: 0 | AB89: 0
F90: Calentador a Gas | I90: 0 | J90: Tecnología solar | O90: 0 | Q90: 0 | R90: En transmilenio | T90: 0 | U90: Nunca | V90: 0 | W90: No dejo restos de alimentos | X90: 0 | Y90: 0 | Z90: 0 | AA90: 0 | AB90: 0
F91: Calentador a Gas | I91: 0 | J91: Tecnología solar | O91: 0 | Q91: 0 | R91: En transmilenio | T91: 0 | U91: Nunca | V91: 0 | W91: No dejo restos de alimentos | X91: 0 | Y91: 0 | Z91: 0 | AA91: 0 | AB91: 0
F92: Calentador a Gas | I92: 0 | J92: Tecnología solar | O92: 0 | Q92: 0 | R92: En transmilenio | T92: 0 | U92: Nunca | V92: 0 | W92: No dejo restos de alimentos | X92: 0 | Y92: 0 | Z92: 0 | AA92: 0 | AB92: 0
F93: Calentador a Gas | I93: 0 | J93: Tecnología solar | O93: 0 | Q93: 0 | R93: En transmilenio | T93: 0 | U93: Nunca | V93: 0 | W93: No dejo restos de alimentos | X93: 0 | Y93: 0 | Z93: 0 | AA93: 0 | AB93: 0
F94: Calentador a Gas | I94: 0 | J94: Tecnología solar | O94: 0 | Q94: 0 | R94: En transmilenio | T94: 0 | U94: Nunca | V94: 0 | W94: No dejo restos de alimentos | X94: 0 | Y94: 0 | Z94: 0 | AA94: 0 | AB94: 0
F95: Calentador a Gas | I95: 0 | J95: Tecnología solar | O95: 0 | Q95: 0 | R95: En transmilenio | T95: 0 | U95: Nunca | V95: 0 | W95: No dejo restos de alimentos | X95: 0 | Y95: 0 | Z95: 0 | AA95: 0 | AB95: 0
F96: Calentador a Gas | I96: 0 | J96: Tecnología solar | O96: 0 | Q96: 0 | R96: En transmilenio | T96: 0 | U96: Nunca | V96: 0 | W96: No dejo restos de alimentos | X96: 0 | Y96: 0 | Z96: 0 | AA96: 0 | AB96: 0
F97: Calentador a Gas | I97: 0 | J97: Tecnología solar | O97: 0 | Q97: 0 | R97: En transmilenio | T97: 0 | U97: Nunca | V97: 0 | W97: No dejo restos de alimentos | X97: 0 | Y97: 0 | Z97: 0 | AA97: 0 | AB97: 0
F98: Calentador a Gas | I98: 0 | J98: Tecnología solar | O98: 0 | Q98: 0 | R98: En transmilenio | T98: 0 | U98: Nunca | V98: 0 | W98: No dejo restos de alimentos | X98: 0 | Y98: 0 | Z98: 0 | AA98: 0 | AB98: 0
F99: Calentador a Gas | I99: 0 | J99: Tecnología solar | O99: 0 | Q99: 0 | R99: En transmilenio | T99: 0 | U99: Nunca | V99: 0 | W99: No dejo restos de alimentos | X99: 0 | Y99: 0 | Z99: 0 | AA99: 0 | AB99: 0
F100: Calentador a Gas | I100: 0 | J100: Tecnología solar | O100: 0 | Q100: 0 | R100: En transmilenio | T100: 0 | U100: Nunca | V100: 0 | W100: No dejo restos de alimentos | X100: 0 | Y100: 0 | Z100: 0 | AA100: 0 | AB100: 0
F101: Calentador a Gas | I101: 0 | J101: Tecnología solar | O101: 0 | Q101: 0 | R101: En transmilenio | T101: 0 | U101: Nunca | V101: 0 | W101: No dejo restos de alimentos | X101: 0 | Y101: 0 | Z101: 0 | AA101: 0 | AB101: 0
F102: Calentador a Gas | I102: 0 | J102: Tecnología solar | O102: 0 | Q102: 0 | R102: En transmilenio | T102: 0 | U102: Nunca | V102: 0 | W102: No dejo restos de alimentos | X102: 0 | Y102: 0 | Z102: 0 | AA102: 0 | AB102: 0
F103: Calentador a Gas | I103: 0 | J103: Tecnología solar | O103: 0 | Q103: 0 | R103: En transmilenio | T103: 0 | U103: Nunca | V103: 0 | W103: No dejo restos de alimentos | X103: 0 | Y103: 0 | Z103: 0 | AA103: 0 | AB103: 0
F104: Calentador a Gas | I104: 0 | J104: Tecnología solar | O104: 0 | Q104: 0 | R104: En transmilenio | T104: 0 | U104: Nunca | V104: 0 | W104: No dejo restos de alimentos | X104: 0 | Y104: 0 | Z104: 0 | AA104: 0 | AB104: 0
F105: Calentador a Gas | I105: 0 | J105: Tecnología solar | O105: 0 | Q105: 0 | R105: En transmilenio | T105: 0 | U105: Nunca | V105: 0 | W105: No dejo restos de alimentos | X105: 0 | Y105: 0 | Z105: 0 | AA105: 0 | AB105: 0
F106: Calentador a Gas | I106: 0 | J106: Tecnología solar | O106: 0 | Q106: 0 | R106: En transmilenio | T106: 0 | U106: Nunca | V106: 0 | W106: No dejo restos de alimentos | X106: 0 | Y106: 0 | Z106: 0 | AA106: 0 | AB106: 0
F107: Calentador a Gas | I107: 0 | J107: Tecnología solar | O107: 0 | Q107: 0 | R107: En transmilenio | T107: 0 | U107: Nunca | V107: 0 | W107: No dejo restos de alimentos | X107: 0 | Y107: 0 | Z107: 0 | AA107: 0 | AB107: 0
F108: Calentador a Gas | I108: 0 | J108: Tecnología solar | O108: 0 | Q108: 0 | R108: En transmilenio | T108: 0 | U108: Nunca | V108: 0 | W108: No dejo restos de alimentos | X108: 0 | Y108: 0 | Z108: 0 | AA108: 0 | AB108: 0
F109: Calentador a Gas | I109: 0 | J109: Tecnología solar | O109: 0 | Q109: 0 | R109: En transmilenio | T109: 0 | U109: Nunca | V109: 0 | W109: No dejo restos de alimentos | X109: 0 | Y109: 0 | Z109: 0 | AA109: 0 | AB109: 0
F110: Calentador a Gas | I110: 0 | J110: Tecnología solar | O110: 0 | Q110: 0 | R110: En transmilenio | T110: 0 | U110: Nunca | V110: 0 | W110: No dejo restos de alimentos | X110: 0 | Y110: 0 | Z110: 0 | AA110: 0 | AB110: 0
F111: Calentador a Gas | I111: 0 | J111: Tecnología solar | O111: 0 | Q111: 0 | R111: En transmilenio | T111: 0 | U111: Nunca | V111: 0 | W111: No dejo restos de alimentos | X111: 0 | Y111: 0 | Z111: 0 | AA111: 0 | AB111: 0
F112: Calentador a Gas | I112: 0 | J112: Tecnología solar | O112: 0 | Q112: 0 | R112: En transmilenio | T112: 0 | U112: Nunca | V112: 0 | W112: No dejo restos de alimentos | X112: 0 | Y112: 0 | Z112: 0 | AA112: 0 | AB112: 0
F113: Calentador a Gas | I113: 0 | J113: Tecnología solar | O113: 0 | Q113: 0 | R113: En transmilenio | T113: 0 | U113: Nunca | V113: 0 | W113: No dejo restos de alimentos | X113: 0 | Y113: 0 | Z113: 0 | AA113: 0 | AB113: 0
F114: Calentador a Gas | I114: 0 | J114: Tecnología solar | O114: 0 | Q114: 0 | R114: En transmilenio | T114: 0 | U114: Nunca | V114: 0 | W114: No dejo restos de alimentos | X114: 0 | Y114: 0 | Z114: 0 | AA114: 0 | AB114: 0
F115: Calentador a Gas | I115: 0 | J115: Tecnología solar | O115: 0 | Q115: 0 | R115: En transmilenio | T115: 0 | U115: Nunca | V115: 0 | W115: No dejo restos de alimentos | X115: 0 | Y115: 0 | Z115: 0 | AA115: 0 | AB115: 0
F116: Calentador a Gas | I116: 0 | J116: Tecnología solar | O116: 0 | Q116: 0 | R116: En transmilenio | T116: 0 | U116: Nunca | V116: 0 | W116: No dejo restos de alimentos | X116: 0 | Y116: 0 | Z116: 0 | AA116: 0 | AB116: 0
F117: Calentador a Gas | I117: 0 | J117: Tecnología solar | O117: 0 | Q117: 0 | R117: En transmilenio | T117: 0 | U117: Nunca | V117: 0 | W117: No dejo restos de alimentos | X117: 0 | Y117: 0 | Z117: 0 | AA117: 0 | AB117: 0
F118: Calentador a Gas | I118: 0 | J118: Tecnología solar | O118: 0 | Q118: 0 | R118: En transmilenio | T118: 0 | U118: Nunca | V118: 0 | W118: No dejo restos de alimentos | X118: 0 | Y118: 0 | Z118: 0 | AA118: 0 | AB118: 0
F119: Calentador a Gas | I119: 0 | J119: Tecnología solar | O119: 0 | Q119: 0 | R119: En transmilenio | T119: 0 | U119: Nunca | V119: 0 | W119: No dejo restos de alimentos | X119: 0 | Y119: 0 | Z119: 0 | AA119: 0 | AB119: 0
F120: Calentador a Gas | I120: 0 | J120: Tecnología solar | O120: 0 | Q120: 0 | R120: En transmilenio | T120: 0 | U120: Nunca | V120: 0 | W120: No dejo restos de alimentos | X120: 0 | Y120: 0 | Z120: 0 | AA120: 0 | AB120: 0
F121: Calentador a Gas | I121: 0 | J121: Tecnología solar | O121: 0 | Q121: 0 | R121: En transmilenio | T121: 0 | U121: Nunca | V121: 0 | W121: No dejo restos de alimentos | X121: 0 | Y121: 0 | Z121: 0 | AA121: 0 | AB121: 0
F122: Calentador a Gas | I122: 0 | J122: Tecnología solar | O122: 0 | Q122: 0 | R122: En transmilenio | T122: 0 | U122: Nunca | V122: 0 | W122: No dejo restos de alimentos | X122: 0 | Y122: 0 | Z122: 0 | AA122: 0 | AB122: 0
F123: Calentador a Gas | I123: 0 | J123: Tecnología solar | O123: 0 | Q123: 0 | R123: En transmilenio | T123: 0 | U123: Nunca | V123: 0 | W123: No dejo restos de alimentos | X123: 0 | Y123: 0 | Z123: 0 | AA123: 0 | AB123: 0
F124: Calentador a Gas | I124: 0 | J124: Tecnología solar | O124: 0 | Q124: 0 | R124: En transmilenio | T124: 0 | U124: Nunca | V124: 0 | W124: No dejo restos de alimentos | X124: 0 | Y124: 0 | Z124: 0 | AA124: 0 | AB124: 0
F125: Calentador a Gas | I125: 0 | J125: Tecnología solar | O125: 0 | Q125: 0 | R125: En transmilenio | T125: 0 | U125: Nunca | V125: 0 | W125: No dejo restos de alimentos | X125: 0 | Y125: 0 | Z125: 0 | AA125: 0 | AB125: 0
F126: Calentador a Gas | I126: 0 | J126: Tecnología solar | O126: 0 | Q126: 0 | R126: En transmilenio | T126: 0 | U126: Nunca | V126: 0 | W126: No dejo restos de alimentos | X126: 0 | Y126: 0 | Z126: 0 | AA126: 0 | AB126: 0
F127: Calentador a Gas | I127: 0 | J127: Tecnología solar | O127: 0 | Q127: 0 | R127: En transmilenio | T127: 0 | U127: Nunca | V127: 0 | W127: No dejo restos de alimentos | X127: 0 | Y127: 0 | Z127: 0 | AA127: 0 | AB127: 0
F128: Calentador a Gas | I128: 0 | J128: Tecnología solar | O128: 0 | Q128: 0 | R128: En transmilenio | T128: 0 | U128: Nunca | V128: 0 | W128: No dejo restos de alimentos | X128: 0 | Y128: 0 | Z128: 0 | AA128: 0 | AB128: 0
F129: Calentador a Gas | I129: 0 | J129: Tecnología solar | O129: 0 | Q129: 0 | R129: En transmilenio | T129: 0 | U129: Nunca | V129: 0 | W129: No dejo restos de alimentos | X129: 0 | Y129: 0 | Z129: 0 | AA129: 0 | AB129: 0
F130: Calentador a Gas | I130: 0 | J130: Tecnología solar | O130: 0 | Q130: 0 | R130: En transmilenio | T130: 0 | U130: Nunca | V130: =IF(U130="Nunca",0,IF(U130="3 veces por semana","513",IF(U130="5 veces por semana",855,IF(U130="Todos los días",1197)))) -> 0 | W130: No dejo restos de alimentos | X130: 0 | Y130: 0 | Z130: 0 | AA130: 0 | AB130: 0
F131: Calentador a Gas | I131: =IF(F131="Calentador a Gas",(H131*1.6*1.98*30),IF(F131="Calentador Eléctrico",(H131*1.3*0.199*30),IF(F131="Ducha Eléctrica",(H131*4*0.199*30),IF(F131="Ninguno","0")))) -> 0 | J131: Tecnología solar | O131: =IF(J131="Ahorradores ",(K131*0.02*5*0.199*30),IF(J131="Incandescentes ",(M131*0.1*5*0.199*30),IF(J131="LED",(L131*0.007*5*0.199*30),IF(J131="Tecnología solar ",(N131*0))))) -> 0 | Q131: =P131*9*0.8312 -> 0 | R131: En transmilenio | T131: =IF(R131="En bicicleta",(0*S131),IF(R131="En carro",(0.218 *S131),IF(R131="En bus o SITP ",((0.78703*S131)/40),IF(R131=" En transmilenio",((0.68516*S131)/140))))) -> 0 | U131: Nunca | V131: 0 | W131: No dejo restos de alimentos | X131: 0 | Y131: =V131+T131+Q131+O131+I131+X131 -> 0 | Z131: =Y131/1000 -> 0 | AA131: =Y131*12 -> 0 | AB131: 0
F132: Calentador a Gas | I132: 0 | J132: Tecnología solar | O132: 0 | Q132: 0 | R132: En transmilenio | T132: 0 | U132: Nunca | V132: 0 | W132: No dejo restos de alimentos | X132: 0 | Y132: 0 | Z132: 0 | AA132: 0 | AB132: 0
F133: Calentador a Gas | I133: 0 | J133: Tecnología solar | O133: 0 | Q133: 0 | R133: En transmilenio | T133: 0 | U133: Nunca | V133: 0 | W133: No dejo restos de alimentos | X133: =IF(W133="No dejo restos de alimentos",(0),IF(W133="Un cuarto del plato",(0.25*0.5*0.8312*30),IF(W133="La mitad del plato",(0.5*0.5*0.8312*30),IF(W133="Tres cuartos del plato",(0.75*0.5*0.8312*30))))) -> 0 | Y133: 0 | Z133: 0 | AA133: 0 | AB133: 0
F134: Calentador a Gas | I134: 0 | J134: Tecnología solar | O134: 0 | Q134: 0 | R134: En transmilenio | T134: 0 | U134: Nunca | V134: 0 | W134: No dejo restos de alimentos | X134: 0 | Y134: 0 | Z134: 0 | AA134: 0 | AB134: 0
F135: Calentador a Gas | I135: 0 | J135: Tecnología solar | O135: 0 | Q135: 0 | R135: En transmilenio | T135: 0 | U135: Nunca | V135: 0 | W135: No dejo restos de alimentos | X135: 0 | Y135: 0 | Z135: 0 | AA135: 0 | AB135: 0
F136: Calentador a Gas | I136: 0 | J136: Tecnología solar | O136: 0 | Q136: 0 | R136: En transmilenio | T136: 0 | U136: Nunca | V136: 0 | W136: No dejo restos de alimentos | X136: 0 | Y136: 0 | Z136: 0 | AA136: 0 | AB136: 0
F137: Calentador a Gas | I137: 0 | J137: Tecnología solar | O137: 0 | Q137: 0 | R137: En transmilenio | T137: 0 | U137: Nunca | V137: 0 | W137: No dejo restos de alimentos | X137: 0 | Y137: 0 | Z137: 0 | AA137: 0 | AB137: 0
F138: Calentador a Gas | I138: 0 | J138: Tecnología solar | O138: 0 | Q138: 0 | R138: En transmilenio | T138: 0 | U138: Nunca | V138: 0 | W138: No dejo restos de alimentos | X138: 0 | Y138: 0 | Z138: 0 | AA138: 0 | AB138: 0
F139: Calentador a Gas | I139: 0 | J139: Tecnología solar | O139: 0 | Q139: 0 | R139: En transmilenio | T139: 0 | U139: Nunca | V139: 0 | W139: No dejo restos de alimentos | X139: 0 | Y139: 0 | Z139: 0 | AA139: 0 | AB139: 0
F140: Calentador a Gas | I140: 0 | J140: Tecnología solar | O140: 0 | Q140: 0 | R140: En transmilenio | T140: 0 | U140: Nunca | V140: 0 | W140: No dejo restos de alimentos | X140: 0 | Y140: 0 | Z140: 0 | AA140: 0 | AB140: 0
F141: Calentador a Gas | I141: 0 | J141: Tecnología solar | O141: 0 | Q141: 0 | R141: En transmilenio | T141: 0 | U141: Nunca | V141: 0 | W141: No dejo restos de alimentos | X141: 0 | Y141: 0 | Z141: 0 | AA141: 0 | AB141: 0
F142: Calentador a Gas | I142: 0 | J142: Tecnología solar | O142: 0 | Q142: 0 | R142: En transmilenio | T142: 0 | U142: Nunca | V142: 0 | W142: No dejo restos de alimentos | X142: 0 | Y142: 0 | Z142: 0 | AA142: 0 | AB142: 0
F143: Calentador a Gas | I143: 0 | J143: Tecnología solar | O143: 0 | Q143: 0 | R143: En transmilenio | T143: 0 | U143: Nunca | V143: 0 | W143: No dejo restos de alimentos | X143: 0 | Y143: 0 | Z143: 0 | AA143: 0 | AB143: 0
F144: Calentador a Gas | I144: 0 | J144: Tecnología solar | O144: 0 | Q144: 0 | R144: En transmilenio | T144: 0 | U144: Nunca | V144: 0 | W144: No dejo restos de alimentos | X144: 0 | Y144: 0 | Z144: 0 | AA144: 0 | AB144: 0
F145: Calentador a Gas | I145: 0 | J145: Tecnología solar | O145: 0 | Q145: 0 | R145: En transmilenio | T145: 0 | U145: Nunca | V145: 0 | W145: No dejo restos de alimentos | X145: 0 | Y145: 0 | Z145: 0 | AA145: 0 | AB145: 0
F146: Calentador a Gas | I146: 0 | J146: Tecnología solar | O146: 0 | Q146: 0 | R146: En transmilenio | T146: 0 | U146: Nunca | V146: 0 | W146: No dejo restos de alimentos | X146: 0 | Y146: 0 | Z146: 0 | AA146: 0 | AB146: 0
F147: Calentador a Gas | I147: 0 | J147: Tecnología solar | O147: 0 | Q147: 0 | R147: En transmilenio | T147: 0 | U147: Nunca | V147: 0 | W147: No dejo restos de alimentos | X147: 0 | Y147: 0 | Z147: 0 | AA147: 0 | AB147: 0
F148: Calentador a Gas | I148: 0 | J148: Tecnología solar | O148: 0 | Q148: 0 | R148: En transmilenio | T148: 0 | U148: Nunca | V148: 0 | W148: No dejo restos de alimentos | X148: 0 | Y148: 0 | Z148: 0 | AA148: 0 | AB148: 0
F149: Calentador a Gas | I149: 0 | J149: Tecnología solar | O149: 0 | Q149: 0 | R149: En transmilenio | T149: 0 | U149: Nunca | V149: 0 | W149: No dejo restos de alimentos | X149: 0 | Y149: 0 | Z149: 0 | AA149: 0 | AB149: 0
F150: Calentador a Gas | I150: 0 | J150: Tecnología solar | O150: 0 | Q150: 0 | R150: En transmilenio | T150: 0 | U150: Nunca | V150: 0 | W150: No dejo restos de alimentos | X150: 0 | Y150: 0 | Z150: 0 | AA150: 0 | AB150: 0
F151: Calentador a Gas | I151: 0 | J151: Tecnología solar | O151: 0 | Q151: 0 | R151: En transmilenio | T151: 0 | U151: Nunca | V151: 0 | W151: No dejo restos de alimentos | X151: 0 | Y151: 0 | Z151: 0 | AA151: 0 | AB151: 0
F152: Calentador a Gas | I152: 0 | J152: Tecnología solar | O152: 0 | Q152: 0 | R152: En transmilenio | T152: 0 | U152: Nunca | V152: 0 | W152: No dejo restos de alimentos | X152: 0 | Y152: 0 | Z152: 0 | AA152: 0 | AB152: 0
F153: Calentador a Gas | I153: 0 | J153: Tecnología solar | O153: 0 | Q153: 0 | R153: En transmilenio | T153: 0 | U153: Nunca | V153: 0 | W153: No dejo restos de alimentos | X153: 0 | Y153: 0 | Z153: 0 | AA153: 0 | AB153: 0
F154: Calentador a Gas | I154: 0 | J154: Tecnología solar | O154: 0 | Q154: 0 | R154: En transmilenio | T154: 0 | U154: Nunca | V154: 0 | W154: No dejo restos de alimentos | X154: 0 | Y154: 0 | Z154: 0 | AA154: 0 | AB154: 0
F155: Calentador a Gas | I155: 0 | J155: Tecnología solar | O155: 0 | Q155: 0 | R155: En transmilenio | T155: 0 | U155: Nunca | V155: 0 | W155: No dejo restos de alimentos | X155: 0 | Y155: 0 | Z155: 0 | AA155: 0 | AB155: 0
F156: Calentador a Gas | I156: 0 | J156: Tecnología solar | O156: 0 | Q156: 0 | R156: En transmilenio | T156: 0 | U156: Nunca | V156: 0 | W156: No dejo restos de alimentos | X156: 0 | Y156: 0 | Z156: 0 | AA156: 0 | AB156: 0
F157: Calentador a Gas | I157: 0 | J157: Tecnología solar | O157: 0 | Q157: 0 | R157: En transmilenio | T157: 0 | U157: Nunca | V157: 0 | W157: No dejo restos de alimentos | X157: 0 | Y157: 0 | Z157: 0 | AA157: 0 | AB157: 0
F158: Calentador a Gas | I158: 0 | J158: Tecnología solar | O158: 0 | Q158: 0 | R158: En transmilenio | T158: 0 | U158: Nunca | V158: 0 | W158: No dejo restos de alimentos | X158: 0 | Y158: 0 | Z158: 0 | AA158: 0 | AB158: 0
F159: Calentador a Gas | I159: 0 | J159: Tecnología solar | O159: 0 | Q159: 0 | R159: En transmilenio | T159: 0 | U159: Nunca | V159: 0 | W159: No dejo restos de alimentos | X159: 0 | Y159: 0 | Z159: 0 | AA159: 0 | AB159: 0
F160: Calentador a Gas | I160: 0 | J160: Tecnología solar | O160: 0 | Q160: 0 | R160: En transmilenio | T160: 0 | U160: Nunca | V160: 0 | W160: No dejo restos de alimentos | X160: 0 | Y160: 0 | Z160: 0 | AA160: 0 | AB160: 0
F161: Calentador a Gas | I161: 0 | J161: Tecnología solar | O161: 0 | Q161: 0 | R161: En transmilenio | T161: 0 | U161: Nunca | V161: 0 | W161: No dejo restos de alimentos | X161: 0 | Y161: 0 | Z161: 0 | AA161: 0 | AB161: 0
F162: Calentador a Gas | I162: 0 | J162: Tecnología solar | O162: 0 | Q162: 0 | R162: En transmilenio | T162: 0 | U162: Nunca | V162: 0 | W162: No dejo restos de alimentos | X162: 0 | Y162: 0 | Z162: 0 | AA162: 0 | AB162: 0
F163: Calentador a Gas | I163: 0 | J163: Tecnología solar | O163: 0 | Q163: 0 | R163: En transmilenio | T163: 0 | U163: Nunca | V163: 0 | W163: No dejo restos de alimentos | X163: 0 | Y163: 0 | Z163: 0 | AA163: 0 | AB163: 0
F164: Calentador a Gas | I164: 0 | J164: Tecnología solar | O164: 0 | Q164: 0 | R164: En transmilenio | T164: 0 | U164: Nunca | V164: 0 | W164: No dejo restos de alimentos | X164: 0 | Y164: 0 | Z164: 0 | AA164: 0 | AB164: 0
F165: Calentador a Gas | I165: 0 | J165: Tecnología solar | O165: 0 | Q165: 0 | R165: En transmilenio | T165: 0 | U165: Nunca | V165: 0 | W165: No dejo restos de alimentos | X165: 0 | Y165: 0 | Z165: 0 | AA165: 0 | AB165: 0
F166: Calentador a Gas | I166: 0 | J166: Tecnología solar | O166: 0 | Q166: 0 | R166: En transmilenio | T166: 0 | U166: Nunca | V166: 0 | W166: No dejo restos de alimentos | X166: 0 | Y166: 0 | Z166: 0 | AA166: 0 | AB166: 0
F167: Calentador a Gas | I167: 0 | J167: Tecnología solar | O167: 0 | Q167: 0 | R167: En transmilenio | T167: 0 | U167: Nunca | V167: 0 | W167: No dejo restos de alimentos | X167: 0 | Y167: 0 | Z167: 0 | AA167: 0 | AB167: 0
F168: Calentador a Gas | I168: 0 | J168: Tecnología solar | O168: 0 | Q168: 0 | R168: En transmilenio | T168: 0 | U168: Nunca | V168: 0 | W168: No dejo restos de alimentos | X168: 0 | Y168: 0 | Z168: 0 | AA168: 0 | AB168: 0
F169: Calentador a Gas | I169: 0 | J169: Tecnología solar | O169: 0 | Q169: 0 | R169: En transmilenio | T169: 0 | U169: Nunca | V169: 0 | W169: No dejo restos de alimentos | X169: 0 | Y169: 0 | Z169: 0 | AA169: 0 | AB169: 0
F170: Calentador a Gas | I170: 0 | J170: Tecnología solar | O170: 0 | Q170: 0 | R170: En transmilenio | T170: 0 | U170: Nunca | V170: 0 | W170: No dejo restos de alimentos | X170: 0 | Y170: 0 | Z170: 0 | AA170: 0 | AB170: 0
F171: Calentador a Gas | I171: 0 | J171: Tecnología solar | O171: 0 | Q171: 0 | R171: En transmilenio | T171: 0 | U171: Nunca | V171: 0 | W171: No dejo restos de alimentos | X171: 0 | Y171: 0 | Z171: 0 | AA171: 0 | AB171: 0
F172: Calentador a Gas | I172: 0 | J172: Tecnología solar | O172: 0 | Q172: 0 | R172: En transmilenio | T172: 0 | U172: Nunca | V172: 0 | W172: No dejo restos de alimentos | X172: 0 | Y172: 0 | Z172: 0 | AA172: 0 | AB172: 0
F173: Calentador a Gas | I173: 0 | J173: Tecnología solar | O173: 0 | Q173: 0 | R173: En transmilenio | T173: 0 | U173: Nunca | V173: 0 | W173: No dejo restos de alimentos | X173: 0 | Y173: 0 | Z173: 0 | AA173: 0 | AB173: 0
F174: Calentador a Gas | I174: 0 | J174: Tecnología solar | O174: 0 | Q174: 0 | R174: En transmilenio | T174: 0 | U174: Nunca | V174: 0 | W174: No dejo restos de alimentos | X174: 0 | Y174: 0 | Z174: 0 | AA174: 0 | AB174: 0
F175: Calentador a Gas | I175: 0 | J175: Tecnología solar | O175: 0 | Q175: 0 | R175: En transmilenio | T175: 0 | U175: Nunca | V175: 0 | W175: No dejo restos de alimentos | X175: 0 | Y175: 0 | Z175: 0 | AA175: 0 | AB175: 0
F176: Calentador a Gas | I176: 0 | J176: Tecnología solar | O176: 0 | Q176: 0 | R176: En transmilenio | T176: 0 | U176: Nunca | V176: 0 | W176: No dejo restos de alimentos | X176: 0 | Y176: 0 | Z176: 0 | AA176: 0 | AB176: 0
F177: Calentador a Gas | I177: 0 | J177: Tecnología solar | O177: 0 | Q177: 0 | R177: En transmilenio | T177: 0 | U177: Nunca | V177: 0 | W177: No dejo restos de alimentos | X177: 0 | Y177: 0 | Z177: 0 | AA177: 0 | AB177: 0
F178: Calentador a Gas | I178: 0 | J178: Tecnología solar | O178: 0 | Q178: 0 | R178: En transmilenio | T178: 0 | U178: Nunca | V178: 0 | W178: No dejo restos de alimentos | X178: 0 | Y178: 0 | Z178: 0 | AA178: 0 | AB178: 0
F179: Calentador a Gas | I179: 0 | J179: Tecnología solar | O179: 0 | Q179: 0 | R179: En transmilenio | T179: 0 | U179: Nunca | V179: 0 | W179: No dejo restos de alimentos | X179: 0 | Y179: 0 | Z179: 0 | AA179: 0 | AB179: 0
F180: Calentador a Gas | I180: 0 | J180: Tecnología solar | O180: 0 | Q180: 0 | R180: En transmilenio | T180: 0 | U180: Nunca | V180: 0 | W180: No dejo restos de alimentos | X180: 0 | Y180: 0 | Z180: 0 | AA180: 0 | AB180: 0
F181: Calentador a Gas | I181: 0 | J181: Tecnología solar | O181: 0 | Q181: 0 | R181: En transmilenio | T181: 0 | U181: Nunca | V181: 0 | W181: No dejo restos de alimentos | X181: 0 | Y181: 0 | Z181: 0 | AA181: 0 | AB181: 0
F182: Calentador a Gas | I182: 0 | J182: Tecnología solar | O182: 0 | Q182: 0 | R182: En transmilenio | T182: 0 | U182: Nunca | V182: 0 | W182: No dejo restos de alimentos | X182: 0 | Y182: 0 | Z182: 0 | AA182: 0 | AB182: 0
F183: Calentador a Gas | I183: 0 | J183: Tecnología solar | O183: 0 | Q183: 0 | R183: En transmilenio | T183: 0 | U183: Nunca | V183: 0 | W183: No dejo restos de alimentos | X183: 0 | Y183: 0 | Z183: 0 | AA183: 0 | AB183: 0
F184: Calentador a Gas | I184: 0 | J184: Tecnología solar | O184: 0 | Q184: 0 | R184: En transmilenio | T184: 0 | U184: Nunca | V184: 0 | W184: No dejo restos de alimentos | X184: 0 | Y184: 0 | Z184: 0 | AA184: 0 | AB184: 0
F185: Calentador a Gas | I185: 0 | J185: Tecnología solar | O185: 0 | Q185: 0 | R185: En transmilenio | T185: 0 | U185: Nunca | V185: 0 | W185: No dejo restos de alimentos | X185: 0 | Y185: 0 | Z185: 0 | AA185: 0 | AB185: 0
F186: Calentador a Gas | I186: 0 | J186: Tecnología solar | O186: 0 | Q186: 0 | R186: En transmilenio | T186: 0 | U186: Nunca | V186: 0 | W186: No dejo restos de alimentos | X186: 0 | Y186: 0 | Z186: 0 | AA186: 0 | AB186: 0
F187: Calentador a Gas | I187: 0 | J187: Tecnología solar | O187: 0 | Q187: 0 | R187: En transmilenio | T187: 0 | U187: Nunca | V187: 0 | W187: No dejo restos de alimentos | X187: 0 | Y187: 0 | Z187: 0 | AA187: 0 | AB187: 0
F188: Calentador a Gas | I188: 0 | J188: Tecnología solar | O188: 0 | Q188: 0 | R188: En transmilenio | T188: 0 | U188: Nunca | V188: 0 | W188: No dejo restos de alimentos | X188: 0 | Y188: 0 | Z188: 0 | AA188: 0 | AB188: 0
F189: Calentador a Gas | I189: 0 | J189: Tecnología solar | O189: 0 | Q189: 0 | R189: En transmilenio | T189: 0 | U189: Nunca | V189: 0 | W189: No dejo restos de alimentos | X189: 0 | Y189: 0 | Z189: 0 | AA189: 0 | AB189: 0
F190: Calentador a Gas | I190: 0 | J190: Tecnología solar | O190: 0 | Q190: 0 | R190: En transmilenio | T190: 0 | U190: Nunca | V190: 0 | W190: No dejo restos de alimentos | X190: 0 | Y190: 0 | Z190: 0 | AA190: 0 | AB190: 0
F191: Calentador a Gas | I191: 0 | J191: Tecnología solar | O191: 0 | Q191: 0 | R191: En transmilenio | T191: 0 | U191: Nunca | V191: 0 | W191: No dejo restos de alimentos | X191: 0 | Y191: 0 | Z191: 0 | AA191: 0 | AB191: 0
F192: Calentador a Gas | I192: 0 | J192: Tecnología solar | O192: 0 | Q192: 0 | R192: En transmilenio | T192: 0 | U192: Nunca | V192: 0 | W192: No dejo restos de alimentos | X192: 0 | Y192: 0 | Z192: 0 | AA192: 0 | AB192: 0
F193: Calentador a Gas | I193: 0 | J193: Tecnología solar | O193: 0 | Q193: 0 | R193: En transmilenio | T193: 0 | U193: Nunca | V193: 0 | W193: No dejo restos de alimentos | X193: 0 | Y193: 0 | Z193: 0 | AA193: 0 | AB193: 0
F194: Calentador a Gas | I194: 0 | J194: Tecnología solar | O194: 0 | Q194: 0 | R194: En transmilenio | T194: 0 | U194: Nunca | V194: =IF(U194="Nunca",0,IF(U194="3 veces por semana","513",IF(U194="5 veces por semana",855,IF(U194="Todos los días",1197)))) -> 0 | W194: No dejo restos de alimentos | X194: 0 | Y194: 0 | Z194: 0 | AA194: 0 | AB194: 0
F195: Calentador a Gas | I195: =IF(F195="Calentador a Gas",(H195*1.6*1.98*30),IF(F195="Calentador Eléctrico",(H195*1.3*0.199*30),IF(F195="Ducha Eléctrica",(H195*4*0.199*30),IF(F195="Ninguno","0")))) -> 0 | J195: Tecnología solar | O195: =IF(J195="Ahorradores ",(K195*0.02*5*0.199*30),IF(J195="Incandescentes ",(M195*0.1*5*0.199*30),IF(J195="LED",(L195*0.007*5*0.199*30),IF(J195="Tecnología solar ",(N195*0))))) -> 0 | Q195: =P195*9*0.8312 -> 0 | R195: En transmilenio | T195: =IF(R195="En bicicleta",(0*S195),IF(R195="En carro",(0.218 *S195),IF(R195="En bus o SITP ",((0.78703*S195)/40),IF(R195=" En transmilenio",((0.68516*S195)/140))))) -> 0 | U195: Nunca | V195: 0 | W195: No dejo restos de alimentos | X195: 0 | Y195: =V195+T195+Q195+O195+I195+X195 -> 0 | Z195: =Y195/1000 -> 0 | AA195: =Y195*12 -> 0 | AB195: 0
F196: Calentador a Gas | I196: 0 | J196: Tecnología solar | O196: 0 | Q196: 0 | R196: En transmilenio | T196: 0 | U196: Nunca | V196: 0 | W196: No dejo restos de alimentos | X196: 0 | Y196: 0 | Z196: 0 | AA196: 0 | AB196: 0
F197: Calentador a Gas | I197: 0 | J197: Tecnología solar | O197: 0 | Q197: 0 | R197: En transmilenio | T197: 0 | U197: Nunca | V197: 0 | W197: No dejo restos de alimentos | X197: =IF(W197="No dejo restos de alimentos",(0),IF(W197="Un cuarto del plato",(0.25*0.5*0.8312*30),IF(W197="La mitad del plato",(0.5*0.5*0.8312*30),IF(W197="Tres cuartos del plato",(0.75*0.5*0.8312*30))))) -> 0 | Y197: 0 | Z197: 0 | AA197: 0 | AB197: 0
F198: Calentador a Gas | I198: 0 | J198: Tecnología solar | O198: 0 | Q198: 0 | R198: En transmilenio | T198: 0 | U198: Nunca | V198: 0 | W198: No dejo restos de alimentos | X198: 0 | Y198: 0 | Z198: 0 | AA198: 0 | AB198: 0
F199: Calentador a Gas | I199: 0 | J199: Tecnología solar | O199: 0 | Q199: 0 | R199: En transmilenio | T199: 0 | U199: Nunca | V199: 0 | W199: No dejo restos de alimentos | X199: 0 | Y199: 0 | Z199: 0 | AA199: 0 | AB199: 0
F200: Calentador a Gas | I200: 0 | J200: Tecnología solar | O200: 0 | Q200: 0 | R200: En transmilenio | T200: 0 | U200: Nunca | V200: 0 | W200: No dejo restos de alimentos | X200: 0 | Y200: 0 | Z200: 0 | AA200: 0 | AB200: 0
... 1353 more rows

Sheet FACTORES DE EMISIÓN
I1: FUENTE FIJA | N1: FUENTE MÓVIL
A2: GAS | B2: LIQUIDO | C2: SOLIDO | D2: REFRIGERANTE | E2: AISLANTE | F2: EXTINTOR | G2: ACEITE LUBRICANTE | H2: FUENTE DE EMISIÓN | I2: NOMBRE | J2: FACTOR DE EMISIÓN | K2: UNIDADES | L2: UNIDAD | M2: FUENTE | N2: NOMBRE | O2: FACTOR DE EMISIÓN | P2: UNIDADES | Q2: UNIDAD | R2: FUENTE | S2: NOMBRE MT | T2: UNIDADES | U2: FACTOR DE EMISIÓN | V2: CAPACIDAD DE CARGA | X2: OTRAS FUENTES | Y2: UNIDADES | Z2: FACTOR DE EMISIÓN | AA2: UNIDADES | AB2: FC | AC2: TRAYECTO | AD2: UNIDADES | AE2: FACTOR DE EMISIÓN | AH2: NOMBRE | AI2: FACTOR DE EMISIÓN | AJ2: UNIDADES | AL2: NOMBRE | AM2: FACTOR DE EMISIÓN | AN2: UNIDADES | AP2: 2010 | AR2: NOMBRE | AS2: ABSORCIÓN kgCO2eq-20 años | AT2: COSTO POR ÁRBOL PLANTADO | AU2: ÁRBOLES POR ha | AV2: COSTO POR ha | AW2: ='[3]CONSOLIDADO Y COMPENSACIÓN'!G4 -> 2014 | AX2: =AW2+1 -> 2015 | AY2: =AX2+1 -> 2016 | AZ2: =AY2+1 -> 2017 | BA2: =AW2 -> 2014 | BB2: =BA2+1 -> 2015 | BC2: =BB2+1 -> 2016 | BD2: =BC2+1 -> 2017 | BE2: =BA2 -> 2014 | BF2: =BB2 -> 2015 | BG2: =BC2 -> 2016 | BH2: =BD2 -> 2017 | BK2: TIPO DE FUENTE | BO2: TIPO COMBUSTIBLE/REFRIGERANTE/AISLANTE/OTRO | BT2: AÑO | BV2: ALCANCE 3 - MODO DE TRANSPORTE | CA2: ALCANCE 3 - OTRAS FUENTES DE EMISIÓN | CG2: ALCANCE 3 - VUELOS NACIONALES - | CL2: ALCANCE 3 - VUELOS INTERNACIONALES - | DA2: EVS
A3: Biogás Genérico | B3: Kerosene | C3: Carbón genérico | D3: CFC-11 / R-11 | E3: SF6 | F3: Extintores CO2 | G3: Aceites lubricantes | H3: QUEMADOR | I3: Biogás Genérico | J3: 1.857199 | K3: kgCO2eq/m3 | L3: m3 | M3: FECOC 2016 | N3: Gas Natural Cusiana | O3: 2.321364 | P3: kgCO2eq/m3 | Q3: m3 | R3: FECOC 2016 | S3: A PIE | T3: KM | U3: 0 | V3: 1 | X3: PAPEL BOND | Y3: MILES DE HOJAS | Z3: 0.85 | AA3: kg CO2 eq / miles de hojas | AB3: 1000 | AC3: BOGOTÁ - ARMENIA - BOGOTÁ | AD3: VIAJE | AE3: 72.95 | AH3: CFC-11 / R-11 | AP3: 2011 | AR3: Roble de tierra fría (Quercus humboldtii) | AS3: 280 | AT3: 4950 | AU3: 1600 | AV3: =AU3*AT3 -> 7920000 | AW3: =('[3]CONSOLIDADO Y COMPENSACIÓN'!G8)*1000/AS3 -> 1050.898843 | AX3: =('[3]CONSOLIDADO Y COMPENSACIÓN'!H8)*1000/AS3 -> 927.1102109 | AY3: =('[3]CONSOLIDADO Y COMPENSACIÓN'!I8)*1000/AS3 -> 561.5094658 | AZ3: =('[3]CONSOLIDADO Y COMPENSACIÓN'!J8)*1000/AS3 -> 0 | BA3: =AW3/1600 -> 0.6568117769 | BB3: =AX3/1600 -> 0.5794438818 | BC3: =AY3/1600 -> 0.3509434161 | BD3: =AZ3/1600 -> 0 | BE3: =AW3*4950 -> 5201949.273 | BF3: =AX3*4950 -> 4589195.544 | BG3: =AY3*4950 -> 2779471.856 | BH3: =AZ3*4950 -> 0 | BK3: Fuente fija | BO3: Sólido | BT3: 2010 | BV3: TRANSPORTE URBANO EN BOGOTÁ | BZ3: FUENTE | CA3: OTRAS FUENTES | CB3: UNIDADES | CC3: FACTOR DE EMISIÓN | CD3: UNIDADES | CE3: FACTOR DE EMISIÓN | CF3: FUENTE | CG3: ORIGEN | CH3: DESTINO | CI3: DISTANCIA (km) | CJ3: TOTAL KG CO2 PASAJEROS/VIAJE (1 TRAYECTO) | CK3: FUENTE | CL3: ORIGEN | CM3: DESTINO | CN3: DISTANCIA (km) | CO3: TOTAL CO2 PASAJEROS/VIAJE (1 TRAYECTO) | CT3: NACIONALES | CU3: INTERNACIONALES | CV3: NINGUNO
A4: Coke Gas Genérico | B4: Combustóleo | C4: Carbón Guajira Cesar | D4: CFC-12 / R-12 | F4: Extintores R-123 / HCFC-123 | G4: Grasas lubricantes | H4: PLANTA ELÉCTRICA | I4: Coke Gas Genérico | J4: 0.6138175 | K4: kgCO2eq/m3 | L4: m3 | M4: FECOC 2016 | N4: Gas Natural Guajira | O4: 1.9519145 | P4: kgCO2eq/gal | Q4: m3 | R4: FECOC 2016 | S4: BICICLETA | T4: KM | U4: 0 | V4: 1 | X4: PAPEL RECICLADO | Y4: MILES DE HOJAS | Z4: 2.42 | AA4: kg CO2 eq / miles de hojas | AB4: 1000 | AC4: BOGOTÁ - BARRANCABERMEJA - BOGOTÁ | AD4: VIAJE | AE4: 94.47 | AH4: CFC-12 / R-12 | AP4: 2012 | AR4: Tobo (Escallonia paniculata) | BK4: Fuente móvil | BO4: Líquido | BT4: 2011 | BV4: NOMBRE MT | BW4: UNIDADES | BX4: FACTOR DE EMISIÓN (g/km) | BY4: CAPACIDAD DE CARGA | BZ4: Plan decenal descontaminación de aire | CA4: Papel bond blanco | CB4: kg | CC4: 1.05 | CD4: kgCO2 e/kg | CE4: 1.05 | CF4: Silva D., Raymundo A., Oliveira J., Ometto A., 2015. Life cycle assessment of offset paper production in Brazil: hotspots and cleaner production alternatives. Journal of cleaner Production. (93) 222-233 | CG4: BOGOTÁ, COLOMBIA (BOG) | CH4: SAN ANDRÉS ISLAS, COLOMBIA (ADZ) | CI4: 1207 | CJ4: 114.9 | CK4: ICAO | CL4: BOGOTÁ, COLOMBIA (BOG) | CM4: ATLANTA,GA,UNST ( ATL) | CN4: 3386 | CO4: 185.8 | CP4: ICAO | CT4: SAN ANDRÉS ISLAS, COLOMBIA (ADZ) | CU4: ATLANTA,GA,UNST ( ATL) | DA4: En bicicleta | DB4: Calentador a Gas | DC4: Ahorradores | DD4: 5 veces por semana | DE4: No dejo restos de alimentos
A5: Gas Natural Cusiana | B5: Crudo de Castilla | C5: Carbón Guajira | D5: HCFC-22 / R-22 | H5: MONTACARGA | I5: Gas Natural Cusiana | J5: 2.1931171 | K5: kgCO2eq /m3 | L5: m3 | M5: FECOC 2016 | N5: Gas Natural Guepaje | O5: 1.9371466 | P5: kgCO2eq /m3 | Q5: m3 | R5: FECOC 2016 | S5: MOTOCICLETA | T5: KM | U5: 33.11 | V5: 1 | X5: TRATAMIENTO DE VERTIMIENTOS | Y5: KG | Z5: 4.73 | AA5: kg CO2 eq / kg | AB5: 1000 | AC5: BOGOTÁ - BARRANQUILLA - BOGOTÁ | AD5: VIAJE | AE5: 177.6 | AH5: HCFC-22 / R-22 | AP5: 2013 | AR5: Aliso (Alnus acuminata) | BO5: Gaseoso | BT5: 2012 | BV5: Motocicleta 4 tiempos | BW5: km | BX5: 33.11 | BY5: 1 | BZ5: Plan decenal descontaminación de aire | CA5: Papel reciclado | CB5: kg | CC5: 0.81 | CD5: kgCO2 e/kg | CE5: 0.81 | CF5: European reference Lifecycle Database: Graphic Paper; technology mix; production mix, at plant; 79% primary fibre, 21% recycled fibre | CG5: BOGOTÁ, COLOMBIA (BOG) | CH5: APARTADO,COLOMBIA (APO) | CI5: 446 | CJ5: 82.1 | CK5: ICAO | CL5: BOGOTÁ, COLOMBIA (BOG) | CM5: HAVANA,CUB(AVA) | CN5: 2216 | CO5: 225.5 | CP5: ICAO | CT5: APARTADO,COLOMBIA (APO) | CU5: HAVANA,CUB(AVA) | DA5: En bus o SITP | DB5: Calentador Eléctrico | DC5: Incandescentes | DD5: 3 veces por semana | DE5: Un cuarto del plato
A6: Gas Natural Guajira | B6: Avigas | C6: Carbón Cundinamarca | D6: HCFC-141B / R-141B | H6: ESTUFA | I6: Gas Natural Guajira | J6: 1.8408125 | K6: kgCO2eq /m3 | L6: m3 | M6: FECOC 2016 | N6: Gas Natural Neiva - Huila | O6: 2.1606054 | P6: kgCO2eq /m3 | Q6: m3 | R6: FECOC 2016 | S6: SITP | T6: KM | U6: 787.03 | V6: 40 | X6: TRATAMIENTO DE LODOS | Y6: KG | Z6: 4.73 | AA6: kg CO2 eq / kg | AB6: 1000 | AC6: BOGOTÁ - BUCARAMANGA - BOGOTÁ | AD6: VIAJE | AE6: 106.23 | AH6: HCFC-123 / R-123 | AP6: 2014 | AR6: Arrayán (Myrcia popayanensis) | BO6: Refrigerante | BT6: 2013 | BV6: SITP <6000 c.c. | BW6: km | BX6: 787.03 | BY6: 40 | BZ6: Plan decenal descontaminación de aire | CA6: Papel mate de revista | CB6: kg | CC6: 0.83 | CD6: kgCO2 e/kg | CE6: 0.83 | CF6: Leon J., Aliaga C., Boulougouris G., Hortal M., Marti J., 2015. Quantifying GHG emissions savings potential in magazine paper production: a case study on supercalendered and light-weight coated papers. Journal of Cleaner Production. (103) 301-308 | CG6: BOGOTÁ, COLOMBIA (BOG) | CH6: ARAUCA,COLOMBIA (AUC) | CI6: 459 | CJ6: 88.4 | CK6: ICAO | CL6: BOGOTÁ, COLOMBIA (BOG) | CM6: BARCELONA,APAN ( BCN) | CN6: 8507 | CO6: 403.3 | CP6: ICAO | CT6: ARAUCA,COLOMBIA (AUC) | CU6: BARCELONA,APAN ( BCN) | DA6: En transmilenio | DB6: Ducha Eléctrica | DC6: LED | DD6: Todos los días | DE6: La mitad del plato
A7: Gas Natural Guepaje | B7: Jet A1 | C7: Carbón Cauca - Valle del Cauca | D7: HFC-23 / R-23 | H7: FUENTE MÓVIL | I7: Gas Natural Guepaje | J7: 1.8268069 | K7: kgCO2eq /m3 | L7: m3 | M7: FECOC 2016 | N7: Gas Opon Payoa | O7: 2.0969355 | P7: kgCO2eq /m3 | Q7: m3 | R7: FECOC 2016 | S7: TRANSMILENIO | T7: KM | U7: 685.16 | V7: 160 | X7: DISPOSICIÓN DE RESIDUOS EN RELLENO SANITARIO | Y7: KG RESIDUOS | Z7: 12.83 | AA7: kg CO2 eq / kg rs | AB7: 1000 | AC7: BOGOTÁ - BUENAVENTURA - BOGOTÁ | AD7: VIAJE | AE7: 93.21 | AH7: HFC-23 / R-23 | AP7: 2015 | AR7: Mangle (Escallonia pendula) | BO7: Aislante | BT7: 2014 | BV7: Transmilenio | BW7: km | BX7: 685.16 | BY7: 140 | BZ7: Plan decenal descontaminación de aire | CA7: Papel brillante de revista | CB7: kg | CC7: 1.39 | CD7: kgCO2 e/kg | CE7: 1.39 | CF7: Leon J., Aliaga C., Boulougouris G., Hortal M., Marti J., 2015. Quantifying GHG emissions savings potential in magazine paper production: a case study on supercalendered and light-weight coated papers. Journal of Cleaner Production. (103) 301-308 | CG7: BOGOTÁ, COLOMBIA (BOG) | CH7: ARMENIA,COLOMBIA (AXM) | CI7: 180 | CJ7: 28.7 | CK7: ICAO | CP7: ICAO | CT7: ARMENIA,COLOMBIA (AXM) | CU7: BOSTON,MA,UNST (BOS) | DA7: En carro | DB7: Ninguno | DC7: Tecnología solar | DD7: Nunca | DE7: Tres cuartos del plato
A8: Gas Natural Neiva - Huila | B8: Diesel B10 (Mezcla comercial) | C8: Carbón Norte de Santander | D8: HFC-32 / R-32 | H8: CUARTO FRIO | I8: Gas Natural Neiva - Huila | J8: 2.0370249 | K8: kgCO2eq /m3 | L8: m3 | M8: FECOC 2016 | N8: Gas Cupiagua | O8: 2.289977 | P8: kgCO2eq /m3 | Q8: m3 | R8: FECOC 2016 | S8: VEHÍCULO PROPIO | T8: KM | U8: 218 | V8: 1 | AC8: BOGOTÁ - CALI - BOGOTÁ | AD8: VIAJE | AE8: 109.35 | AH8: HFC-32 / R-32 | AP8: 2016 | AR8: Eugenio (Eugenia uniflora) | BO8: Extintores | BT8: 2015 | BV8: Vehículo propio TWC;>1400c.c | BW8: km | BX8: 218 | BY8: 1 | BZ8: Plan decenal descontaminación de aire | CA8: Polietileno de alta densidad | CB8: kg | CC8: 2.87 | CD8: kgCO2 e/kg | CE8: 2.87 | CF8: European reference Lifecycle Database Polyethylene high density granulate (PE-HD);production mix, at plant | CG8: BOGOTÁ, COLOMBIA (BOG) | CH8: BARRANQUILLA.COLOMBIA (BAQ) | CI8: 690 | CJ8: 82.1 | CK8: ICAO | CL8: BOGOTÁ, COLOMBIA (BOG) | CM8: BOSTON,MA,UNST (BOS) | CN8: 4196 | CO8: 303.5 | CP8: ICAO | CT8: BARRANQUILLA.COLOMBIA (BAQ) | CU8: CARACAS,VENZ, (CCS)
A9: Gas Opon Payoa | B9: Biodiesel palma | C9: Carbón Córdoba-Norte de Antioquia | D9: HFC-125 / R-125 | H9: CALENTADOR | I9: Gas Opon Payoa | J9: 1.9789187 | K9: kgCO2eq /m3 | L9: m3 | M9: FECOC 2016 | N9: Gas La Creciente | O9: 1.9450425 | P9: kgCO2eq /m3 | Q9: m3 | R9: FECOC 2016 | AC9: BOGOTÁ - CARTAGENA - BOGOTÁ | AD9: VIAJE | AE9: 172.71 | AH9: HFC-134 / R-134 | BT9: 2016 | CA9: Polietileno de baja densidad | CB9: kg | CC9: 2.08 | CD9: kgCO2 e/kg | CE9: 2.08 | CF9: European reference Lifecycle Database: Polyethylene low density granulate (PE-LD);production mix, at plant | CG9: BOGOTÁ, COLOMBIA (BOG) | CH9: BUCARAMNAGA,COLOMBIA (BGA) | CI9: 288 | CJ9: 48.4 | CK9: ICAO | CL9: BOGOTÁ, COLOMBIA (BOG) | CM9: CARACAS,VENZ, (CCS) | CN9: 1024 | CO9: 114.4 | CP9: ICAO | CT9: BUCARAMNAGA,COLOMBIA (BGA) | CU9: PARIS,FRAN, (CDG) | DA9: Residuos solidos a disposición sin categorizar | DB9: 0.8312472 | DC9: kgCO2/kg húmedo | DD9: IPCC
A10: Gas Cupiagua | B10: Etanol Anhidro | C10: Carbón Santander | D10: HFC-134 / R-134 | H10: AIRE ACONDICIONADO | I10: Gas Cupiagua | J10: 2.1640682 | K10: kgCO2eq /m3 | L10: m3 | M10: FECOC 2016 | N10: Gas natural Genérico | O10: 2.100795 | P10: kgCO2eq /m3 | Q10: m3 | R10: FECOC 2016 | S10: ACPM / DIESEL | AC10: BOGOTÁ - CÚCUTA - BOGOTÁ | AD10: VIAJE | AE10: 129.23 | AH10: HFC-134a / R-134a | BT10: 2017 | CA10: Polipropileno | CB10: kg | CC10: 2.89 | CD10: kgCO2 e/kg | CE10: 2.89 | CF10: European reference Lifecycle Database: Polypropylene granulate (PP); production mix, at plant | CG10: BOGOTÁ, COLOMBIA (BOG) | CH10: BUENAVENTURA,COLOMBIA (BUN) | CI10: 330 | CJ10: 36.7 | CK10: ICAO | CL10: BOGOTÁ, COLOMBIA (BOG) | CM10: PARIS,FRAN, (CDG) | CN10: 8637 | CO10: 447.9 | CP10: ICAO | CT10: BUENAVENTURA,COLOMBIA (BUN) | CU10: CANCUN,MEX (CUN) | DA10: Gas natural Genérico | DB10: 1.9819536 | DC10: kgCO2eq /m3 | DD10: FECOC
A11: Gas La Creciente | B11: Fuel Oil # 4 - Ecopetrol | C11: Carbón Santander Sogamoso | D11: HFC-134a / R-134a | H11: CALDERÍN | I11: Gas La Creciente | J11: 1.833839 | K11: kgCO2eq /m3 | L11: m3 | M11: FECOC 2016 | N11: Gas licuado de petróleo genérico | O11: 4.8704834 | P11: kgCO2eq /m3 | Q11: m3 | R11: FECOC 2016 | S11: GASOLINA | AC11: BOGOTÁ - FLORENCIA - BOGOTÁ | AD11: VIAJE | AE11: 92.92 | AH11: HFC-143 / R-143 | BT11: 2018 | CA11: Aluminio primario | CB11: kg | CC11: 11.1 | CD11: kgCO2 e/kg | CE11: 11.1 | CF11: Center for environmental assessment of product and material systems (CPM LCA Database): primary aluminium production | CG11: BOGOTÁ, COLOMBIA (BOG) | CH11: CALI,COLOMBIA (CLO) | CI11: 278 | CJ11: 46.1 | CK11: ICAO | CL11: BOGOTÁ, COLOMBIA (BOG) | CM11: CANCUN,MEX (CUN) | CN11: 2276 | CO11: 197 | CP11: ICAO | CT11: CALI,COLOMBIA (CLO) | CU11: CURACAO,NETS (CUR) | DA11: Consumo energía eléctrica | DB11: 0.199 | DC11: kgCO2/kWh | DD11: UPME
A12: Gas natural Genérico | B12: Gasolina Motor (sin mezcla bioetanol) | C12: Carbón Boyacá | D12: HFC-143 / R-143 | H12: CALDERA | I12: Gas natural Genérico | J12: 1.9819536 | K12: kgCO2eq /m3 | L12: m3 | M12: FECOC 2016 | N12: LPG Propano | O12: 5.7335173 | P12: kgCO2eq /m3 | Q12: m3 | R12: FECOC 2016 | S12: NO APLICA | AC12: BOGOTÁ - IBAGUÉ - BOGOTÁ | AD12: VIAJE | AE12: 54.41 | AH12: HFC-143a / R-143a | BT12: 2019 | CA12: Aluminio reciclado | CB12: kg | CC12: 2.33 | CD12: kgCO2 e/kg | CE12: 2.33 | CF12: European reference Lifecycle Database: Aluminium extrusión profile; primary production; production mix, at plant; aluminium semi-finished extrusión product, including primary production, transformation and recycling | CG12: BOGOTÁ, COLOMBIA (BOG) | CH12: CARTAGENA,COLOMBIA (CTG) | CI12: 653 | CJ12: 77.2 | CK12: ICAO | CL12: BOGOTÁ, COLOMBIA (BOG) | CM12: CURACAO,NETS (CUR) | CN12: 1007 | CO12: 131.8 | CP12: ICAO | CT12: CARTAGENA,COLOMBIA (CTG) | CU12: CUZCO,PERU (CUZ) | DA12: Potenacia Bombillo LED | DB12: 7Kw
A13: Gas licuado de petróleo genérico | B13: Diesel Marino | C13: Carbón Antioquia | D13: HFC-143a / R-143a | H13: FLAMEADOR | I13: Gas licuado de petróleo genérico | J13: 4.6974011 | K13: kgCO2eq /m3 | L13: m3 | M13: FECOC 2016 | N13: Gas Natural Sebastapol | O13: 2.061881 | P13: kgCO2eq /m3 | Q13: m3 | R13: FECOC 2016 | AC13: BOGOTÁ - LETICIA - BOGOTÁ | AD13: VIAJE | AE13: 292.25 | AH13: HFC-407C / R-407C | BT13: 2020 | CA13: Vertimientos industriales no tratados (solo para alcance 3) | CB13: kg DQO | CC13: =0.25*0.1 -> 0.025 | CD13: kgCO2/kg DQO | CE13: =CC13*28 -> 0.7 | CF13: IPCC 2006 | CG13: BOGOTÁ, COLOMBIA (BOG) | CH13: CUCUTA,COLOMBIA (CUC) | CI13: 399 | CJ13: 60.5 | CK13: ICAO | CL13: BOGOTÁ, COLOMBIA (BOG) | CM13: CUZCO,PERU (CUZ) | CN13: 2041 | CO13: 189.5 | CP13: ICAO | CT13: CUCUTA,COLOMBIA (CUC) | CU13: DALLAS,TX,UNST (DFW) | DA13: Potencia bombillo incandescente | DB13: 100Kw
A14: LPG Propano | B14: Diesel B2o ACPM (sin mezcla biodiesel) | C14: Bagazo | D14: HFC-227ea / FM-200 | H14: HORNO | I14: LPG Propano | J14: 5.5836954 | K14: kgCO2eq /m3 | L14: m3 | M14: FECOC 2016 | N14: Gas Natural Usme | O14: 2.2265914 | P14: kgCO2eq /m3 | Q14: m3 | R14: FECOC 2016 | AC14: BOGOTÁ - MANIZALES - BOGOTÁ | AD14: VIAJE | AE14: 73.55 | AH14: HFC-410a / R-410a | BT14: 2021 | CA14: Vertimientos domésticos no tratados (solo para alcance 3) | CB14: kg DBO | CC14: 0.06 | CD14: kgCO2/kg DBO | CE14: 1.68 | CF14: IPCC 2006 | CG14: BOGOTÁ, COLOMBIA (BOG) | CH14: COROZAL,COLOMBIA (CZU) | CI14: 528 | CJ14: 100.6 | CK14: ICAO | CL14: BOGOTÁ, COLOMBIA (BOG) | CM14: DALLAS,TX,UNST (DFW) | CN14: 3930 | CO14: 287.9 | CP14: ICAO | CT14: COROZAL,COLOMBIA (CZU) | CU14: NEW YORK,NY UNST (EWR) | DA14: Potencia bombillo ahorrador | DB14: 20Kw
A15: Gas de Pozo Cupiagua | B15: Gasolina E10 (Mezcla Comercial) | C15: Fibra de palma | D15: HFC-404A / R-404A | H15: INCINERADOR | I15: Gas de Pozo Cupiagua | J15: 2.2832233 | K15: kgCO2eq /m3 | L15: m3 | M15: FECOC 2016 | N15: Gas Natural Mariquita | O15: 2.3091758 | P15: kgCO2eq /m3 | Q15: m3 | R15: FECOC 2016 | AC15: BOGOTÁ - MEDELLÍN - BOGOTÁ | AD15: VIAJE | AE15: 110.17 | AH15: HFC-422D / R-422D | BT15: 2022 | CA15: Tratamiento de lodos orgánicos industriales | CB15: kg DQO | CC15: 0.2 | CD15: kgCO2/kg DQO | CE15: 5.6 | CF15: IPCC 2006 | CG15: BOGOTÁ, COLOMBIA (BOG) | CH15: BARRANCABERMEJA,COLOMBIA (EJA) | CI15: 259 | CJ15: 49.9 | CK15: ICAO | CL15: BOGOTÁ, COLOMBIA (BOG) | CM15: NEW YORK,NY UNST (EWR) | CN15: 3999 | CO15: 264 | CP15: ICAO | CT15: BARRANCABERMEJA,COLOMBIA (EJA) | CU15: BUENOS AIRES,ARGT (EZE) | DA15: Potencia calentador eléctrico | DB15: 1,3 Kw | DC15: Ficha técnica calentador eléctrico
A16: Gas Natural Sebastapol | C16: Cuesco de palma | D16: HFC-407C / R-407C | H16: TURBINA | I16: Gas Natural Sebastapol | J16: 1.943948 | K16: kgCO2eq /m3 | L16: m3 | M16: FECOC 2016 | N16: Diesel B10 (Mezcla comercial) | O16: 10.2874582 | P16: kgCO2eq/gal | Q16: gal | R16: FECOC 2016 | AC16: BOGOTÁ - MITÚ - BOGOTÁ | AD16: VIAJE | AE16: 182.47 | AH16: PFC-14 / R-14 | BT16: 2023 | CA16: Tratamiento de lodos orgánicos domésticos | CB16: kg DBO | CC16: 0.48 | CD16: kgCO2/kg DBO | CE16: 13.44 | CF16: IPCC 2006 | CG16: BOGOTÁ, COLOMBIA (BOG) | CH16: MEDELLIN,COLOMBIA (EOH) | CI16: 232 | CJ16: 45.9 | CK16: ICAO | CL16: BOGOTÁ, COLOMBIA (BOG) | CM16: BUENOS AIRES,ARGT (EZE) | CN16: 4685 | CO16: 291.7 | CP16: ICAO | CT16: MEDELLIN,COLOMBIA (EOH) | CU16: FORT LAUDERDALE, FL UNST (FLL) | DA16: Potencia ducha electrica | DB16: 4Kw | DC16: http://simulador.micodensa.com/index.php/main/viewSimulator
A17: Gas Natural Usme | C17: Raquis de palma | D17: HFC-410a / R-410A | H17: OTROS | I17: Gas Natural Usme | J17: 2.1030249 | K17: kgCO2eq/m3 | L17: m3 | M17: FECOC 2016 | N17: Biodiesel palma | O17: 6.8923206 | P17: kgCO2eq/gal | Q17: gal | R17: FECOC 2016 | AC17: BOGOTÁ - MONTERIA - BOGOTÁ | AD17: VIAJE | AE17: 137.66 | AH17: R-290 | BT17: 2024 | CA17: Residuos solidos a relleno sanitario anaeróbico | CB17: kg húmedo | CC17: 0.05497666667 | CD17: kgCO2/kg húmedo | CE17: 1.539346667 | CF17: IPCC 2006 | CG17: BOGOTÁ, COLOMBIA (BOG) | CH17: EL YOPAL, COLOMBIA (EYP) | CI17: 204 | CJ17: 31.9 | CK17: ICAO | CL17: BOGOTÁ, COLOMBIA (BOG) | CM17: FORT LAUDERDALE, FL UNST (FLL) | CN17: 2459 | CO17: 180.5 | CP17: ICAO | CT17: EL YOPAL, COLOMBIA (EYP) | CU17: FORTALEZA,BRAZ (FOR) | DA17: Consumo calentador a gas | DB17: 18,8 kWh/1,96m3 | DC17: Ficha técnica calentador de 10L Challenger ,Tabla de factores de conversión gas natural FENOSA
A18: Gas Natural Mariquita | C18: Cascarilla de Arroz | D18: HFC-422D / R-422D | I18: Gas Natural Mariquita | J18: 2.181085 | K18: kgCO2eq /m3 | L18: m3 | M18: FECOC 2016 | N18: Etanol Anhidro | O18: 5.9755291 | P18: kgCO2eq/gal | Q18: gal | R18: FECOC 2016 | AC18: BOGOTÁ - NEIVA - BOGOTÁ | AD18: VIAJE | AE18: 88.51 | AH18: Halon 1301 - CBrF3 | BT18: 2025 | CA18: Residuos solidos a relleno sanitario semiaerobico | CB18: kg húmedo | CC18: 0.02748833333 | CD18: kgCO2/kg húmedo | CE18: 0.7696733333 | CF18: IPCC 2006 | CG18: BOGOTÁ, COLOMBIA (BOG) | CH18: FLORENCIA, COLOMBIA (FLA) | CI18: 280 | CJ18: 38.3 | CK18: ICAO | CL18: BOGOTÁ, COLOMBIA (BOG) | CM18: FORTALEZA,BRAZ (FOR) | CN18: 4064 | CO18: 324.6 | CP18: ICAO | CT18: FLORENCIA, COLOMBIA (FLA) | CU18: FRANKFURT, GERM (FRA) | DA18: Bolsa de 45 cm x 60 cm resiste 9 kg de residuos | DC18: http://www.casabestsas.com/index.php/2014-08-15-11-53-00/bolsas-para-la-basura
C19: Borra de Café | D19: PFC-14 / R-14 | I19: Kerosene | J19: 9.6253926 | K19: kgCO2eq/gal | L19: gal | M19: FECOC 2016 | N19: Gasolina Motor (sin mezcla bioetanol) | O19: 8.8242188 | P19: kgCO2eq/gal | Q19: gal | R19: FECOC 2016 | AC19: BOGOTÁ - PASTO - BOGOTÁ | AD19: VIAJE | AE19: 137.59 | AH19: SF6 | BT19: 2026 | CA19: Residuos solidos a botadero >5mts profundidad | CB19: kg húmedo | CC19: 0.0395832 | CD19: kgCO2/kg húmedo | CE19: 1.1083296 | CF19: IPCC 2006 | CG19: BOGOTÁ, COLOMBIA (BOG) | CH19: IBAGUE,COLOMBIA(IBE) | CI19: 114 | CJ19: 13.9 | CK19: ICAO | CL19: BOGOTÁ, COLOMBIA (BOG) | CM19: FRANKFURT, GERM (FRA) | CN19: 9080 | CO19: 486.7 | CP19: ICAO | CT19: IBAGUE,COLOMBIA(IBE) | CU19: RIO DE JANEIRO, BRAZ (GIG)
C20: Cisco de Café | D20: FE-36 / 1,1,1,3,3,3 - Hexafluoropropano | I20: Combustóleo | J20: 11.6270356 | K20: kgCO2eq/gal | L20: gal | M20: FECOC 2016 | N20: Diesel Marino | O20: 8.874041 | P20: kgCO2eq/gal | Q20: gal | R20: FECOC 2016 | AC20: BOGOTÁ - PEREIRA - BOGOTÁ | AD20: VIAJE | AE20: 79.3 | AH20: CO2 | BT20: 2027 | CA20: Residuos solidos a botadero <5mts profundidad | CB20: kg húmedo | CC20: 0.0197916 | CD20: kgCO2/kg húmedo | CE20: 0.5541648 | CF20: IPCC 2006 | CG20: BOGOTÁ, COLOMBIA (BOG) | CH20: IPIALES,COLOMBIA (IPI) | CI20: 579 | CJ20: 88 | CK20: ICAO | CL20: BOGOTÁ, COLOMBIA (BOG) | CM20: RIO DE JANEIRO, BRAZ (GIG) | CN20: 4538 | CO20: 281.4 | CP20: ICAO | CT20: IPIALES,COLOMBIA (IPI) | CU20: SAO PAULO, BRAZ (GRU) | DA20: NOMBRE MT | DB20: UNIDADES | DC20: FACTOR DE EMISIÓN (g/km) | DD20: CAPACIDAD DE CARGA
C21: Leña | D21: Propano Alta Calidad / R-290 | I21: Crudo de Castilla | J21: 11.2842649 | K21: kgCO2eq/gal | L21: gal | M21: FECOC 2016 | N21: Diesel B2o ACPM (sin mezcla biodiesel) | O21: 10.159841 | P21: kgCO2eq/gal | Q21: gal | R21: FECOC 2016 | AC21: BOGOTÁ - POPAYÁN - BOGOTÁ | AD21: VIAJE | AE21: 113.36 | BT21: 2028 | CA21: Residuos solidos a disposición sin categorizar | CB21: kg húmedo | CC21: 0.0296874 | CD21: kgCO2/kg húmedo | CE21: 0.8312472 | CF21: IPCC 2006 | CG21: BOGOTÁ, COLOMBIA (BOG) | CH21: LETICIA,COLOMBIA (LET) | CI21: 1091 | CJ21: 110.8 | CK21: ICAO | CL21: BOGOTÁ, COLOMBIA (BOG) | CM21: SAO PAULO, BRAZ (GRU) | CN21: 4331 | CO21: 287.3 | CP21: ICAO | CT21: LETICIA,COLOMBIA (LET) | CU21: GUATEMAL CITY, GUAT (GUA) | DA21: En bus o SITP | DB21: km | DC21: 787.03 | DD21: 40
C22: Madera Genérico | D22: Isobutano / R-600A | I22: Avigas | J22: 6.3889091 | K22: kgCO2eq/gal | L22: gal | M22: FECOC 2016 | N22: Gasolina E10 (Mezcla Comercial) | O22: 7.6322131 | P22: kgCO2eq/gal | Q22: gal | R22: FECOC 2016 | AC22: BOGOTÁ - PUERTO ASIS - BOGOTÁ | AD22: VIAJE | AE22: 154.09 | BT22: 2029 | CA22: Lodos aguas residuales a relleno sanitario anaeróbico | CB22: kg húmedo | CC22: 0.01666666667 | CD22: kgCO2/kg húmedo | CE22: 0.4666666667 | CF22: IPCC 2006 | CK22: ICAO | CL22: BOGOTÁ, COLOMBIA (BOG) | CM22: GUATEMAL CITY, GUAT (GUA) | CN22: 2102 | CO22: 224.7 | CP22: ICAO | CT22: MITU,COLOMBIA (MVP) | CU22: GUAYAQUIL,ECUAD (GYE) | DA22: En transmilenio | DB22: km | DC22: 685.16 | DD22: 140
C23: Madera Eucalipto | D23: Halon 1301 / CBrF3 | I23: Jet A1 | J23: 9.8422979 | K23: kgCO2eq/gal | L23: gal | M23: FECOC 2016 | N23: CFC-11 / R-11 | O23: 4660 | P23: kgCO2eq/kg | Q23: kg | R23: FECOC 2016 | AC23: BOGOTÁ - PUERTO CARREÑO - BOGOTÁ | AD23: VIAJE | AE23: 204.68 | BT23: 2030 | CA23: Residuos solidos hospital a relleno sanitario anaeróbico | CB23: kg húmedo | CC23: 0.05 | CD23: kgCO2/kg húmedo | CE23: 1.4 | CF23: IPCC 2006 | CG23: BOGOTÁ, COLOMBIA (BOG) | CH23: MITU,COLOMBIA (MVP) | CI23: 578 | CJ23: 104.8 | CK23: ICAO | CL23: BOGOTÁ, COLOMBIA (BOG) | CM23: GUAYAQUIL,ECUAD (GYE) | CN23: 993 | CO23: 96.6 | CP23: ICAO | CT23: MONTERIA,COLOMBIA (MTR) | CU23: HAVANA,CUBA (HAV) | DA23: En carro | DB23: km | DC23: 218 | DD23: 1
C24: Madera Pino | I24: Diesel B10 (Mezcla comercial) | J24: 10.2783058 | K24: kgCO2eq/gal | L24: gal | M24: FECOC 2016 | N24: CFC-12 / R-12 | O24: 10200 | P24: kgCO2eq/kg | Q24: kg | R24: FECOC 2016 | AC24: BOGOTÁ - PUERTO INIRIDA - BOGOTÁ | AD24: VIAJE | AE24: 200.92 | BT24: 2031 | CA24: Residuos solidos alimentos a relleno sanitario anaeróbico | CB24: kg húmedo | CC24: 0.05 | CD24: kgCO2/kg húmedo | CE24: 1.4 | CF24: IPCC 2006 | CG24: BOGOTÁ, COLOMBIA (BOG) | CH24: MONTERIA,COLOMBIA (MTR) | CI24: 492 | CJ24: 65.6 | CK24: ICAO | CL24: BOGOTÁ, COLOMBIA (BOG) | CM24: HAVANA,CUBA (HAV) | CN24: 2216 | CO24: 233.5 | CP24: ICAO | CT24: MANIZALES,COLOMBIA (MZL) | CU24: WASHINTON,DC,UNST (IAD)
C25: Madera Acacia | I25: Biodiesel palma | J25: 0.0021409 | K25: kgCO2eq/gal | L25: gal | M25: FECOC 2016 | N25: HCFC-22 / R-22 | O25: 1760 | P25: kgCO2eq/kg | Q25: kg | R25: FECOC 2016 | AC25: BOGOTÁ - RIOACHA - BOGOTÁ | AD25: VIAJE | AE25: 174.77 | CA25: Residuos solidos textil a relleno sanitario anaeróbico | CB25: kg húmedo | CC25: 0.08 | CD25: kgCO2/kg húmedo | CE25: 2.24 | CF25: IPCC 2006 | CG25: BOGOTÁ, COLOMBIA (BOG) | CH25: MANIZALES,COLOMBIA (MZL) | CI25: 150 | CJ25: 22.1 | CK25: ICAO | CL25: BOGOTÁ, COLOMBIA (BOG) | CM25: WASHINTON,DC,UNST (IAD) | CN25: 3819 | CO25: 281.3 | CP25: ICAO | CT25: NEIVA,COLOMBIA (NVA) | CU25: HUSTON,TX,UNST (IAH) | DA25: Porción de carne diaria | DB25: 125g | DC25: https://www.elheraldo.co/entretenimiento/comer-125-gramos-la-porcion-diaria-de-carne-recomendada-292047
C26: Madera Melina | I26: Etanol Anhidro | J26: 0.0011773 | K26: kgCO2eq/gal | L26: gal | M26: FECOC 2016 | N26: HCFC-141B / R-141B | O26: 782 | P26: kgCO2eq/kg | Q26: kg | R26: FECOC 2016 | AC26: BOGOTÁ - SANTA MARTA - BOGOTÁ | AD26: VIAJE | AE26: 192.23 | CA26: Residuos solidos madera a relleno sanitario anaeróbico | CB26: kg húmedo | CC26: 0.1433333333 | CD26: kgCO2/kg húmedo | CE26: 4.013333333 | CF26: IPCC 2006 | CG26: BOGOTÁ, COLOMBIA (BOG) | CH26: NEIVA,COLOMBIA (NVA) | CI26: 232 | CJ26: 34.6 | CK26: ICAO | CL26: BOGOTÁ, COLOMBIA (BOG) | CM26: HUSTON,TX,UNST (IAH) | CN26: 3582 | CO26: 242.4 | CP26: ICAO | CT26: PUERTO CARREÑO,COLOMBIA (PCR) | CU26: NEW YORK,NY UNST (JFK) | DA26: Consumo de carne Res | DB26: 342 | DC26: kgCO2 /kg
C27: Residuos de llantas | I27: Fuel Oil # 4 - Ecopetrol | J27: 10.1801926 | K27: kgCO2eq/gal | L27: gal | M27: FECOC 2016 | N27: HFC-23 / R-23 | O27: 12400 | P27: kgCO2eq/kg | Q27: kg | R27: FECOC 2016 | AC27: BOGOTÁ - VALLEDUPAR - BOGOTÁ | AD27: VIAJE | AE27: 163.8 | CA27: Residuos solidos pulpa y papel a relleno sanitario anaeróbico | CB27: kg húmedo | CC27: 0.1333333333 | CD27: kgCO2/kg húmedo | CE27: 3.733333333 | CF27: IPCC 2006 | CG27: BOGOTÁ, COLOMBIA (BOG) | CH27: PUERTO CARREÑO,COLOMBIA (PCR) | CI27: 753 | CJ27: 120.8 | CK27: ICAO | CL27: BOGOTÁ, COLOMBIA (BOG) | CM27: NEW YORK,NY UNST (JFK) | CN27: 3993 | CO27: 230.3 | CP27: ICAO | CT27: PUERTO INIRIDA, COLOMBIA (PDA) | CU27: LOS ANGELES,CA,UNST (LAX) | DA27: La porción de carne corresponde a ¼ del plato por lo que su total se aproxima a 500g
I28: Gasolina Motor (sin mezcla bioetanol) | J28: 8.8106493 | K28: kgCO2eq/gal | L28: gal | M28: FECOC 2016 | N28: HFC-32 / R-32 | O28: 677 | P28: kgCO2eq/kg | Q28: kg | R28: FECOC 2016 | AC28: BOGOTÁ - VILLAVICENCIO - BOGOTÁ | AD28: VIAJE | AE28: 47.49 | CA28: Residuos solidos caucho a relleno sanitario anaeróbico | CB28: kg húmedo | CC28: 0.13 | CD28: kgCO2/kg húmedo | CE28: 3.64 | CF28: IPCC 2006 | CG28: BOGOTÁ, COLOMBIA (BOG) | CH28: PUERTO INIRIDA, COLOMBIA (PDA) | CI28: 697 | CJ28: 123.2 | CK28: ICAO | CL28: BOGOTÁ, COLOMBIA (BOG) | CM28: LOS ANGELES,CA,UNST (LAX) | CN28: 5597 | CO28: 288.1 | CP28: ICAO | CT28: PEREIRA,COLOMBIA (PEI) | CU28: LONDON,UNRG (LHR)
I29: Diesel Marino | J29: 8.8649765 | K29: kgCO2eq/gal | L29: gal | M29: FECOC 2016 | N29: HFC-125 / R-125 | O29: 3170 | P29: kgCO2eq/kg | Q29: kg | R29: FECOC 2016 | AC29: BOGOTÁ - YOPAL - BOGOTÁ | AD29: VIAJE | AE29: 83.35 | CA29: Residuos solidos construcción a relleno sanitario anaeróbico | CB29: kg húmedo | CC29: 0.01333333333 | CD29: kgCO2/kg húmedo | CE29: 0.3733333333 | CF29: IPCC 2006 | CG29: BOGOTÁ, COLOMBIA (BOG) | CH29: PEREIRA,COLOMBIA (PEI) | CI29: 177 | CJ29: 32.4 | CK29: ICAO | CL29: BOGOTÁ, COLOMBIA (BOG) | CM29: LONDON,UNRG (LHR) | CN29: 8468 | CO29: 401.6 | CP29: ICAO | CT29: POPAYAN,COLOMBIA(PPN) | CU29: LIMA PERU, (LIM)
I30: Diesel B2o ACPM (sin mezcla biodiesel) | J30: 10.15087 | K30: kgCO2eq/gal | L30: gal | M30: FECOC 2016 | N30: HFC-134 / R-134 | O30: 1120 | P30: kgCO2eq/kg | Q30: kg | R30: FECOC 2016 | CA30: Residuos solidos otras industrias a relleno sanitario anaeróbico | CB30: kg húmedo | CC30: 0.003333333333 | CD30: kgCO2/kg húmedo | CE30: 0.09333333333 | CF30: IPCC 2006 | CG30: BOGOTÁ, COLOMBIA (BOG) | CH30: POPAYAN,COLOMBIA(PPN) | CI30: 370 | CJ30: 40.8 | CK30: ICAO | CL30: BOGOTÁ, COLOMBIA (BOG) | CM30: LIMA PERU, (LIM) | CN30: 1886 | CO30: 150.5 | CP30: ICAO | CT30: PASTO,COLOMBIA (PSO) | CU30: LA PAZ BOLV (LPB)
I31: Gasolina E10 (Mezcla Comercial) | J31: 7.6200412 | K31: kgCO2eq/gal | L31: gal | M31: FECOC 2016 | N31: HFC-134a / R-134a | O31: 1300 | P31: kgCO2eq/kg | Q31: kg | R31: FECOC 2016 | CA31: Quema a cielo abierto residuos solidos ordinarios | CB31: kg res. húmedo | CC31: 5.6e-07 | CD31: kgCO2/kg húmedo | CE31: 1.568e-05 | CF31: IPCC 2006 | CG31: BOGOTÁ, COLOMBIA (BOG) | CH31: PASTO,COLOMBIA (PSO) | CI31: 507 | CJ31: 79.1 | CK31: ICAO | CL31: BOGOTÁ, COLOMBIA (BOG) | CM31: LA PAZ BOLV (LPB) | CN31: 2445 | CO31: 217.4 | CP31: ICAO | CT31: PITALITO,COLOMBIA (PTX) | CU31: MADRID,SPAN, (MAD)
I32: Carbón genérico | J32: 2547.050492 | K32: kgCO2eq/kg | L32: kg | M32: FECOC 2016 | N32: HFC-143 / R-143 | O32: 328 | P32: kgCO2eq/kg | Q32: kg | R32: FECOC 2016 | CA32: Incineración controlada residuos solidos ordinarios | CB32: kg res. húmedo | CC32: 0.000237 | CD32: kgCO2/kg húmedo | CE32: 0.006636 | CF32: IPCC 2006 | CG32: BOGOTÁ, COLOMBIA (BOG) | CH32: PITALITO,COLOMBIA (PTX) | CI32: 383 | CJ32: 40 | CK32: ICAO | CL32: BOGOTÁ, COLOMBIA (BOG) | CM32: MADRID,SPAN, (MAD) | CN32: 8026 | CO32: 420.7 | CP32: ICAO | CT32: PUERTO ASIS,COLOMBIA (PUU) | CU32: ORLANDO,FL,UNST (MCO)
I33: Carbón Guajira Cesar | J33: 2172.082805 | K33: kgCO2eq/kg | L33: kg | M33: FECOC 2016 | N33: HFC-143a / R-143a | O33: 4800 | P33: kgCO2eq/kg | Q33: kg | R33: FECOC 2016 | CA33: Incineración controlada residuos solidos industriales | CB33: kg res. húmedo | CC33: 0.0065 | CD33: kgCO2/kg húmedo | CE33: 0.182 | CF33: IPCC 2006 | CG33: BOGOTÁ, COLOMBIA (BOG) | CH33: PUERTO ASIS,COLOMBIA (PUU) | CI33: 534 | CJ33: 49 | CK33: ICAO | CL33: BOGOTÁ, COLOMBIA (BOG) | CM33: ORLANDO,FL,UNST (MCO) | CN33: 2741 | CO33: 186.2 | CP33: ICAO | CT33: RIOHACHA,COLOMBIA (RCH) | CU33: MEXICO,CITY,MEXC (MEX)
I34: Carbón Guajira | J34: 2907.001378 | K34: kgCO2eq/kg | L34: kg | M34: FECOC 2016 | N34: HFC-227ea / FM-200 | O34: 3350 | P34: kgCO2eq/kg | Q34: kg | R34: FECOC 2016 | CA34: Incineración controlada residuos solidos hospitalarios | CB34: kg res. húmedo | CC34: 5.6e-07 | CD34: kgCO2/kg húmedo | CE34: 1.568e-05 | CF34: IPCC 2006 | CG34: BOGOTÁ, COLOMBIA (BOG) | CH34: RIOHACHA,COLOMBIA (RCH) | CI34: 769 | CJ34: 91.5 | CK34: ICAO | CL34: BOGOTÁ, COLOMBIA (BOG) | CM34: MEXICO,CITY,MEXC (MEX) | CN34: 3158 | CO34: 246.8 | CP34: ICAO | CT34: SAN JOSE DE GUAVIARO, COLOMBIA (SJE) | CU34: MIAMI,FL,UNST (MIA)
I35: Carbón Cundinamarca | J35: 2226.86992 | K35: kgCO2eq/kg | L35: kg | M35: FECOC 2016 | N35: HFC-404A / R-404A | O35: 3942.8 | P35: kgCO2eq/kg | Q35: kg | R35: FECOC 2016 | CA35: Incineración controlada residuos líquidos domésticos | CB35: kg res. húmedo | CC35: 5.6e-07 | CD35: kgCO2/kg húmedo | CE35: 1.568e-05 | CF35: IPCC 2006 | CG35: BOGOTÁ, COLOMBIA (BOG) | CH35: SAN JOSE DE GUAVIARO, COLOMBIA (SJE) | CI35: 288 | CJ35: 32.9 | CK35: ICAO | CL35: BOGOTÁ, COLOMBIA (BOG) | CM35: MIAMI,FL,UNST (MIA) | CN35: 2432 | CO35: 183.3 | CP35: ICAO | CT35: SARAVENA,COLOMBIA (RVE) | CU35: MONTEVIDEO,URUG, (MVD)
I36: Carbón Cauca - Valle del Cauca | J36: 2520.91382 | K36: kgCO2eq/kg | L36: kg | M36: FECOC 2016 | N36: HFC-407C / R-407C | O36: 1624.21 | P36: kgCO2eq/kg | Q36: kg | R36: FECOC 2016 | CA36: Incineración controlada residuos líquidos industriales | CB36: kg res. húmedo | CC36: 9.7e-06 | CD36: kgCO2/kg húmedo | CE36: 0.0002716 | CF36: IPCC 2006 | CG36: BOGOTÁ, COLOMBIA (BOG) | CH36: SARAVENA,COLOMBIA (RVE) | CI36: 354 | CJ36: 38.2 | CK36: ICAO | CL36: BOGOTÁ, COLOMBIA (BOG) | CM36: MONTEVIDEO,URUG, (MVD) | CN36: 4785 | CO36: 370.6 | CP36: ICAO | CT36: SANTA MARTA, COLOMBIA (SMR) | CU36: PANAM CITY, PANM ( PTY)
I37: Carbón Norte de Santander | J37: 2826.042054 | K37: kgCO2eq/kg | L37: kg | M37: FECOC 2016 | N37: HFC-410a / R-410A | O37: 1923.5 | P37: kgCO2eq/kg | Q37: kg | R37: FECOC 2016 | CA37: Incineración controlada residuos liquidos fósiles | CB37: kg res. húmedo | CC37: 9.7e-06 | CD37: kgCO2/kg húmedo | CE37: 0.0002716 | CF37: IPCC 2006 | CG37: BOGOTÁ, COLOMBIA (BOG) | CH37: SANTA MARTA, COLOMBIA (SMR) | CI37: 713 | CJ37: 84.6 | CK37: ICAO | CL37: BOGOTÁ, COLOMBIA (BOG) | CM37: PANAM CITY, PANM ( PTY) | CN37: 755 | CO37: 96.8 | CP37: ICAO | CT37: TUMACO,COLOMBIA (TCO) | CU37: PUNTA CANA,DOMR (PUJ)
I38: Carbón Córdoba-Norte de Antioquia | J38: 1912.094204 | K38: kgCO2eq/kg | L38: kg | M38: FECOC 2016 | N38: HFC-422D / R-422D | O38: 2473.204 | P38: kgCO2eq/kg | Q38: kg | R38: FECOC 2016 | CG38: BOGOTÁ, COLOMBIA (BOG) | CH38: TUMACO,COLOMBIA (TCO) | CI38: 604 | CJ38: 55.9 | CK38: ICAO | CL38: BOGOTÁ, COLOMBIA (BOG) | CM38: PUNTA CANA,DOMR (PUJ) | CN38: 1664 | CO38: 159.9 | CP38: ICAO | CT38: QUIBDO,COLOMBIA (UIB) | CU38: SAN SALVADOR,ELSA (SAL)
I39: Carbón Santander | J39: 2574.380123 | K39: kgCO2eq/kg | L39: kg | M39: FECOC 2016 | N39: PFC-14 / R-14 | O39: 6630 | P39: kgCO2eq/kg | Q39: kg | R39: FECOC 2016 | CG39: BOGOTÁ, COLOMBIA (BOG) | CH39: QUIBDO,COLOMBIA (UIB) | CI39: 296 | CJ39: 39 | CK39: ICAO | CL39: BOGOTÁ, COLOMBIA (BOG) | CM39: SAN SALVADOR,ELSA (SAL) | CN39: 1901 | CO39: 186.7 | CP39: ICAO | CT39: VILLA GARZON, COLOMBIA (VGZ) | CU39: SANTIAGO DE CHILE (SCL)
I40: Carbón Santander Sogamoso | J40: 2703.408613 | K40: kgCO2eq/kg | L40: kg | M40: FECOC 2016 | N40: FE-36 / 1,1,1,3,3,3 - Hexafluoropropano | O40: 182 | P40: kgCO2eq/kg | Q40: kg | R40: FECOC 2016 | CG40: BOGOTÁ, COLOMBIA (BOG) | CH40: VILLA GARZON, COLOMBIA (VGZ) | CI40: 496 | CJ40: 46.8 | CK40: ICAO | CL40: BOGOTÁ, COLOMBIA (BOG) | CM40: SANTIAGO DE CHILE (SCL) | CN40: 4247 | CO40: 275.6 | CP40: ICAO | CT40: VALLEDUPAR,COLOMBIA (VUP) | CU40: SANTO DOMINGO, DOMR (SDQ)
I41: Carbón Boyacá | J41: 3067.775238 | K41: kgCO2eq/kg | L41: kg | M41: FECOC 2016 | N41: Propano Alta Calidad / R-290 | O41: 3 | P41: kgCO2eq/kg | Q41: kg | R41: FECOC 2016 | CG41: BOGOTÁ, COLOMBIA (BOG) | CH41: VALLEDUPAR,COLOMBIA (VUP) | CI41: 644 | CJ41: 79.3 | CK41: ICAO | CL41: BOGOTÁ, COLOMBIA (BOG) | CM41: SANTO DOMINGO, DOMR (SDQ) | CN41: 1600 | CO41: 155.3 | CP41: ICAO | CT41: VILLAVICENCIO,COLOMBIA (VVC) | CU41: SAN JOSE COST, (SJO)
I42: Carbón Antioquia | J42: 2287.833498 | K42: kgCO2eq/kg | L42: kg | M42: FECOC 2016 | N42: Isobutano / R-600A | O42: 1 | P42: kgCO2eq/kg | Q42: kg | R42: FECOC 2016 | CG42: BOGOTÁ, COLOMBIA (BOG) | CH42: VILLAVICENCIO,COLOMBIA (VVC) | CI42: 84 | CJ42: 11.3 | CK42: ICAO | CL42: BOGOTÁ, COLOMBIA (BOG) | CM42: SAN JOSE COST, (SJO) | CN42: 1554 | CO42: 131.1 | CP42: ICAO | CU42: SAN JUAN, PURI (SJU)
I43: Bagazo | J43: 28.0116022 | K43: kgCO2eq/kg | L43: kg | M43: FECOC 2016 | N43: Halon 1301 / CBrF3 | O43: 6290 | P43: kgCO2eq/kg | Q43: kg | R43: FECOC 2016 | CH43: NINGUNO | CL43: BOGOTÁ, COLOMBIA (BOG) | CM43: SAN JUAN, PURI (SJU) | CN43: 1762 | CO43: 185.1 | CP43: ICAO | CU43: SALVADOR,BRAZ (SSA)
I44: Fibra de palma | J44: 31.6154384 | K44: kgCO2eq/kg | L44: kg | M44: FECOC 2016 | N44: SF6 | O44: 23500 | P44: kgCO2eq/kg | Q44: kg | R44: FECOC 2016 | CL44: BOGOTÁ, COLOMBIA (BOG) | CM44: SALVADOR,BRAZ (SSA) | CN44: 4411 | CO44: 346.9 | CP44: ICAO | CU44: QUITO,ECUD, (UIO)
I45: Cuesco de palma | J45: 31.8648483 | K45: kgCO2eq/kg | L45: kg | M45: FECOC 2016 | N45: Extintores CO2 | O45: 1 | P45: kgCO2eq/kg | Q45: kg | R45: FECOC 2016 | CL45: BOGOTÁ, COLOMBIA (BOG) | CM45: QUITO,ECUD, (UIO) | CN45: 710 | CO45: 86.4 | CP45: ICAO | CU45: VALENCIA,VENZ (VLN)
I46: Raquis de palma | J46: 34.7650055 | K46: kgCO2eq/kg | L46: kg | M46: FECOC 2016 | N46: Extintores R-123 / HCFC-123 | O46: 79 | P46: kgCO2eq/kg | Q46: kg | R46: FECOC 2016 | CL46: BOGOTÁ, COLOMBIA (BOG) | CM46: VALENCIA,VENZ (VLN) | CN46: 912 | CO46: 97 | CP46: ICAO | CU46: TORONTO,ON,CAND (YYZ)
I47: Cascarilla de Arroz | J47: 28.4105966 | K47: kgCO2eq/kg | L47: kg | M47: FECOC 2016 | CL47: BOGOTÁ, COLOMBIA (BOG) | CM47: TORONTO,ON,CAND (YYZ) | CN47: 4363 | CO47: 259.9 | CP47: ICAO
I48: Borra de Café | J48: 44.9717912 | K48: kgCO2eq/kg | L48: kg | M48: FECOC 2016 | N48: GASEOSOS
I49: Cisco de Café | J49: 34.0593916 | K49: kgCO2eq/kg | L49: kg | M49: FECOC 2016 | N49: LIQUIDOS
I50: Leña | J50: 32.287555 | K50: kgCO2eq/kg | L50: kg | M50: FECOC 2016 | N50: REFRIGERANTES | CG50: ICAO : https://www.icao.int/environmental-protection/CarbonOffset/Pages/default.aspx
I51: Madera Genérico | J51: 32.2602844 | K51: kgCO2eq/kg | L51: kg | M51: FECOC 2016 | N51: AISLANTES
I52: Madera Eucalipto | J52: 35.1291 | K52: kgCO2eq/kg | L52: kg | M52: FECOC 2016 | N52: EXTINTORES
I53: Madera Pino | J53: 36.0411 | K53: kgCO2eq/kg | L53: kg | M53: FECOC 2016
I54: Madera Acacia | J54: 35.5186 | K54: kgCO2eq/kg | L54: kg | M54: FECOC 2016
I55: Madera Melina | J55: 35.3058 | K55: kgCO2eq/kg | L55: kg | M55: FECOC 2016
I56: Residuos de llantas | J56: 2974.654328 | K56: kgCO2eq/kg | L56: kg | M56: FECOC 2016
I57: CFC-11 / R-11 | J57: 4660 | K57: kgCO2eq/kg | L57: kg | M57: FECOC 2016
I58: CFC-12 / R-12 | J58: 10200 | K58: kgCO2eq /kg | L58: kg | M58: FECOC 2016
I59: HCFC-22 / R-22 | J59: 1760 | K59: kgCO2eq /kg | L59: kg | M59: FECOC 2016
I60: HCFC-141B / R-141B | J60: 782 | K60: kgCO2eq /kg | L60: kg | M60: FECOC 2016
I61: HFC-23 / R-23 | J61: 12400 | K61: kgCO2eq /kg | L61: kg | M61: FECOC 2016
I62: HFC-32 / R-32 | J62: 677 | K62: kgCO2eq /kg | L62: kg | M62: FECOC 2016
I63: HFC-125 / R-125 | J63: 3170 | K63: kgCO2eq /kg | L63: kg | M63: FECOC 2016
I64: HFC-134 / R-134 | J64: 1120 | K64: kgCO2eq /kg | L64: kg | M64: FECOC 2016
I65: HFC-134a / R-134a | J65: 1300 | K65: kgCO2eq /kg | L65: kg | M65: FECOC 2016
I66: HFC-143 / R-143 | J66: 328 | K66: kgCO2eq /kg | L66: kg | M66: FECOC 2016
I67: HFC-143a / R-143a | J67: 4800 | K67: kgCO2eq /kg | L67: kg | M67: FECOC 2016
I68: HFC-227ea / FM-200 | J68: 3350 | K68: kgCO2eq /kg | L68: kg | M68: FECOC 2016
I69: HFC-404A / R-404A | J69: 3942.8 | K69: kgCO2eq /kg | L69: kg | M69: FECOC 2016
I70: HFC-407C / R-407C | J70: 1624.21 | K70: kgCO2eq /kg | L70: kg | M70: FECOC 2016
I71: HFC-410a / R-410A | J71: 1923.5 | K71: kgCO2eq /kg | L71: kg | M71: FECOC 2016
I72: HFC-422D / R-422D | J72: 2473.204 | K72: kgCO2eq /kg | L72: kg | M72: FECOC 2016
I73: PFC-14 / R-14 | J73: 6630 | K73: kgCO2eq /kg | L73: kg | M73: FECOC 2016
I74: FE-36 / 1,1,1,3,3,3 - Hexafluoropropano | J74: 182 | K74: kgCO2eq /kg | L74: kg | M74: FECOC 2016
I75: Propano Alta Calidad / R-290 | J75: 3 | K75: kgCO2eq /kg | L75: kg | M75: FECOC 2016
I76: Isobutano / R-600A | J76: 1 | K76: kgCO2eq /kg | L76: kg | M76: FECOC 2016
I77: Halon 1301 / CBrF3 | J77: 6290 | K77: kgCO2eq /kg | L77: kg | M77: FECOC 2016
I78: SF6 | J78: 23500 | K78: kgCO2eq /kg | L78: kg | M78: FECOC 2016
I79: Extintores CO2 | J79: 1 | K79: kgCO2eq /kg | L79: kg | M79: FECOC 2016
I80: Extintores R-123 / HCFC-123 | J80: 79 | K80: kgCO2eq /kg | L80: kg | M80: FECOC 2016
I81: Aceites lubricantes | J81: 0.0017829504 | K81: kgCO2eq /gal | L81: gal | M81: FECOC 2016
I82: Grasas lubricantes | J82: 0.0005896 | K82: kgCO2eq /kg | L82: kg | M82: FECOC 2016
